Workbook

Sheet Datos
A1: Grupo Institucional: | C1: Sector Municipal
A2: Nombre de la Entidad: | C2: Municipalidad de Buenos Aires
A3: Código de Entidad: | C3: 15603
A4: Período Contable: | C4: Del 01 de Enero 2024 al 31 de diciembre del 2024
A5: Comparativo | C5: Periodo Actual | D5: 2024-12-31 | E5: Periodo Anterior | F5: 2023-12-31

Sheet AnalisisBS
A1: =+Datos!C2 -> Municipalidad de Buenos Aires
A2: Análisis al Estado de Situación Financiera o Balance General Comparativo
A3: =+Datos!C4 -> Del 01 de Enero 2024 al 31 de diciembre del 2024
A4: - En miles de colones -
A6: Cuenta | B6: Descripción | C6: Nota | D6: =+Datos!D5 -> 2024-12-31 | E6: % análisis vertical | F6: =+Datos!F5 -> 2023-12-31 | G6: % | H6: Monto variación Absoluta | I6: % Variación relativa
A8: 1. | B8: ACTIVO
A9: 1.1. | B9: Activo Corriente
A10: 1.1.1. | B10: Efectivo y equivalentes de efectivo | C10: 03 | D10: =SUM(D11:D12) -> 2779345.66 | E10: =+IFERROR(D10/$D$91,0) -> 0.01664289425 | F10: =SUM(F11:F12) -> 2106811.911 | G10: =+IFERROR(F10/$F$91,0) -> 0.01270443082 | H10: =+D10-F10 -> 672533.7488 | I10: =+IFERROR(H10/F10,0) -> 0.3192186949 | J10: =+FIXED(E10,4) -> 0,0166 | K10: =+FIXED(I10,4) -> 0,3192 | L10: =+FIXED(H10,2) -> 672 533,75 | M10: =IF(H10 < 0, "Disminución", "Aumento") -> Aumento | N10: Activo | O10: =+CONCATENATE(#REF!,AnalisisBS!B10,#REF!,(AnalisisBS!J10*100),#REF!,N10,#REF!,AnalisisBS!L10,#REF!,AnalisisBS!M10,#REF!,(AnalisisBS!K10*100),#REF!) ->  | Q10: =+CONCATENATE(B10," representa el ",E10," % del total de Activo, que comparado al periodo anterior genera una variación absoluta de ",H10," que corresponde a un(a) Disminución o Aumento del ",I10, "% de recursos disponibles, producto de:") -> Efectivo y equivalentes de efectivo representa el 0,0166428942506906 % del total de Activo, que comparado al periodo anterior genera una variación absoluta de 672533,74875 que corresponde a un(a) Disminución o Aumento del 0,319218694908855% de recursos disponibles, producto de:
A11: 1.1.1.01. | B11: Efectivo | D11: =SUMIF(BCPAC!$B$10:$B$8000,$A11,BCPAC!$G$10:$G$8000)/1000 -> 2779345.66 | E11: 0.01664289425 | F11: =SUMIF(BCPAN!$B$10:$B$8000,$A11,BCPAN!$G$10:$G$8000)/1000 -> 2106811.911 | G11: 0.01270443082 | H11: =+D11-F11 -> 672533.7488 | I11: 0.3192186949
A12: 1.1.1.02. | B12: Equivalentes de efectivo | D12: =SUMIF(BCPAC!$B$10:$B$8000,$A12,BCPAC!$G$10:$G$8000)/1000 -> 0 | E12: 0 | F12: =SUMIF(BCPAN!$B$10:$B$8000,$A12,BCPAN!$G$10:$G$8000)/1000 -> 0 | G12: 0 | H12: 0 | I12: 0
A13: 1.1.2. | B13: Inversiones a corto plazo | C13: 04 | D13: =SUM(D14:D18) -> 0 | E13: 0 | F13: =SUM(F14:F18) -> 0 | G13: 0 | H13: 0 | I13: 0 | J13: =+FIXED(E13,4) -> 0,0000 | K13: =+FIXED(I13,4) -> 0,0000 | L13: =+FIXED(H13,2) -> 0,00 | M13: =IF(H13 < 0, "Disminución", "Aumento") -> Aumento | N13: Activo | O13: =+CONCATENATE(#REF!,AnalisisBS!B13,#REF!,(AnalisisBS!J13*100),#REF!,N13,#REF!,AnalisisBS!L13,#REF!,AnalisisBS!M13,#REF!,(AnalisisBS!K13*100),#REF!) -> 
A14: 1.1.2.01. | B14: Títulos y valores a valor razonable a corto plazo | D14: =SUMIF(BCPAC!$B$10:$B$8000,$A14,BCPAC!$G$10:$G$8000)/1000 -> 0 | E14: 0 | F14: =SUMIF(BCPAN!$B$10:$B$8000,$A14,BCPAN!$G$10:$G$8000)/1000 -> 0 | G14: 0 | H14: 0 | I14: 0
A15: 1.1.2.02. | B15: Títulos y valores a costo amortizado a corto plazo | D15: =SUMIF(BCPAC!$B$10:$B$8000,$A15,BCPAC!$G$10:$G$8000)/1000 -> 0 | E15: 0 | F15: =SUMIF(BCPAN!$B$10:$B$8000,$A15,BCPAN!$G$10:$G$8000)/1000 -> 0 | G15: 0 | H15: 0 | I15: 0
A16: 1.1.2.03. | B16: Instrumentos Derivados a corto plazo | D16: =SUMIF(BCPAC!$B$10:$B$8000,$A16,BCPAC!$G$10:$G$8000)/1000 -> 0 | E16: 0 | F16: =SUMIF(BCPAN!$B$10:$B$8000,$A16,BCPAN!$G$10:$G$8000)/1000 -> 0 | G16: 0 | H16: 0 | I16: 0
A17: 1.1.2.98. | B17: Otras inversiones a corto plazo | D17: =SUMIF(BCPAC!$B$10:$B$8000,$A17,BCPAC!$G$10:$G$8000)/1000 -> 0 | E17: 0 | F17: =SUMIF(BCPAN!$B$10:$B$8000,$A17,BCPAN!$G$10:$G$8000)/1000 -> 0 | G17: 0 | H17: 0 | I17: 0
A18: 1.1.2.99. | B18: Previsiones para deterioro de inversiones a corto plazo * | D18: =SUMIF(BCPAC!$B$10:$B$8000,$A18,BCPAC!$G$10:$G$8000)/1000 -> 0 | E18: 0 | F18: =SUMIF(BCPAN!$B$10:$B$8000,$A18,BCPAN!$G$10:$G$8000)/1000 -> 0 | G18: 0 | H18: 0 | I18: 0
A19: 1.1.3. | B19: Cuentas a cobrar a corto plazo | C19: 05 | D19: =SUM(D20:D36) -> 789317.3934 | E19: 0.004726481523 | F19: =SUM(F20:F36) -> 495942.4364 | G19: 0.002990616457 | H19: 293374.957 | I19: 0.5915504209 | J19: =+FIXED(E19,4) -> 0,0047 | K19: =+FIXED(I19,4) -> 0,5916 | L19: =+FIXED(H19,2) -> 293 374,96 | M19: =IF(H19 < 0, "Disminución", "Aumento") -> Aumento | N19: Activo | O19: =+CONCATENATE(#REF!,AnalisisBS!B19,#REF!,(AnalisisBS!J19*100),#REF!,N19,#REF!,AnalisisBS!L19,#REF!,AnalisisBS!M19,#REF!,(AnalisisBS!K19*100),#REF!) -> 
A20: 1.1.3.01. | B20: Impuestos a cobrar a corto plazo | D20: =SUMIF(BCPAC!$B$10:$B$8000,$A20,BCPAC!$G$10:$G$8000)/1000 -> 439705.8116 | E20: 0.002632985681 | F20: =SUMIF(BCPAN!$B$10:$B$8000,$A20,BCPAN!$G$10:$G$8000)/1000 -> 488369.5134 | G20: 0.002944950455 | H20: -48663.70172 | I20: =+IFERROR(H20/F20,0) -> -0.09964524891
A21: 1.1.3.02. | B21: Contribuciones sociales a cobrar a corto plazo | D21: =SUMIF(BCPAC!$B$10:$B$8000,$A21,BCPAC!$G$10:$G$8000)/1000 -> 0 | E21: 0 | F21: =SUMIF(BCPAN!$B$10:$B$8000,$A21,BCPAN!$G$10:$G$8000)/1000 -> 0 | G21: 0 | H21: 0 | I21: 0
A22: 1.1.3.03. | B22: Ventas a cobrar a corto plazo | D22: =SUMIF(BCPAC!$B$10:$B$8000,$A22,BCPAC!$G$10:$G$8000)/1000 -> 0 | E22: 0 | F22: =SUMIF(BCPAN!$B$10:$B$8000,$A22,BCPAN!$G$10:$G$8000)/1000 -> 0 | G22: 0 | H22: 0 | I22: 0
A23: 1.1.3.04. | B23: Servicios y derechos a cobrar a corto plazo | D23: =SUMIF(BCPAC!$B$10:$B$8000,$A23,BCPAC!$G$10:$G$8000)/1000 -> 174419.5695 | E23: 0.001044435203 | F23: =SUMIF(BCPAN!$B$10:$B$8000,$A23,BCPAN!$G$10:$G$8000)/1000 -> 180183.6378 | G23: 0.001086537697 | H23: -5764.06833 | I23: -0.03198996535
A24: 1.1.3.05. | B24: Ingresos de la propiedad a cobrar a corto plazo | D24: =SUMIF(BCPAC!$B$10:$B$8000,$A24,BCPAC!$G$10:$G$8000)/1000 -> 0 | E24: 0 | F24: =SUMIF(BCPAN!$B$10:$B$8000,$A24,BCPAN!$G$10:$G$8000)/1000 -> 0 | G24: 0 | H24: 0 | I24: 0
A25: 1.1.3.06. | B25: Transferencias a cobrar a corto plazo | D25: =SUMIF(BCPAC!$B$10:$B$8000,$A25,BCPAC!$G$10:$G$8000)/1000 -> 341834.3865 | E25: 0.002046925515 | F25: =SUMIF(BCPAN!$B$10:$B$8000,$A25,BCPAN!$G$10:$G$8000)/1000 -> 0 | G25: =+IFERROR(F25/$F$91,0) -> 0 | H25: =+D25-F25 -> 341834.3865 | I25: =+IFERROR(H25/F25,0) -> 0 | J25: =+FIXED(E25,4) -> 0,0020 | K25: =+FIXED(I25,4) -> 0.0000 | L25: =+FIXED(H25,2) -> 341,834.39 | M25: =IF(H25 < 0, "Disminución", "Aumento") -> Aumento | N25: Activo | O25: =+CONCATENATE(#REF!,AnalisisBS!B25,#REF!,(AnalisisBS!J25*100),#REF!,N25,#REF!,AnalisisBS!L25,#REF!,AnalisisBS!M25,#REF!,(AnalisisBS!K25*100),#REF!) -> 
A26: 1.1.3.07. | B26: Préstamos a corto plazo | D26: =SUMIF(BCPAC!$B$10:$B$8000,$A26,BCPAC!$G$10:$G$8000)/1000 -> 0 | E26: 0 | F26: =SUMIF(BCPAN!$B$10:$B$8000,$A26,BCPAN!$G$10:$G$8000)/1000 -> 0 | G26: 0 | H26: 0 | I26: 0
A27: 1.1.3.08. | B27: Documentos a cobrar a corto plazo | D27: =SUMIF(BCPAC!$B$10:$B$8000,$A27,BCPAC!$G$10:$G$8000)/1000 -> 0 | E27: 0 | F27: =SUMIF(BCPAN!$B$10:$B$8000,$A27,BCPAN!$G$10:$G$8000)/1000 -> 0 | G27: 0 | H27: 0 | I27: 0
A28: 1.1.3.09. | B28: Anticipos a corto plazo | D28: =SUMIF(BCPAC!$B$10:$B$8000,$A28,BCPAC!$G$10:$G$8000)/1000 -> 0 | E28: 0 | F28: =SUMIF(BCPAN!$B$10:$B$8000,$A28,BCPAN!$G$10:$G$8000)/1000 -> 0 | G28: 0 | H28: 0 | I28: 0
A29: 1.1.3.10. | B29: Deudores por avales ejecutados a corto plazo | D29: =SUMIF(BCPAC!$B$10:$B$8000,$A29,BCPAC!$G$10:$G$8000)/1000 -> 0 | E29: 0 | F29: =SUMIF(BCPAN!$B$10:$B$8000,$A29,BCPAN!$G$10:$G$8000)/1000 -> 0 | G29: 0 | H29: 0 | I29: 0
A30: 1.1.3.11. | B30: Planillas salariales | D30: =SUMIF(BCPAC!$B$10:$B$8000,$A30,BCPAC!$G$10:$G$8000)/1000 -> 0 | E30: 0 | F30: =SUMIF(BCPAN!$B$10:$B$8000,$A30,BCPAN!$G$10:$G$8000)/1000 -> 0 | G30: 0 | H30: 0 | I30: 0
A31: 1.1.3.12. | B31: Beneficios Sociales | D31: =SUMIF(BCPAC!$B$10:$B$8000,$A31,BCPAC!$G$10:$G$8000)/1000 -> 0 | E31: 0 | F31: =SUMIF(BCPAN!$B$10:$B$8000,$A31,BCPAN!$G$10:$G$8000)/1000 -> 0 | G31: 0 | H31: 0 | I31: 0
A32: 1.1.3.13. | B32: Beneficios Sociales | D32: =SUMIF(BCPAC!$B$10:$B$8000,$A32,BCPAC!$G$10:$G$8000)/1000 -> 0 | E32: 0 | F32: =SUMIF(BCPAN!$B$10:$B$8000,$A32,BCPAN!$G$10:$G$8000)/1000 -> 0 | G32: 0 | H32: =+D32-F32 -> 0 | I32: =+IFERROR(H32/F32,0) -> 0
A33: 1.1.3.50. | B33: Registro transitorio de transaccion de activo fijo | D33: =SUMIF(BCPAC!$B$10:$B$8000,$A33,BCPAC!$G$10:$G$8000)/1000 -> 0 | E33: 0 | F33: =SUMIF(BCPAN!$B$10:$B$8000,$A33,BCPAN!$G$10:$G$8000)/1000 -> 0 | G33: 0 | H33: =+D33-F33 -> 0 | I33: =+IFERROR(H33/F33,0) -> 0
A34: 1.1.3.97. | B34: Cuentas a cobrar en gestión judicial | D34: =SUMIF(BCPAC!$B$10:$B$8000,$A34,BCPAC!$G$10:$G$8000)/1000 -> 0 | E34: 0 | F34: =SUMIF(BCPAN!$B$10:$B$8000,$A34,BCPAN!$G$10:$G$8000)/1000 -> 0 | G34: 0 | H34: 0 | I34: 0
A35: 1.1.3.98. | B35: Otras cuentas a cobrar a corto plazo | D35: =SUMIF(BCPAC!$B$10:$B$8000,$A35,BCPAC!$G$10:$G$8000)/1000 -> 8735.52312 | E35: 5.230885442e-05 | F35: =SUMIF(BCPAN!$B$10:$B$8000,$A35,BCPAN!$G$10:$G$8000)/1000 -> 2767.1826 | G35: =+IFERROR(F35/$F$91,0) -> 1.668657735e-05 | H35: =+D35-F35 -> 5968.34052 | I35: =+IFERROR(H35/F35,0) -> 2.156829304
A36: 1.1.3.99. | B36: Previsiones para deterioro de cuentas a cobrar a corto plazo * | D36: =SUMIF(BCPAC!$B$10:$B$8000,$A36,BCPAC!$G$10:$G$8000)/1000 -> -175377.8974 | E36: -0.00105017373 | F36: =SUMIF(BCPAN!$B$10:$B$8000,$A36,BCPAN!$G$10:$G$8000)/1000 -> -175377.8974 | G36: -0.001057558272 | H36: 0 | I36: 0
A37: 1.1.4. | B37: Inventarios | C37: 06 | D37: =SUM(D38:D42) -> 200707.856 | E37: 0.001201851094 | F37: =SUM(F38:F42) -> 192987.0922 | G37: 0.001163744684 | H37: 7720.76382 | I37: =+IFERROR(H37/F37,0) -> 0.04000663325 | J37: =+FIXED(E37,4) -> 0,0012 | K37: =+FIXED(I37,4) -> 0,0400 | L37: =+FIXED(H37,2) -> 7 720,76 | M37: =IF(H37 < 0, "Disminución", "Aumento") -> Aumento | N37: Activo | O37: =+CONCATENATE(#REF!,AnalisisBS!B37,#REF!,(AnalisisBS!J37*100),#REF!,N37,#REF!,AnalisisBS!L37,#REF!,AnalisisBS!M37,#REF!,(AnalisisBS!K37*100),#REF!) -> 
A38: 1.1.4.01. | B38: Materiales y suministros para consumo y prestación de servicios | D38: =SUMIF(BCPAC!$B$10:$B$8000,$A38,BCPAC!$G$10:$G$8000)/1000 -> 200707.856 | E38: =+IFERROR(D38/$D$91,0) -> 0.001201851094 | F38: =SUMIF(BCPAN!$B$10:$B$8000,$A38,BCPAN!$G$10:$G$8000)/1000 -> 192987.0922 | G38: =+IFERROR(F38/$F$91,0) -> 0.001163744684 | H38: 7720.76382 | I38: 0.04000663325
A39: 1.1.4.02. | B39: Bienes para la venta | D39: =SUMIF(BCPAC!$B$10:$B$8000,$A39,BCPAC!$G$10:$G$8000)/1000 -> 0 | E39: 0 | F39: =SUMIF(BCPAN!$B$10:$B$8000,$A39,BCPAN!$G$10:$G$8000)/1000 -> 0 | G39: 0 | H39: 0 | I39: 0
A40: 1.1.4.03. | B40: Materias primas y bienes en producción | D40: =SUMIF(BCPAC!$B$10:$B$8000,$A40,BCPAC!$G$10:$G$8000)/1000 -> 0 | E40: 0 | F40: =SUMIF(BCPAN!$B$10:$B$8000,$A40,BCPAN!$G$10:$G$8000)/1000 -> 0 | G40: 0 | H40: 0 | I40: 0
A41: 1.1.4.04. | B41: Bienes a Transferir sin contraprestación - Donaciones | D41: =SUMIF(BCPAC!$B$10:$B$8000,$A41,BCPAC!$G$10:$G$8000)/1000 -> 0 | E41: 0 | F41: =SUMIF(BCPAN!$B$10:$B$8000,$A41,BCPAN!$G$10:$G$8000)/1000 -> 0 | G41: 0 | H41: 0 | I41: 0
A42: 1.1.4.99. | B42: Previsiones para deterioro y pérdidas de inventario * | D42: =SUMIF(BCPAC!$B$10:$B$8000,$A42,BCPAC!$G$10:$G$8000)/1000 -> 0 | E42: 0 | F42: =SUMIF(BCPAN!$B$10:$B$8000,$A42,BCPAN!$G$10:$G$8000)/1000 -> 0 | G42: 0 | H42: 0 | I42: 0
A43: 1.1.9. | B43: Otros activos a corto plazo | C43: 07 | D43: =SUM(D44:D46) -> 25165.34217 | E43: 0.0001506916302 | F43: =SUM(F44:F46) -> 26295.62224 | G43: 0.0001585670329 | H43: -1130.28007 | I43: -0.04298358334 | J43: =+FIXED(E43,4) -> 0,0002 | K43: =+FIXED(I43,4) -> -0,0430 | L43: =+FIXED(H43,2) -> -1 130,28 | M43: =IF(H43 < 0, "Disminución", "Aumento") -> Disminución | N43: Activo | O43: =+CONCATENATE(#REF!,AnalisisBS!B43,#REF!,(AnalisisBS!J43*100),#REF!,N43,#REF!,AnalisisBS!L43,#REF!,AnalisisBS!M43,#REF!,(AnalisisBS!K43*100),#REF!) -> 
A44: 1.1.9.01. | B44: Gastos a devengar a corto plazo | D44: =SUMIF(BCPAC!$B$10:$B$8000,$A44,BCPAC!$G$10:$G$8000)/1000 -> 25165.34217 | E44: 0.0001506916302 | F44: =SUMIF(BCPAN!$B$10:$B$8000,$A44,BCPAN!$G$10:$G$8000)/1000 -> 26295.62224 | G44: 0.0001585670329 | H44: -1130.28007 | I44: -0.04298358334 | J44: =+FIXED(E44,4) -> 0,0002 | K44: =+FIXED(I44,4) -> -0.0430 | L44: =+FIXED(H44,2) -> -1,130.28 | M44: =IF(H44 < 0, "Disminución", "Aumento") -> Disminución | N44: Activo | O44: =+CONCATENATE(#REF!,AnalisisBS!B44,#REF!,(AnalisisBS!J44*100),#REF!,N44,#REF!,AnalisisBS!L44,#REF!,AnalisisBS!M44,#REF!,(AnalisisBS!K44*100),#REF!) -> 
A45: 1.1.9.02. | B45: Cuentas transitorias | D45: =SUMIF(BCPAC!$B$10:$B$8000,$A45,BCPAC!$G$10:$G$8000)/1000 -> 0 | E45: 0 | F45: =SUMIF(BCPAN!$B$10:$B$8000,$A45,BCPAN!$G$10:$G$8000)/1000 -> 0 | G45: 0 | H45: 0 | I45: 0
A46: 1.1.9.99. | B46: Activos a corto plazo sujetos a depuración contable | D46: =SUMIF(BCPAC!$B$10:$B$8000,$A46,BCPAC!$G$10:$G$8000)/1000 -> 0 | E46: 0 | F46: =SUMIF(BCPAN!$B$10:$B$8000,$A46,BCPAN!$G$10:$G$8000)/1000 -> 0 | G46: 0 | H46: 0 | I46: 0
B47: Total del Activo Corriente | D47: =+D43++D37+D19+D13+D10 -> 3794536.252 | E47: =+E43++E37+E19+E13+E10 -> 0.0227219185 | F47: =+F43++F37+F19+F13+F10 -> 2822037.062 | G47: =+G43++G37+G19+G13+G10 -> 0.017017359 | H47: =+H43++H37+H19+H13+H10 -> 972499.1895 | I47: 0.3446089361
A49: 1.2. | B49: Activo No Corriente
A50: 1.2.2. | B50: Inversiones a largo plazo | C50: 08 | D50: =SUM(D51:D55) -> 0 | E50: =+IFERROR(D50/$D$91,0) -> 0 | F50: =SUM(F51:F55) -> 0 | G50: =+IFERROR(F50/$F$91,0) -> 0 | H50: =+D50-F50 -> 0 | I50: =+IFERROR(H50/F50,0) -> 0 | J50: =+FIXED(E50,4) -> 0,0000 | K50: =+FIXED(I50,4) -> 0,0000 | L50: =+FIXED(H50,2) -> 0,00 | M50: =IF(H50 < 0, "Disminución", "Aumento") -> Aumento | N50: Activo | O50: =+CONCATENATE(#REF!,AnalisisBS!B50,#REF!,(AnalisisBS!J50*100),#REF!,N50,#REF!,AnalisisBS!L50,#REF!,AnalisisBS!M50,#REF!,(AnalisisBS!K50*100),#REF!) -> 
A51: 1.2.2.01. | B51: Títulos y valores a valor razonable a largo plazo | D51: =SUMIF(BCPAC!$B$10:$B$8000,$A51,BCPAC!$G$10:$G$8000)/1000 -> 0 | E51: 0 | F51: =SUMIF(BCPAN!$B$10:$B$8000,$A51,BCPAN!$G$10:$G$8000)/1000 -> 0 | G51: 0 | H51: 0 | I51: 0
A52: 1.2.2.02. | B52: Títulos y valores a costo amortizado a largo plazo | D52: =SUMIF(BCPAC!$B$10:$B$8000,$A52,BCPAC!$G$10:$G$8000)/1000 -> 0 | E52: 0 | F52: =SUMIF(BCPAN!$B$10:$B$8000,$A52,BCPAN!$G$10:$G$8000)/1000 -> 0 | G52: 0 | H52: 0 | I52: 0
A53: 1.2.2.03. | B53: Instrumentos Derivados a largo plazo | D53: =SUMIF(BCPAC!$B$10:$B$8000,$A53,BCPAC!$G$10:$G$8000)/1000 -> 0 | E53: 0 | F53: =SUMIF(BCPAN!$B$10:$B$8000,$A53,BCPAN!$G$10:$G$8000)/1000 -> 0 | G53: 0 | H53: 0 | I53: 0
A54: 1.2.2.98. | B54: Otras inversiones a largo plazo | D54: =SUMIF(BCPAC!$B$10:$B$8000,$A54,BCPAC!$G$10:$G$8000)/1000 -> 0 | E54: 0 | F54: =SUMIF(BCPAN!$B$10:$B$8000,$A54,BCPAN!$G$10:$G$8000)/1000 -> 0 | G54: 0 | H54: 0 | I54: 0
A55: 1.2.2.99. | B55: Previsiones para deterioro de inversiones a largo plazo * | D55: =SUMIF(BCPAC!$B$10:$B$8000,$A55,BCPAC!$G$10:$G$8000)/1000 -> 0 | E55: 0 | F55: =SUMIF(BCPAN!$B$10:$B$8000,$A55,BCPAN!$G$10:$G$8000)/1000 -> 0 | G55: 0 | H55: 0 | I55: 0
A56: 1.2.3. | B56: Cuentas a cobrar a largo plazo | C56: 09 | D56: =SUM(D57:D63) -> 0 | E56: 0 | F56: =SUM(F57:F63) -> 0 | G56: 0 | H56: 0 | I56: 0 | J56: =+FIXED(E56,4) -> 0,0000 | K56: =+FIXED(I56,4) -> 0,0000 | L56: =+FIXED(H56,2) -> 0,00 | M56: =IF(H56 < 0, "Disminución", "Aumento") -> Aumento | N56: Activo | O56: =+CONCATENATE(#REF!,AnalisisBS!B56,#REF!,(AnalisisBS!J56*100),#REF!,N56,#REF!,AnalisisBS!L56,#REF!,AnalisisBS!M56,#REF!,(AnalisisBS!K56*100),#REF!) -> 
A57: 1.2.3.03. | B57: Ventas a cobrar a largo plazo | D57: =SUMIF(BCPAC!$B$10:$B$8000,$A57,BCPAC!$G$10:$G$8000)/1000 -> 0 | E57: =+IFERROR(D57/$D$91,0) -> 0 | F57: =SUMIF(BCPAN!$B$10:$B$8000,$A57,BCPAN!$G$10:$G$8000)/1000 -> 0 | G57: =+IFERROR(F57/$F$91,0) -> 0 | H57: 0 | I57: =+IFERROR(H57/F57,0) -> 0
A58: 1.2.3.07. | B58: Préstamos a largo plazo | D58: =SUMIF(BCPAC!$B$10:$B$8000,$A58,BCPAC!$G$10:$G$8000)/1000 -> 0 | E58: 0 | F58: =SUMIF(BCPAN!$B$10:$B$8000,$A58,BCPAN!$G$10:$G$8000)/1000 -> 0 | G58: 0 | H58: 0 | I58: 0
A59: 1.2.3.08. | B59: Documentos a cobrar a largo plazo | D59: =SUMIF(BCPAC!$B$10:$B$8000,$A59,BCPAC!$G$10:$G$8000)/1000 -> 0 | E59: 0 | F59: =SUMIF(BCPAN!$B$10:$B$8000,$A59,BCPAN!$G$10:$G$8000)/1000 -> 0 | G59: 0 | H59: 0 | I59: 0
A60: 1.2.3.09. | B60: Anticipos a largo plazo | D60: =SUMIF(BCPAC!$B$10:$B$8000,$A60,BCPAC!$G$10:$G$8000)/1000 -> 0 | E60: 0 | F60: =SUMIF(BCPAN!$B$10:$B$8000,$A60,BCPAN!$G$10:$G$8000)/1000 -> 0 | G60: 0 | H60: 0 | I60: 0
A61: 1.2.3.10. | B61: Deudores por avales ejecutados a largo plazo | D61: =SUMIF(BCPAC!$B$10:$B$8000,$A61,BCPAC!$G$10:$G$8000)/1000 -> 0 | E61: 0 | F61: =SUMIF(BCPAN!$B$10:$B$8000,$A61,BCPAN!$G$10:$G$8000)/1000 -> 0 | G61: 0 | H61: 0 | I61: 0
A62: 1.2.3.98. | B62: Otras cuentas a cobrar a largo plazo | D62: =SUMIF(BCPAC!$B$10:$B$8000,$A62,BCPAC!$G$10:$G$8000)/1000 -> 0 | E62: 0 | F62: =SUMIF(BCPAN!$B$10:$B$8000,$A62,BCPAN!$G$10:$G$8000)/1000 -> 0 | G62: 0 | H62: 0 | I62: 0
A63: 1.2.3.99. | B63: Previsiones para deterioro de cuentas a cobrar a largo plazo * | D63: =SUMIF(BCPAC!$B$10:$B$8000,$A63,BCPAC!$G$10:$G$8000)/1000 -> 0 | E63: 0 | F63: =SUMIF(BCPAN!$B$10:$B$8000,$A63,BCPAN!$G$10:$G$8000)/1000 -> 0 | G63: 0 | H63: 0 | I63: 0
A64: 1.2.5. | B64: Bienes no concesionados | C64: 10 | D64: =SUM(D65:D73) -> 163204401.4 | E64: =+IFERROR(D64/$D$91,0) -> 0.9772780815 | F64: =SUM(F65:F73) -> 163010808.3 | G64: =+IFERROR(F64/$F$91,0) -> 0.982982641 | H64: 193593.1788 | I64: =+IFERROR(H64/F64,0) -> 0.001187609465 | J64: =+FIXED(E64,4) -> 0,9773 | K64: =+FIXED(I64,4) -> 0,0012 | L64: =+FIXED(H64,2) -> 193 593,18 | M64: =IF(H64 < 0, "Disminución", "Aumento") -> Aumento | N64: Activo | O64: =+CONCATENATE(#REF!,AnalisisBS!B64,#REF!,(AnalisisBS!J64*100),#REF!,N64,#REF!,AnalisisBS!L64,#REF!,AnalisisBS!M64,#REF!,(AnalisisBS!K64*100),#REF!) -> 
A65: 1.2.5.01. | B65: Propiedades, planta y equipos explotados | D65: =SUMIF(BCPAC!$B$10:$B$8000,$A65,BCPAC!$G$10:$G$8000)/1000 -> 2240714.457 | E65: =+IFERROR(D65/$D$91,0) -> 0.01341753719 | F65: =SUMIF(BCPAN!$B$10:$B$8000,$A65,BCPAN!$G$10:$G$8000)/1000 -> 2155163.988 | G65: =+IFERROR(F65/$F$91,0) -> 0.01299600199 | H65: 85550.46818 | I65: =+IFERROR(H65/F65,0) -> 0.03969557242 | J65: =+FIXED(E65,4) -> 0,0134 | K65: =+FIXED(I65,4) -> 0.0397 | L65: =+FIXED(H65,2) -> 85,550.47 | M65: Aumento | N65: Activo | O65: =+CONCATENATE(#REF!,AnalisisBS!B65,#REF!,(AnalisisBS!J65*100),#REF!,N65,#REF!,AnalisisBS!L65,#REF!,AnalisisBS!M65,#REF!,(AnalisisBS!K65*100),#REF!) -> 
A66: 1.2.5.02. | B66: Propiedades de inversión | D66: =SUMIF(BCPAC!$B$10:$B$8000,$A66,BCPAC!$G$10:$G$8000)/1000 -> 0 | E66: 0 | F66: =SUMIF(BCPAN!$B$10:$B$8000,$A66,BCPAN!$G$10:$G$8000)/1000 -> 0 | G66: 0 | H66: 0 | I66: 0 | J66: 0,0000 | K66: 0,0000 | L66: 0,00 | M66: Aumento | N66: Activo | O66: =+CONCATENATE(#REF!,AnalisisBS!B66,#REF!,(AnalisisBS!J66*100),#REF!,N66,#REF!,AnalisisBS!L66,#REF!,AnalisisBS!M66,#REF!,(AnalisisBS!K66*100),#REF!) -> 
A67: 1.2.5.03. | B67: Activos biológicos no concesionados | D67: =SUMIF(BCPAC!$B$10:$B$8000,$A67,BCPAC!$G$10:$G$8000)/1000 -> 0 | E67: 0 | F67: =SUMIF(BCPAN!$B$10:$B$8000,$A67,BCPAN!$G$10:$G$8000)/1000 -> 0 | G67: 0 | H67: 0 | I67: 0 | J67: 0,0000 | K67: 0,0000 | L67: 0,00 | M67: Aumento | N67: Activo | O67: =+CONCATENATE(#REF!,AnalisisBS!B67,#REF!,(AnalisisBS!J67*100),#REF!,N67,#REF!,AnalisisBS!L67,#REF!,AnalisisBS!M67,#REF!,(AnalisisBS!K67*100),#REF!) -> 
A68: 1.2.5.04. | B68: Bienes de infraestructura y de beneficio y uso público en servicio | D68: =SUMIF(BCPAC!$B$10:$B$8000,$A68,BCPAC!$G$10:$G$8000)/1000 -> 160856258.3 | E68: 0.9632172549 | F68: =SUMIF(BCPAN!$B$10:$B$8000,$A68,BCPAN!$G$10:$G$8000)/1000 -> 160765498.1 | G68: 0.9694430423 | H68: 90760.25079 | I68: 0.0005645505527 | J68: 0,9632 | K68: 0.0006 | L68: 90,760.25 | M68: Aumento | N68: Activo | O68: =+CONCATENATE(#REF!,AnalisisBS!B68,#REF!,(AnalisisBS!J68*100),#REF!,N68,#REF!,AnalisisBS!L68,#REF!,AnalisisBS!M68,#REF!,(AnalisisBS!K68*100),#REF!) -> 
A69: 1.2.5.05. | B69: Bienes históricos y culturales | D69: =SUMIF(BCPAC!$B$10:$B$8000,$A69,BCPAC!$G$10:$G$8000)/1000 -> 0 | E69: 0 | F69: =SUMIF(BCPAN!$B$10:$B$8000,$A69,BCPAN!$G$10:$G$8000)/1000 -> 0 | G69: 0 | H69: 0 | I69: 0 | J69: 0,0000 | K69: 0,0000 | L69: 0,00 | M69: Aumento | N69: Activo | O69: =+CONCATENATE(#REF!,AnalisisBS!B69,#REF!,(AnalisisBS!J69*100),#REF!,N69,#REF!,AnalisisBS!L69,#REF!,AnalisisBS!M69,#REF!,(AnalisisBS!K69*100),#REF!) -> 
A70: 1.2.5.06. | B70: Recursos naturales en explotación | D70: =SUMIF(BCPAC!$B$10:$B$8000,$A70,BCPAC!$G$10:$G$8000)/1000 -> 0 | E70: 0 | F70: =SUMIF(BCPAN!$B$10:$B$8000,$A70,BCPAN!$G$10:$G$8000)/1000 -> 0 | G70: 0 | H70: 0 | I70: 0 | J70: 0,0000 | K70: 0,0000 | L70: 0,00 | M70: Aumento | N70: Activo | O70: =+CONCATENATE(#REF!,AnalisisBS!B70,#REF!,(AnalisisBS!J70*100),#REF!,N70,#REF!,AnalisisBS!L70,#REF!,AnalisisBS!M70,#REF!,(AnalisisBS!K70*100),#REF!) -> 
A71: 1.2.5.07. | B71: Recursos naturales en conservación | D71: =SUMIF(BCPAC!$B$10:$B$8000,$A71,BCPAC!$G$10:$G$8000)/1000 -> 0 | E71: 0 | F71: =SUMIF(BCPAN!$B$10:$B$8000,$A71,BCPAN!$G$10:$G$8000)/1000 -> 0 | G71: 0 | H71: 0 | I71: 0 | J71: 0,0000 | K71: 0,0000 | L71: 0,00 | M71: Aumento | N71: Activo | O71: =+CONCATENATE(#REF!,AnalisisBS!B71,#REF!,(AnalisisBS!J71*100),#REF!,N71,#REF!,AnalisisBS!L71,#REF!,AnalisisBS!M71,#REF!,(AnalisisBS!K71*100),#REF!) -> 
A72: 1.2.5.08. | B72: Bienes intangibles no concesionados | D72: =SUMIF(BCPAC!$B$10:$B$8000,$A72,BCPAC!$G$10:$G$8000)/1000 -> 9849.50849 | E72: 5.897946793e-05 | F72: =SUMIF(BCPAN!$B$10:$B$8000,$A72,BCPAN!$G$10:$G$8000)/1000 -> 12565.23546 | G72: 7.577048705e-05 | H72: -2715.72697 | I72: =+IFERROR(H72/F72,0) -> -0.2161302093 | J72: 0,0001 | K72: -0.2161 | L72: -2,715.73 | M72: Disminución | N72: Activo | O72: =+CONCATENATE(#REF!,AnalisisBS!B72,#REF!,(AnalisisBS!J72*100),#REF!,N72,#REF!,AnalisisBS!L72,#REF!,AnalisisBS!M72,#REF!,(AnalisisBS!K72*100),#REF!) -> 
A73: 1.2.5.99. | B73: Bienes no concesionados en proceso de producción | D73: =SUMIF(BCPAC!$B$10:$B$8000,$A73,BCPAC!$G$10:$G$8000)/1000 -> 97579.14782 | E73: 0.0005843099912 | F73: =SUMIF(BCPAN!$B$10:$B$8000,$A73,BCPAN!$G$10:$G$8000)/1000 -> 77580.96105 | G73: 0.0004678262674 | H73: 19998.18677 | I73: 0.257771836 | J73: 0,0006 | K73: 0.2578 | L73: 19,998.19 | M73: Aumento | N73: Activo | O73: =+CONCATENATE(#REF!,AnalisisBS!B73,#REF!,(AnalisisBS!J73*100),#REF!,N73,#REF!,AnalisisBS!L73,#REF!,AnalisisBS!M73,#REF!,(AnalisisBS!K73*100),#REF!) -> 
A74: 1.2.6. | B74: Bienes concesionados | C74: 11 | D74: =SUM(D75:D80) -> 0 | E74: =+IFERROR(D74/$D$91,0) -> 0 | F74: =SUM(F75:F80) -> 0 | G74: =+IFERROR(F74/$F$91,0) -> 0 | H74: 0 | I74: =+IFERROR(H74/F74,0) -> 0 | J74: =+FIXED(E74,4) -> 0,0000 | K74: =+FIXED(I74,4) -> 0,0000 | L74: =+FIXED(H74,2) -> 0,00 | M74: Aumento | N74: Activo | O74: =+CONCATENATE(#REF!,AnalisisBS!B74,#REF!,(AnalisisBS!J74*100),#REF!,N74,#REF!,AnalisisBS!L74,#REF!,AnalisisBS!M74,#REF!,(AnalisisBS!K74*100),#REF!) -> 
A75: 1.2.6.01. | B75: Propiedades, planta y equipos concesionados | D75: =SUMIF(BCPAC!$B$10:$B$8000,$A75,BCPAC!$G$10:$G$8000)/1000 -> 0 | E75: =+IFERROR(D75/$D$91,0) -> 0 | F75: =SUMIF(BCPAN!$B$10:$B$8000,$A75,BCPAN!$G$10:$G$8000)/1000 -> 0 | G75: =+IFERROR(F75/$F$91,0) -> 0 | H75: 0 | I75: =+IFERROR(H75/F75,0) -> 0 | J75: 0,0000 | K75: 0,0000 | L75: 0,00 | M75: Aumento | N75: Activo | O75: =+CONCATENATE(#REF!,AnalisisBS!B75,#REF!,(AnalisisBS!J75*100),#REF!,N75,#REF!,AnalisisBS!L75,#REF!,AnalisisBS!M75,#REF!,(AnalisisBS!K75*100),#REF!) -> 
A76: 1.2.6.03. | B76: Activos biológicos concesionados | D76: =SUMIF(BCPAC!$B$10:$B$8000,$A76,BCPAC!$G$10:$G$8000)/1000 -> 0 | E76: 0 | F76: =SUMIF(BCPAN!$B$10:$B$8000,$A76,BCPAN!$G$10:$G$8000)/1000 -> 0 | G76: 0 | H76: 0 | I76: 0 | J76: 0,0000 | K76: 0,0000 | L76: 0,00 | M76: Aumento | N76: Activo | O76: =+CONCATENATE(#REF!,AnalisisBS!B76,#REF!,(AnalisisBS!J76*100),#REF!,N76,#REF!,AnalisisBS!L76,#REF!,AnalisisBS!M76,#REF!,(AnalisisBS!K76*100),#REF!) -> 
A77: 1.2.6.04. | B77: Bienes de infraestructura y de beneficio y uso público concesionados | D77: =SUMIF(BCPAC!$B$10:$B$8000,$A77,BCPAC!$G$10:$G$8000)/1000 -> 0 | E77: 0 | F77: =SUMIF(BCPAN!$B$10:$B$8000,$A77,BCPAN!$G$10:$G$8000)/1000 -> 0 | G77: 0 | H77: 0 | I77: 0 | J77: 0,0000 | K77: 0,0000 | L77: 0,00 | M77: Aumento | N77: Activo | O77: =+CONCATENATE(#REF!,AnalisisBS!B77,#REF!,(AnalisisBS!J77*100),#REF!,N77,#REF!,AnalisisBS!L77,#REF!,AnalisisBS!M77,#REF!,(AnalisisBS!K77*100),#REF!) -> 
A78: 1.2.6.06. | B78: Recursos naturales concesionados | D78: =SUMIF(BCPAC!$B$10:$B$8000,$A78,BCPAC!$G$10:$G$8000)/1000 -> 0 | E78: 0 | F78: =SUMIF(BCPAN!$B$10:$B$8000,$A78,BCPAN!$G$10:$G$8000)/1000 -> 0 | G78: 0 | H78: 0 | I78: 0 | J78: 0,0000 | K78: 0,0000 | L78: 0,00 | M78: Aumento | N78: Activo | O78: =+CONCATENATE(#REF!,AnalisisBS!B78,#REF!,(AnalisisBS!J78*100),#REF!,N78,#REF!,AnalisisBS!L78,#REF!,AnalisisBS!M78,#REF!,(AnalisisBS!K78*100),#REF!) -> 
A79: 1.2.6.08. | B79: Bienes intangibles concesionados | D79: =SUMIF(BCPAC!$B$10:$B$8000,$A79,BCPAC!$G$10:$G$8000)/1000 -> 0 | E79: 0 | F79: =SUMIF(BCPAN!$B$10:$B$8000,$A79,BCPAN!$G$10:$G$8000)/1000 -> 0 | G79: 0 | H79: 0 | I79: 0 | J79: 0,0000 | K79: 0,0000 | L79: 0,00 | M79: Aumento | N79: Activo | O79: =+CONCATENATE(#REF!,AnalisisBS!B79,#REF!,(AnalisisBS!J79*100),#REF!,N79,#REF!,AnalisisBS!L79,#REF!,AnalisisBS!M79,#REF!,(AnalisisBS!K79*100),#REF!) -> 
A80: 1.2.6.99. | B80: Bienes concesionados en proceso de producción | D80: =SUMIF(BCPAC!$B$10:$B$8000,$A80,BCPAC!$G$10:$G$8000)/1000 -> 0 | E80: 0 | F80: =SUMIF(BCPAN!$B$10:$B$8000,$A80,BCPAN!$G$10:$G$8000)/1000 -> 0 | G80: 0 | H80: 0 | I80: 0 | J80: 0,0000 | K80: 0,0000 | L80: 0,00 | M80: Aumento | N80: Activo | O80: =+CONCATENATE(#REF!,AnalisisBS!B80,#REF!,(AnalisisBS!J80*100),#REF!,N80,#REF!,AnalisisBS!L80,#REF!,AnalisisBS!M80,#REF!,(AnalisisBS!K80*100),#REF!) -> 
A81: 1.2.7. | B81: Inversiones patrimoniales - Método de participación | C81: 12 | D81: =SUM(D82:D85) -> 0 | E81: =+IFERROR(D81/$D$91,0) -> 0 | F81: =SUM(F82:F85) -> 0 | G81: =+IFERROR(F81/$F$91,0) -> 0 | H81: 0 | I81: =+IFERROR(H81/F81,0) -> 0 | J81: 0,0000 | K81: 0,0000 | L81: 0,00 | M81: Aumento | N81: Activo | O81: =+CONCATENATE(#REF!,AnalisisBS!B81,#REF!,(AnalisisBS!J81*100),#REF!,N81,#REF!,AnalisisBS!L81,#REF!,AnalisisBS!M81,#REF!,(AnalisisBS!K81*100),#REF!) -> 
A82: 1.2.7.01. | B82: Inversiones patrimoniales en el sector privado interno | D82: =SUMIF(BCPAC!$B$10:$B$8000,$A82,BCPAC!$G$10:$G$8000)/1000 -> 0 | E82: 0 | F82: =SUMIF(BCPAN!$B$10:$B$8000,$A82,BCPAN!$G$10:$G$8000)/1000 -> 0 | G82: 0 | H82: 0 | I82: 0
A83: 1.2.7.02. | B83: Inversiones patrimoniales en el sector público interno | D83: =SUMIF(BCPAC!$B$10:$B$8000,$A83,BCPAC!$G$10:$G$8000)/1000 -> 0 | E83: 0 | F83: =SUMIF(BCPAN!$B$10:$B$8000,$A83,BCPAN!$G$10:$G$8000)/1000 -> 0 | G83: 0 | H83: 0 | I83: 0
A84: 1.2.7.03. | B84: Inversiones patrimoniales en el sector externo | D84: =SUMIF(BCPAC!$B$10:$B$8000,$A84,BCPAC!$G$10:$G$8000)/1000 -> 0 | E84: 0 | F84: =SUMIF(BCPAN!$B$10:$B$8000,$A84,BCPAN!$G$10:$G$8000)/1000 -> 0 | G84: 0 | H84: 0 | I84: 0
A85: 1.2.7.04. | B85: Inversiones patrimoniales en fideicomisos | D85: =SUMIF(BCPAC!$B$10:$B$8000,$A85,BCPAC!$G$10:$G$8000)/1000 -> 0 | E85: 0 | F85: =SUMIF(BCPAN!$B$10:$B$8000,$A85,BCPAN!$G$10:$G$8000)/1000 -> 0 | G85: 0 | H85: 0 | I85: 0
A86: 1.2.9. | B86: Otros activos a largo plazo | C86: 13 | D86: =SUM(D87:D89) -> 0 | E86: 0 | F86: =SUM(F87:F89) -> 0 | G86: 0 | H86: 0 | I86: 0 | J86: =+FIXED(E86,4) -> 0,0000 | K86: =+FIXED(I86,4) -> 0,0000 | L86: =+FIXED(H86,2) -> 0,00 | M86: =IF(H86 < 0, "Disminución", "Aumento") -> Aumento | N86: Activo | O86: =+CONCATENATE(#REF!,AnalisisBS!B86,#REF!,(AnalisisBS!J86*100),#REF!,N86,#REF!,AnalisisBS!L86,#REF!,AnalisisBS!M86,#REF!,(AnalisisBS!K86*100),#REF!) -> 
A87: 1.2.9.01. | B87: Gastos a devengar a largo plazo | D87: =SUMIF(BCPAC!$B$10:$B$8000,$A87,BCPAC!$G$10:$G$8000)/1000 -> 0 | E87: 0 | F87: =SUMIF(BCPAN!$B$10:$B$8000,$A87,BCPAN!$G$10:$G$8000)/1000 -> 0 | G87: 0 | H87: 0 | I87: 0 | J87: =+FIXED(E87,4) -> 0,0000 | K87: =+FIXED(I87,4) -> 0,0000 | L87: =+FIXED(H87,2) -> 0,00 | M87: =IF(H87 < 0, "Disminución", "Aumento") -> Aumento | N87: Activo | O87: =+CONCATENATE(#REF!,AnalisisBS!B87,#REF!,(AnalisisBS!J87*100),#REF!,N87,#REF!,AnalisisBS!L87,#REF!,AnalisisBS!M87,#REF!,(AnalisisBS!K87*100),#REF!) -> 
A88: 1.2.9.03. | B88: Objetos de valor | D88: =SUMIF(BCPAC!$B$10:$B$8000,$A88,BCPAC!$G$10:$G$8000)/1000 -> 0 | E88: 0 | F88: =SUMIF(BCPAN!$B$10:$B$8000,$A88,BCPAN!$G$10:$G$8000)/1000 -> 0 | G88: 0 | H88: 0 | I88: 0
A89: 1.2.9.99. | B89: Activos a largo plazo sujetos a depuración contable | D89: =SUMIF(BCPAC!$B$10:$B$8000,$A89,BCPAC!$G$10:$G$8000)/1000 -> 0 | E89: 0 | F89: =SUMIF(BCPAN!$B$10:$B$8000,$A89,BCPAN!$G$10:$G$8000)/1000 -> 0 | G89: 0 | H89: 0 | I89: 0
B90: Total del Activo no Corriente | D90: =+D86+D81+D74+D64+D56+D50 -> 163204401.4 | E90: =+E86+E81+E74+E64+E56+E50 -> 0.9772780815 | F90: =+F86+F81+F74+F64+F56+F50 -> 163010808.3 | G90: =+G86+G81+G74+G64+G56+G50 -> 0.982982641 | H90: =+H86+H81+H74+H64+H56+H50 -> 193593.1788 | I90: 0.001187609465
B91: TOTAL DEL ACTIVO | D91: =+D90+D47 -> 166998937.7 | E91: =+E90+E47 -> 1 | F91: =+F90+F47 -> 165832845.3 | G91: =+G90+G47 -> 1 | H91: =+H90+H47 -> 1166092.368 | I91: 0.007031733466
H92: =H91-H10 -> 493558.6195
A93: 2. | B93: PASIVO
A94: 2.1. | B94: Pasivo Corriente
A95: 2.1.1. | B95: Deudas a corto plazo | C95: 14 | D95: =SUM(D96:D105) -> 100143.2682 | E95: =+IFERROR(D95/$D$151,0) -> 0.04278422485 | F95: =SUM(F96:F105) -> 86261.73254 | G95: =+IFERROR(F95/$F$151,0) -> 0.05078622764 | H95: =+D95-F95 -> 13881.53565 | I95: =+IFERROR(H95/F95,0) -> 0.1609234505 | J95: =+FIXED(E95,4) -> 0,0428 | K95: =+FIXED(I95,4) -> 0,1609 | L95: =+FIXED(H95,2) -> 13 881,54 | M95: =IF(H95 < 0, "Disminución", "Aumento") -> Aumento | N95: Pasivo | O95: =+CONCATENATE(#REF!,AnalisisBS!B95,#REF!,(AnalisisBS!J95*100),#REF!,N95,#REF!,AnalisisBS!L95,#REF!,AnalisisBS!M95,#REF!,(AnalisisBS!K95*100),#REF!) -> 
A96: 2.1.1.01. | B96: Deudas comerciales a corto plazo | D96: =SUMIF(BCPAC!$B$10:$B$8000,$A96,BCPAC!$G$10:$G$8000)/1000 -> 0 | E96: 0 | F96: =SUMIF(BCPAN!$B$10:$B$8000,$A96,BCPAN!$G$10:$G$8000)/1000 -> 1108.9857 | G96: 0.0006529106077 | H96: -1108.9857 | I96: =+IFERROR(H96/F96,0) -> -1
A97: 2.1.1.02. | B97: Deudas sociales y fiscales a corto plazo | D97: =SUMIF(BCPAC!$B$10:$B$8000,$A97,BCPAC!$G$10:$G$8000)/1000 -> 28252.87655 | E97: 0.01207048107 | F97: =SUMIF(BCPAN!$B$10:$B$8000,$A97,BCPAN!$G$10:$G$8000)/1000 -> 21545.67241 | G97: 0.01268492287 | H97: 6707.20414 | I97: 0.3113016857 | J97: =+FIXED(E97,4) -> 0,0121 | K97: =+FIXED(I97,4) -> 0,3113 | L97: =+FIXED(H97,2) -> 6,707.20 | M97: =IF(H97 < 0, "Disminución", "Aumento") -> Aumento | N97: Pasivo | O97: =+CONCATENATE(#REF!,AnalisisBS!B97,#REF!,(AnalisisBS!J97*100),#REF!,N97,#REF!,AnalisisBS!L97,#REF!,AnalisisBS!M97,#REF!,(AnalisisBS!K97*100),#REF!) -> 
A98: 2.1.1.03. | B98: Transferencias a pagar a corto plazo | D98: =SUMIF(BCPAC!$B$10:$B$8000,$A98,BCPAC!$G$10:$G$8000)/1000 -> 71890.39164 | E98: 0.03071374378 | F98: =SUMIF(BCPAN!$B$10:$B$8000,$A98,BCPAN!$G$10:$G$8000)/1000 -> 63607.07443 | G98: 0.03744839417 | H98: 8283.31721 | I98: 0.1302263511 | J98: =+FIXED(E98,4) -> 0,0307 | K98: =+FIXED(I98,4) -> 0,1302 | L98: =+FIXED(H98,2) -> 8,283.32 | M98: =IF(H98 < 0, "Disminución", "Aumento") -> Aumento | N98: Pasivo | O98: =+CONCATENATE(#REF!,AnalisisBS!B98,#REF!,(AnalisisBS!J98*100),#REF!,N98,#REF!,AnalisisBS!L98,#REF!,AnalisisBS!M98,#REF!,(AnalisisBS!K98*100),#REF!) -> 
A99: 2.1.1.04. | B99: Documentos a pagar a corto plazo | D99: =SUMIF(BCPAC!$B$10:$B$8000,$A99,BCPAC!$G$10:$G$8000)/1000 -> 0 | E99: 0 | F99: =SUMIF(BCPAN!$B$10:$B$8000,$A99,BCPAN!$G$10:$G$8000)/1000 -> 0 | G99: 0 | H99: 0 | I99: 0
A100: 2.1.1.05. | B100: Inversiones patrimoniales a pagar a corto plazo | D100: =SUMIF(BCPAC!$B$10:$B$8000,$A100,BCPAC!$G$10:$G$8000)/1000 -> 0 | E100: 0 | F100: =SUMIF(BCPAN!$B$10:$B$8000,$A100,BCPAN!$G$10:$G$8000)/1000 -> 0 | G100: 0 | H100: 0 | I100: 0
A101: 2.1.1.06. | B101: Deudas por avales ejecutados a corto plazo | D101: =SUMIF(BCPAC!$B$10:$B$8000,$A101,BCPAC!$G$10:$G$8000)/1000 -> 0 | E101: 0 | F101: =SUMIF(BCPAN!$B$10:$B$8000,$A101,BCPAN!$G$10:$G$8000)/1000 -> 0 | G101: 0 | H101: 0 | I101: 0
A102: 2.1.1.07. | B102: Deudas por anticipos a corto plazo | D102: =SUMIF(BCPAC!$B$10:$B$8000,$A102,BCPAC!$G$10:$G$8000)/1000 -> 0 | E102: 0 | F102: =SUMIF(BCPAN!$B$10:$B$8000,$A102,BCPAN!$G$10:$G$8000)/1000 -> 0 | G102: 0 | H102: 0 | I102: 0
A103: 2.1.1.08. | B103: Deudas por Planillas salariales | D103: =SUMIF(BCPAC!$B$10:$B$8000,$A103,BCPAC!$G$10:$G$8000)/1000 -> 0 | E103: 0 | F103: =SUMIF(BCPAN!$B$10:$B$8000,$A103,BCPAN!$G$10:$G$8000)/1000 -> 0 | G103: 0 | H103: 0 | I103: 0
A104: 2.1.1.13. | B104: Deudas por Creditos Fiscales a favor de terceros c/p | D104: =SUMIF(BCPAC!$B$10:$B$8000,$A104,BCPAC!$G$10:$G$8000)/1000 -> 0 | E104: 0 | F104: =SUMIF(BCPAN!$B$10:$B$8000,$A104,BCPAN!$G$10:$G$8000)/1000 -> 0 | G104: 0 | H104: 0 | I104: 0
A105: 2.1.1.99. | B105: Otras deudas a corto plazo | D105: =SUMIF(BCPAC!$B$10:$B$8000,$A105,BCPAC!$G$10:$G$8000)/1000 -> 0 | E105: 0 | F105: =SUMIF(BCPAN!$B$10:$B$8000,$A105,BCPAN!$G$10:$G$8000)/1000 -> 0 | G105: 0 | H105: 0 | I105: 0
A106: 2.1.2. | B106: Endeudamiento público a corto plazo | C106: 15 | D106: =SUM(D107:D111) -> 0 | E106: 0 | F106: =SUM(F107:F111) -> 0 | G106: 0 | H106: 0 | I106: =+IFERROR(H106/F106,0) -> 0 | J106: =+FIXED(E106,4) -> 0,0000 | K106: =+FIXED(I106,4) -> 0,0000 | L106: =+FIXED(H106,2) -> 0,00 | M106: =IF(H106 < 0, "Disminución", "Aumento") -> Aumento | N106: Pasivo | O106: =+CONCATENATE(#REF!,AnalisisBS!B106,#REF!,(AnalisisBS!J106*100),#REF!,N106,#REF!,AnalisisBS!L106,#REF!,AnalisisBS!M106,#REF!,(AnalisisBS!K106*100),#REF!) -> 
A107: 2.1.2.01. | B107: Títulos y valores de la deuda pública a pagar a corto plazo | D107: =SUMIF(BCPAC!$B$10:$B$8000,$A107,BCPAC!$G$10:$G$8000)/1000 -> 0 | E107: 0 | F107: =SUMIF(BCPAN!$B$10:$B$8000,$A107,BCPAN!$G$10:$G$8000)/1000 -> 0 | G107: 0 | H107: 0 | I107: 0
A108: 2.1.2.02. | B108: Préstamos a pagar a corto plazo | D108: =SUMIF(BCPAC!$B$10:$B$8000,$A108,BCPAC!$G$10:$G$8000)/1000 -> 0 | E108: 0 | F108: =SUMIF(BCPAN!$B$10:$B$8000,$A108,BCPAN!$G$10:$G$8000)/1000 -> 0 | G108: 0 | H108: 0 | I108: 0
A109: 2.1.2.03. | B109: Deudas asumidas a corto plazo | D109: =SUMIF(BCPAC!$B$10:$B$8000,$A109,BCPAC!$G$10:$G$8000)/1000 -> 0 | E109: 0 | F109: =SUMIF(BCPAN!$B$10:$B$8000,$A109,BCPAN!$G$10:$G$8000)/1000 -> 0 | G109: 0 | H109: 0 | I109: 0
A110: 2.1.2.04. | B110: Endeudamiento de Tesorería a corto plazo | D110: =SUMIF(BCPAC!$B$10:$B$8000,$A110,BCPAC!$G$10:$G$8000)/1000 -> 0 | E110: 0 | F110: =SUMIF(BCPAN!$B$10:$B$8000,$A110,BCPAN!$G$10:$G$8000)/1000 -> 0 | G110: 0 | H110: 0 | I110: 0
A111: 2.1.2.05. | B111: Endeudamiento público a valor razonable | D111: =SUMIF(BCPAC!$B$10:$B$8000,$A111,BCPAC!$G$10:$G$8000)/1000 -> 0 | E111: 0 | F111: =SUMIF(BCPAN!$B$10:$B$8000,$A111,BCPAN!$G$10:$G$8000)/1000 -> 0 | G111: 0 | H111: 0 | I111: 0
A112: 2.1.3. | B112: Fondos de terceros y en garantía | C112: 16 | D112: =SUM(D113:D117) -> 62540.80804 | E112: 0.02671931965 | F112: =SUM(F113:F117) -> 66225.24686 | G112: 0.03898983203 | H112: -3684.43882 | I112: -0.05563495789 | J112: =+FIXED(E112,4) -> 0,0267 | K112: =+FIXED(I112,4) -> -0,0556 | L112: =+FIXED(H112,2) -> -3 684,44 | M112: =IF(H112 < 0, "Disminución", "Aumento") -> Disminución | N112: Pasivo | O112: =+CONCATENATE(#REF!,AnalisisBS!B112,#REF!,(AnalisisBS!J112*100),#REF!,N112,#REF!,AnalisisBS!L112,#REF!,AnalisisBS!M112,#REF!,(AnalisisBS!K112*100),#REF!) -> 
A113: 2.1.3.01. | B113: Fondos de terceros en la Caja Única | D113: =SUMIF(BCPAC!$B$10:$B$8000,$A113,BCPAC!$G$10:$G$8000)/1000 -> 0 | E113: 0 | F113: =SUMIF(BCPAN!$B$10:$B$8000,$A113,BCPAN!$G$10:$G$8000)/1000 -> 0 | G113: 0 | H113: 0 | I113: 0
A114: 2.1.3.02. | B114: Recaudación por cuenta de terceros | D114: =SUMIF(BCPAC!$B$10:$B$8000,$A114,BCPAC!$G$10:$G$8000)/1000 -> 0 | E114: 0 | F114: =SUMIF(BCPAN!$B$10:$B$8000,$A114,BCPAN!$G$10:$G$8000)/1000 -> 0 | G114: 0 | H114: 0 | I114: 0
A115: 2.1.3.03. | B115: Depósitos en garantía | D115: =SUMIF(BCPAC!$B$10:$B$8000,$A115,BCPAC!$G$10:$G$8000)/1000 -> 62540.80804 | E115: 0.02671931965 | F115: =SUMIF(BCPAN!$B$10:$B$8000,$A115,BCPAN!$G$10:$G$8000)/1000 -> 66225.24686 | G115: 0.03898983203 | H115: -3684.43882 | I115: -0.05563495789 | J115: =+FIXED(E115,4) -> 0,0267 | K115: =+FIXED(I115,4) -> -0.0556 | L115: =+FIXED(H115,2) -> -3,684.44 | M115: =IF(H115 < 0, "Disminución", "Aumento") -> Disminución | N115: Pasivo | O115: =+CONCATENATE(#REF!,AnalisisBS!B115,#REF!,(AnalisisBS!J115*100),#REF!,N115,#REF!,AnalisisBS!L115,#REF!,AnalisisBS!M115,#REF!,(AnalisisBS!K115*100),#REF!) -> 
A116: 2.1.3.90. | B116: Cuentas Asociadas ( Deudores ) CP | D116: =SUMIF(BCPAC!$B$10:$B$8000,$A116,BCPAC!$G$10:$G$8000)/1000 -> 0 | E116: 0 | F116: =SUMIF(BCPAN!$B$10:$B$8000,$A116,BCPAN!$G$10:$G$8000)/1000 -> 0 | G116: 0 | H116: 0 | I116: 0
A117: 2.1.3.99. | B117: Otros fondos de terceros | D117: =SUMIF(BCPAC!$B$10:$B$8000,$A117,BCPAC!$G$10:$G$8000)/1000 -> 0 | E117: 0 | F117: =SUMIF(BCPAN!$B$10:$B$8000,$A117,BCPAN!$G$10:$G$8000)/1000 -> 0 | G117: 0 | H117: 0 | I117: 0
A118: 2.1.4. | B118: Provisiones y reservas técnicas a corto plazo | C118: 17 | D118: =SUM(D119:D120) -> 0 | E118: 0 | F118: =SUM(F119:F120) -> 0 | G118: 0 | H118: 0 | I118: 0 | J118: =+FIXED(E118,4) -> 0,0000 | K118: =+FIXED(I118,4) -> 0,0000 | L118: =+FIXED(H118,2) -> 0,00 | M118: =IF(H118 < 0, "Disminución", "Aumento") -> Aumento | N118: Pasivo | O118: =+CONCATENATE(#REF!,AnalisisBS!B118,#REF!,(AnalisisBS!J118*100),#REF!,N118,#REF!,AnalisisBS!L118,#REF!,AnalisisBS!M118,#REF!,(AnalisisBS!K118*100),#REF!) -> 
A119: 2.1.4.01. | B119: Provisiones a corto plazo | D119: =SUMIF(BCPAC!$B$10:$B$8000,$A119,BCPAC!$G$10:$G$8000)/1000 -> 0 | E119: =+IFERROR(D119/$D$151,0) -> 0 | F119: =SUMIF(BCPAN!$B$10:$B$8000,$A119,BCPAN!$G$10:$G$8000)/1000 -> 0 | G119: =+IFERROR(F119/$F$151,0) -> 0 | H119: 0 | I119: =+IFERROR(H119/F119,0) -> 0 | J119: =+FIXED(E119,4) -> 0,0000 | K119: =+FIXED(I119,4) -> 0,0000 | L119: =+FIXED(H119,2) -> 0,00 | M119: =IF(H119 < 0, "Disminución", "Aumento") -> Aumento | N119: Pasivo | O119: =+CONCATENATE(#REF!,AnalisisBS!B119,#REF!,(AnalisisBS!J119*100),#REF!,N119,#REF!,AnalisisBS!L119,#REF!,AnalisisBS!M119,#REF!,(AnalisisBS!K119*100),#REF!) -> 
A120: 2.1.4.02. | B120: Reservas técnicas a corto plazo | D120: =SUMIF(BCPAC!$B$10:$B$8000,$A120,BCPAC!$G$10:$G$8000)/1000 -> 0 | E120: 0 | F120: =SUMIF(BCPAN!$B$10:$B$8000,$A120,BCPAN!$G$10:$G$8000)/1000 -> 0 | G120: 0 | H120: 0 | I120: 0
A121: 2.1.9. | B121: Otros pasivos a corto plazo | C121: 18 | D121: =SUM(D122:D124) -> 0 | E121: 0 | F121: =SUM(F122:F124) -> 0 | G121: 0 | H121: 0 | I121: =+IFERROR(H121/F121,0) -> 0 | J121: =+FIXED(E121,4) -> 0,0000 | K121: =+FIXED(I121,4) -> 0,0000 | L121: =+FIXED(H121,2) -> 0,00 | M121: =IF(H121 < 0, "Disminución", "Aumento") -> Aumento | N121: Pasivo | O121: =+CONCATENATE(#REF!,AnalisisBS!B121,#REF!,(AnalisisBS!J121*100),#REF!,N121,#REF!,AnalisisBS!L121,#REF!,AnalisisBS!M121,#REF!,(AnalisisBS!K121*100),#REF!) -> 
A122: 2.1.9.01. | B122: Ingresos a devengar a corto plazo | D122: =SUMIF(BCPAC!$B$10:$B$8000,$A122,BCPAC!$G$10:$G$8000)/1000 -> 0 | E122: 0 | F122: =SUMIF(BCPAN!$B$10:$B$8000,$A122,BCPAN!$G$10:$G$8000)/1000 -> 0 | G122: 0 | H122: 0 | I122: 0 | J122: =+FIXED(E122,4) -> 0,0000 | K122: =+FIXED(I122,4) -> 0,0000 | L122: =+FIXED(H122,2) -> 0,00 | M122: =IF(H122 < 0, "Disminución", "Aumento") -> Aumento | N122: Pasivo | O122: =+CONCATENATE(#REF!,AnalisisBS!B122,#REF!,(AnalisisBS!J122*100),#REF!,N122,#REF!,AnalisisBS!L122,#REF!,AnalisisBS!M122,#REF!,(AnalisisBS!K122*100),#REF!) -> 
A123: 2.1.9.02. | B123: Instrumentos Derivados a pagar a corto plazo | D123: =SUMIF(BCPAC!$B$10:$B$8000,$A123,BCPAC!$G$10:$G$8000)/1000 -> 0 | E123: 0 | F123: =SUMIF(BCPAN!$B$10:$B$8000,$A123,BCPAN!$G$10:$G$8000)/1000 -> 0 | G123: 0 | H123: 0 | I123: 0
A124: 2.1.9.99. | B124: Pasivos a corto plazo sujetos a depuración contable | D124: =SUMIF(BCPAC!$B$10:$B$8000,$A124,BCPAC!$G$10:$G$8000)/1000 -> 0 | E124: 0 | F124: =SUMIF(BCPAN!$B$10:$B$8000,$A124,BCPAN!$G$10:$G$8000)/1000 -> 0 | G124: 0 | H124: 0 | I124: 0
B125: Total del Pasivo Corriente | D125: =+D95+D106+D112+D118+D121 -> 162684.0762 | E125: =+E95+E106+E112+E118+E121 -> 0.06950354451 | F125: =+F95+F106+F112+F118+F121 -> 152486.9794 | G125: =+G95+G106+G112+G118+G121 -> 0.08977605967 | H125: =+H95+H106+H112+H118+H121 -> 10197.09683 | I125: =+IFERROR(H125/F125,0) -> 0.06687191831
A127: 2.2. | B127: Pasivo No Corriente
A128: 2.2.1. | B128: Deudas a largo plazo | C128: 19 | D128: =SUM(D129:D135) -> 0 | E128: =+IFERROR(D128/$D$151,0) -> 0 | F128: =SUM(F129:F135) -> 0 | G128: =+IFERROR(F128/$F$151,0) -> 0 | H128: =+D128-F128 -> 0 | I128: =+IFERROR(H128/F128,0) -> 0 | J128: =+FIXED(E128,4) -> 0,0000 | K128: =+FIXED(I128,4) -> 0,0000 | L128: =+FIXED(H128,2) -> 0,00 | M128: =IF(H128 < 0, "Disminución", "Aumento") -> Aumento | N128: Pasivo | O128: =+CONCATENATE(#REF!,AnalisisBS!B128,#REF!,(AnalisisBS!J128*100),#REF!,N128,#REF!,AnalisisBS!L128,#REF!,AnalisisBS!M128,#REF!,(AnalisisBS!K128*100),#REF!) -> 
A129: 2.2.1.01. | B129: Deudas comerciales a largo plazo | D129: =SUMIF(BCPAC!$B$10:$B$8000,$A129,BCPAC!$G$10:$G$8000)/1000 -> 0 | E129: =+IFERROR(D129/$D$151,0) -> 0 | F129: =SUMIF(BCPAN!$B$10:$B$8000,$A129,BCPAN!$G$10:$G$8000)/1000 -> 0 | G129: =+IFERROR(F129/$F$151,0) -> 0 | H129: 0 | I129: =+IFERROR(H129/F129,0) -> 0
A130: 2.2.1.02. | B130: Deudas sociales y fiscales a largo plazo | D130: =SUMIF(BCPAC!$B$10:$B$8000,$A130,BCPAC!$G$10:$G$8000)/1000 -> 0 | E130: 0 | F130: =SUMIF(BCPAN!$B$10:$B$8000,$A130,BCPAN!$G$10:$G$8000)/1000 -> 0 | G130: 0 | H130: 0 | I130: 0
A131: 2.2.1.04. | B131: Documentos a pagar a largo plazo | D131: =SUMIF(BCPAC!$B$10:$B$8000,$A131,BCPAC!$G$10:$G$8000)/1000 -> 0 | E131: 0 | F131: =SUMIF(BCPAN!$B$10:$B$8000,$A131,BCPAN!$G$10:$G$8000)/1000 -> 0 | G131: 0 | H131: 0 | I131: 0
A132: 2.2.1.05. | B132: Inversiones patrimoniales a pagar a largo plazo | D132: =SUMIF(BCPAC!$B$10:$B$8000,$A132,BCPAC!$G$10:$G$8000)/1000 -> 0 | E132: 0 | F132: =SUMIF(BCPAN!$B$10:$B$8000,$A132,BCPAN!$G$10:$G$8000)/1000 -> 0 | G132: 0 | H132: 0 | I132: 0
A133: 2.2.1.06. | B133: Deudas por avales ejecutados a largo plazo | D133: =SUMIF(BCPAC!$B$10:$B$8000,$A133,BCPAC!$G$10:$G$8000)/1000 -> 0 | E133: 0 | F133: =SUMIF(BCPAN!$B$10:$B$8000,$A133,BCPAN!$G$10:$G$8000)/1000 -> 0 | G133: 0 | H133: 0 | I133: 0
A134: 2.2.1.07. | B134: Deudas por anticipos a largo plazo | D134: =SUMIF(BCPAC!$B$10:$B$8000,$A134,BCPAC!$G$10:$G$8000)/1000 -> 0 | E134: 0 | F134: =SUMIF(BCPAN!$B$10:$B$8000,$A134,BCPAN!$G$10:$G$8000)/1000 -> 0 | G134: 0 | H134: 0 | I134: 0
A135: 2.2.1.99. | B135: Otras deudas a largo plazo | D135: =SUMIF(BCPAC!$B$10:$B$8000,$A135,BCPAC!$G$10:$G$8000)/1000 -> 0 | E135: 0 | F135: =SUMIF(BCPAN!$B$10:$B$8000,$A135,BCPAN!$G$10:$G$8000)/1000 -> 0 | G135: 0 | H135: 0 | I135: 0
A136: 2.2.2. | B136: Endeudamiento público a largo plazo | C136: 20 | D136: =SUM(D137:D139) -> 2115032.765 | E136: =+IFERROR(D136/$D$151,0) -> 0.9036057943 | F136: =SUM(F137:F139) -> 1522925.878 | G136: =+IFERROR(F136/$F$151,0) -> 0.8966161246 | H136: =+D136-F136 -> 592106.887 | I136: =+IFERROR(H136/F136,0) -> 0.3887956042 | J136: =+FIXED(E136,4) -> 0,9036 | K136: =+FIXED(I136,4) -> 0,3888 | L136: =+FIXED(H136,2) -> 592 106,89 | M136: =IF(H136 < 0, "Disminución", "Aumento") -> Aumento | N136: Pasivo | O136: =+CONCATENATE(#REF!,AnalisisBS!B136,#REF!,(AnalisisBS!J136*100),#REF!,N136,#REF!,AnalisisBS!L136,#REF!,AnalisisBS!M136,#REF!,(AnalisisBS!K136*100),#REF!) -> 
A137: 2.2.2.01. | B137: Títulos y valores de la deuda pública a pagar a largo plazo | D137: =SUMIF(BCPAC!$B$10:$B$8000,$A137,BCPAC!$G$10:$G$8000)/1000 -> 0 | E137: 0 | F137: =SUMIF(BCPAN!$B$10:$B$8000,$A137,BCPAN!$G$10:$G$8000)/1000 -> 0 | G137: 0 | H137: =+D137-F137 -> 0 | I137: 0
A138: 2.2.2.02. | B138: Préstamos a pagar a largo plazo | D138: =SUMIF(BCPAC!$B$10:$B$8000,$A138,BCPAC!$G$10:$G$8000)/1000 -> 2115032.765 | E138: 0.9036057943 | F138: =SUMIF(BCPAN!$B$10:$B$8000,$A138,BCPAN!$G$10:$G$8000)/1000 -> 1522925.878 | G138: 0.8966161246 | H138: 592106.887 | I138: 0.3887956042
A139: 2.2.2.03. | B139: Deudas asumidas a largo plazo | D139: =SUMIF(BCPAC!$B$10:$B$8000,$A139,BCPAC!$G$10:$G$8000)/1000 -> 0 | E139: 0 | F139: =SUMIF(BCPAN!$B$10:$B$8000,$A139,BCPAN!$G$10:$G$8000)/1000 -> 0 | G139: 0 | H139: 0 | I139: 0
A140: 2.2.3. | B140: Fondos de terceros y en garantía | C140: 21 | D140: =SUM(D141:D142) -> 0 | E140: 0 | F140: =SUM(F141:F142) -> 0 | G140: 0 | H140: 0 | I140: 0 | J140: =+FIXED(E140,4) -> 0,0000 | K140: =+FIXED(I140,4) -> 0,0000 | L140: =+FIXED(H140,2) -> 0,00 | M140: =IF(H140 < 0, "Disminución", "Aumento") -> Aumento | N140: Pasivo | O140: =+CONCATENATE(#REF!,AnalisisBS!B140,#REF!,(AnalisisBS!J140*100),#REF!,N140,#REF!,AnalisisBS!L140,#REF!,AnalisisBS!M140,#REF!,(AnalisisBS!K140*100),#REF!) -> 
A141: 2.2.3.01. | B141: Fondos de terceros en la Caja Única | D141: =SUMIF(BCPAC!$B$10:$B$8000,$A141,BCPAC!$G$10:$G$8000)/1000 -> 0 | E141: 0 | F141: =SUMIF(BCPAN!$B$10:$B$8000,$A141,BCPAN!$G$10:$G$8000)/1000 -> 0 | G141: 0 | H141: 0 | I141: 0
A142: 2.2.3.99. | B142: Otros fondos de terceros | D142: =SUMIF(BCPAC!$B$10:$B$8000,$A142,BCPAC!$G$10:$G$8000)/1000 -> 0 | E142: 0 | F142: =SUMIF(BCPAN!$B$10:$B$8000,$A142,BCPAN!$G$10:$G$8000)/1000 -> 0 | G142: 0 | H142: 0 | I142: 0
A143: 2.2.4. | B143: Provisiones y reservas técnicas a largo plazo | C143: 22 | D143: =SUM(D144:D145) -> 62941.86 | E143: 0.02689066115 | F143: =SUM(F144:F145) -> 23113.23 | G143: 0.01360781572 | H143: 39828.63 | I143: 1.723196195 | J143: =+FIXED(E143,4) -> 0,0269 | K143: =+FIXED(I143,4) -> 1,7232 | L143: =+FIXED(H143,2) -> 39 828,63 | M143: =IF(H143 < 0, "Disminución", "Aumento") -> Aumento | N143: Pasivo | O143: =+CONCATENATE(#REF!,AnalisisBS!B143,#REF!,(AnalisisBS!J143*100),#REF!,N143,#REF!,AnalisisBS!L143,#REF!,AnalisisBS!M143,#REF!,(AnalisisBS!K143*100),#REF!) -> 
A144: 2.2.4.01. | B144: Provisiones a largo plazo | D144: =SUMIF(BCPAC!$B$10:$B$8000,$A144,BCPAC!$G$10:$G$8000)/1000 -> 62941.86 | E144: 0.02689066115 | F144: =SUMIF(BCPAN!$B$10:$B$8000,$A144,BCPAN!$G$10:$G$8000)/1000 -> 23113.23 | G144: 0.01360781572 | H144: =+D144-F144 -> 39828.63 | I144: 1.723196195 | J144: =+FIXED(E144,4) -> 0,0269 | K144: =+FIXED(I144,4) -> 1.7232 | L144: =+FIXED(H144,2) -> 39,828.63 | M144: =IF(H144 < 0, "Disminución", "Aumento") -> Aumento | N144: Pasivo | O144: =+CONCATENATE(#REF!,AnalisisBS!B144,#REF!,(AnalisisBS!J144*100),#REF!,N144,#REF!,AnalisisBS!L144,#REF!,AnalisisBS!M144,#REF!,(AnalisisBS!K144*100),#REF!) -> 
A145: 2.2.4.02. | B145: Reservas técnicas a largo plazo | D145: =SUMIF(BCPAC!$B$10:$B$8000,$A145,BCPAC!$G$10:$G$8000)/1000 -> 0 | E145: 0 | F145: =SUMIF(BCPAN!$B$10:$B$8000,$A145,BCPAN!$G$10:$G$8000)/1000 -> 0 | G145: 0 | H145: 0 | I145: 0
A146: 2.2.9. | B146: Otros pasivos a largo plazo | C146: 23 | D146: =SUM(D147:D149) -> 0 | E146: 0 | F146: =SUM(F147:F149) -> 0 | G146: 0 | H146: 0 | I146: 0 | J146: =+FIXED(E146,4) -> 0,0000 | K146: =+FIXED(I146,4) -> 0,0000 | L146: =+FIXED(H146,2) -> 0,00 | M146: =IF(H146 < 0, "Disminución", "Aumento") -> Aumento | N146: Pasivo | O146: =+CONCATENATE(#REF!,AnalisisBS!B146,#REF!,(AnalisisBS!J146*100),#REF!,N146,#REF!,AnalisisBS!L146,#REF!,AnalisisBS!M146,#REF!,(AnalisisBS!K146*100),#REF!) -> 
A147: 2.2.9.01. | B147: Ingresos a devengar a largo plazo | D147: =SUMIF(BCPAC!$B$10:$B$8000,$A147,BCPAC!$G$10:$G$8000)/1000 -> 0 | E147: 0 | F147: =SUMIF(BCPAN!$B$10:$B$8000,$A147,BCPAN!$G$10:$G$8000)/1000 -> 0 | G147: 0 | H147: 0 | I147: 0 | J147: =+FIXED(E147,4) -> 0,0000 | K147: =+FIXED(I147,4) -> 0,0000 | L147: =+FIXED(H147,2) -> 0,00 | M147: =IF(H147 < 0, "Disminución", "Aumento") -> Aumento | N147: Pasivo | O147: =+CONCATENATE(#REF!,AnalisisBS!B147,#REF!,(AnalisisBS!J147*100),#REF!,N147,#REF!,AnalisisBS!L147,#REF!,AnalisisBS!M147,#REF!,(AnalisisBS!K147*100),#REF!) -> 
A148: 2.2.9.02. | B148: Instrumentos Derivados a pagar a largo plazo | D148: =SUMIF(BCPAC!$B$10:$B$8000,$A148,BCPAC!$G$10:$G$8000)/1000 -> 0 | E148: 0 | F148: =SUMIF(BCPAN!$B$10:$B$8000,$A148,BCPAN!$G$10:$G$8000)/1000 -> 0 | G148: 0 | H148: 0 | I148: 0
A149: 2.2.9.99. | B149: Pasivos a largo plazo sujetos a depuración contable | D149: =SUMIF(BCPAC!$B$10:$B$8000,$A149,BCPAC!$G$10:$G$8000)/1000 -> 0 | E149: 0 | F149: =SUMIF(BCPAN!$B$10:$B$8000,$A149,BCPAN!$G$10:$G$8000)/1000 -> 0 | G149: 0 | H149: 0 | I149: 0
B150: Total del Pasivo no Corriente | D150: =+D146+D143+D140+D136+D128 -> 2177974.625 | E150: =+E146+E143+E140+E136+E128 -> 0.9304964555 | F150: =+F146+F143+F140+F136+F128 -> 1546039.108 | G150: =+G146+G143+G140+G136+G128 -> 0.9102239403 | H150: =+H146+H143+H140+H136+H128 -> 631935.517 | I150: 0.4087448459
B151: TOTAL DEL PASIVO | D151: =+D150+D125 -> 2340658.701 | E151: =+E150+E125 -> 1 | F151: =+F150+F125 -> 1698526.088 | G151: =+G150+G125 -> 1 | H151: =+H150+H125 -> 642132.6138 | I151: 0.3780528415
A153: 3. | B153: PATRIMONIO
A154: 3.1. | B154: Patrimonio público
A155: 3.1.1. | B155: Capital | C155: 24 | D155: =SUM(D156:D157) -> 0.5248 | E155: =+IFERROR(D155/$D$181,0) -> 3.187206882e-09 | F155: =SUM(F156:F157) -> 0.5248 | G155: =+IFERROR(F155/$F$181,0) -> 3.197381282e-09 | H155: =+D155-F155 -> 0 | I155: =+IFERROR(H155/F155,0) -> 0 | J155: =+FIXED(E155,4) -> 0,0000 | K155: =+FIXED(I155,4) -> 0,0000 | L155: =+FIXED(H155,2) -> 0,00 | M155: =IF(H155 < 0, "Disminución", "Aumento") -> Aumento | N155: Patrimonio | O155: =+CONCATENATE(#REF!,AnalisisBS!B155,#REF!,(AnalisisBS!J155*100),#REF!,N155,#REF!,AnalisisBS!L155,#REF!,AnalisisBS!M155,#REF!,(AnalisisBS!K155*100),#REF!) -> 
A156: 3.1.1.01. | B156: Capital inicial | D156: =SUMIF(BCPAC!$B$10:$B$8000,$A156,BCPAC!$G$10:$G$8000)/1000 -> 0.5248 | E156: 3.187206882e-09 | F156: =SUMIF(BCPAN!$B$10:$B$8000,$A156,BCPAN!$G$10:$G$8000)/1000 -> 0.5248 | G156: 3.197381282e-09 | H156: 0 | I156: 0 | J156: =+FIXED(E156,4) -> 0,0000 | K156: =+FIXED(I156,4) -> 0.0000 | L156: =+FIXED(H156,2) -> 0.00 | M156: =IF(H156 < 0, "Disminución", "Aumento") -> Aumento | N156: Patrimonio | O156: =+CONCATENATE(#REF!,AnalisisBS!B156,#REF!,(AnalisisBS!J156*100),#REF!,N156,#REF!,AnalisisBS!L156,#REF!,AnalisisBS!M156,#REF!,(AnalisisBS!K156*100),#REF!) -> 
A157: 3.1.1.02. | B157: Incorporaciones al capital | D157: =SUMIF(BCPAC!$B$10:$B$8000,$A157,BCPAC!$G$10:$G$8000)/1000 -> 0 | E157: 0 | F157: =SUMIF(BCPAN!$B$10:$B$8000,$A157,BCPAN!$G$10:$G$8000)/1000 -> 0 | G157: 0 | H157: 0 | I157: 0 | J157: =+FIXED(E157,4) -> 0,0000 | K157: =+FIXED(I157,4) -> 0,0000 | L157: =+FIXED(H157,2) -> 0,00 | M157: =IF(H157 < 0, "Disminución", "Aumento") -> Aumento | N157: Patrimonio | O157: =+CONCATENATE(#REF!,AnalisisBS!B157,#REF!,(AnalisisBS!J157*100),#REF!,N157,#REF!,AnalisisBS!L157,#REF!,AnalisisBS!M157,#REF!,(AnalisisBS!K157*100),#REF!) -> 
A158: 3.1.2. | B158: Transferencias de capital | C158: 25 | D158: =SUM(D159:D160) -> 0 | E158: 0 | F158: =SUM(F159:F160) -> 0 | G158: 0 | H158: 0 | I158: 0 | J158: =+FIXED(E158,4) -> 0,0000 | K158: =+FIXED(I158,4) -> 0,0000 | L158: =+FIXED(H158,2) -> 0,00 | M158: =IF(H158 < 0, "Disminución", "Aumento") -> Aumento | N158: Patrimonio | O158: =+CONCATENATE(#REF!,AnalisisBS!B158,#REF!,(AnalisisBS!J158*100),#REF!,N158,#REF!,AnalisisBS!L158,#REF!,AnalisisBS!M158,#REF!,(AnalisisBS!K158*100),#REF!) -> 
A159: 3.1.2.01. | B159: Donaciones de capital | D159: =SUMIF(BCPAC!$B$10:$B$8000,$A159,BCPAC!$G$10:$G$8000)/1000 -> 0 | E159: 0 | F159: =SUMIF(BCPAN!$B$10:$B$8000,$A159,BCPAN!$G$10:$G$8000)/1000 -> 0 | G159: 0 | H159: 0 | I159: 0
A160: 3.1.2.99. | B160: Otras transferencias de capital | D160: =SUMIF(BCPAC!$B$10:$B$8000,$A160,BCPAC!$G$10:$G$8000)/1000 -> 0 | E160: 0 | F160: =SUMIF(BCPAN!$B$10:$B$8000,$A160,BCPAN!$G$10:$G$8000)/1000 -> 0 | G160: 0 | H160: 0 | I160: 0
A161: 3.1.3. | B161: Reservas | C161: 26 | D161: =SUM(D162:D163) -> 0 | E161: 0 | F161: =SUM(F162:F163) -> 0 | G161: 0 | H161: 0 | I161: 0 | J161: =+FIXED(E161,4) -> 0,0000 | K161: =+FIXED(I161,4) -> 0,0000 | L161: =+FIXED(H161,2) -> 0,00 | M161: =IF(H161 < 0, "Disminución", "Aumento") -> Aumento | N161: Patrimonio | O161: =+CONCATENATE(#REF!,AnalisisBS!B161,#REF!,(AnalisisBS!J161*100),#REF!,N161,#REF!,AnalisisBS!L161,#REF!,AnalisisBS!M161,#REF!,(AnalisisBS!K161*100),#REF!) -> 
A162: 3.1.3.01. | B162: Revaluación de bienes | D162: =SUMIF(BCPAC!$B$10:$B$8000,$A162,BCPAC!$G$10:$G$8000)/1000 -> 0 | E162: 0 | F162: =SUMIF(BCPAN!$B$10:$B$8000,$A162,BCPAN!$G$10:$G$8000)/1000 -> 0 | G162: 0 | H162: 0 | I162: 0
A163: 3.1.3.99. | B163: Otras reservas | D163: =SUMIF(BCPAC!$B$10:$B$8000,$A163,BCPAC!$G$10:$G$8000)/1000 -> 0 | E163: 0 | F163: =SUMIF(BCPAN!$B$10:$B$8000,$A163,BCPAN!$G$10:$G$8000)/1000 -> 0 | G163: 0 | H163: 0 | I163: 0
A164: 3.1.4. | B164: Variaciones no asignables a reservas | C164: 27 | D164: =SUM(D165:D168) -> 0 | E164: 0 | F164: =SUM(F165:F168) -> 0 | G164: 0 | H164: 0 | I164: 0 | J164: =+FIXED(E164,4) -> 0,0000 | K164: =+FIXED(I164,4) -> 0,0000 | L164: =+FIXED(H164,2) -> 0,00 | M164: =IF(H164 < 0, "Disminución", "Aumento") -> Aumento | N164: Patrimonio | O164: =+CONCATENATE(#REF!,AnalisisBS!B164,#REF!,(AnalisisBS!J164*100),#REF!,N164,#REF!,AnalisisBS!L164,#REF!,AnalisisBS!M164,#REF!,(AnalisisBS!K164*100),#REF!) -> 
A165: 3.1.4.01. | B165: Diferencias de conversión de moneda extranjera | D165: =SUMIF(BCPAC!$B$10:$B$8000,$A165,BCPAC!$G$10:$G$8000)/1000 -> 0 | E165: 0 | F165: =SUMIF(BCPAN!$B$10:$B$8000,$A165,BCPAN!$G$10:$G$8000)/1000 -> 0 | G165: 0 | H165: 0 | I165: 0
A166: 3.1.4.02. | B166: Diferencias de valor razonable de activos financieros destinados a la venta | D166: =SUMIF(BCPAC!$B$10:$B$8000,$A166,BCPAC!$G$10:$G$8000)/1000 -> 0 | E166: 0 | F166: =SUMIF(BCPAN!$B$10:$B$8000,$A166,BCPAN!$G$10:$G$8000)/1000 -> 0 | G166: 0 | H166: 0 | I166: 0
A167: 3.1.4.03. | B167: Diferencias de valor razonable de instrumentos financieros designados como cobertura | D167: =SUMIF(BCPAC!$B$10:$B$8000,$A167,BCPAC!$G$10:$G$8000)/1000 -> 0 | E167: 0 | F167: =SUMIF(BCPAN!$B$10:$B$8000,$A167,BCPAN!$G$10:$G$8000)/1000 -> 0 | G167: 0 | H167: 0 | I167: 0
A168: 3.1.4.99. | B168: Otras variaciones no asignables a reservas | D168: =SUMIF(BCPAC!$B$10:$B$8000,$A168,BCPAC!$G$10:$G$8000)/1000 -> 0 | E168: 0 | F168: =SUMIF(BCPAN!$B$10:$B$8000,$A168,BCPAN!$G$10:$G$8000)/1000 -> 0 | G168: 0 | H168: 0 | I168: 0
A169: 3.1.5. | B169: Resultados acumulados | C169: 28 | D169: =SUM(D170:D171) -> 164658278.5 | E169: 0.9999999968 | F169: =SUM(F170:F171) -> 164134318.7 | G169: 0.9999999968 | H169: 523959.7545 | I169: 0.003192262037 | J169: =+FIXED(E169,4) -> 1,0000 | K169: =+FIXED(I169,4) -> 0.0032 | L169: =+FIXED(H169,2) -> 523,959.75 | M169: =IF(H169 < 0, "Disminución", "Aumento") -> Aumento | N169: Patrimonio | O169: =+CONCATENATE(#REF!,AnalisisBS!B169,#REF!,(AnalisisBS!J169*100),#REF!,N169,#REF!,AnalisisBS!L169,#REF!,AnalisisBS!M169,#REF!,(AnalisisBS!K169*100),#REF!) -> 
A170: 3.1.5.01. | B170: Resultados acumulados de ejercicios anteriores | D170: =SUMIF(BCPAC!$B$10:$B$8000,$A170,BCPAC!$G$10:$G$8000)/1000 -> 164115700.7 | E170: 0.9967048225 | F170: =SUMIF(BCPAN!$B$10:$B$8000,$A170,BCPAN!$G$10:$G$8000)/1000 -> 164277816 | G170: 1.000874264 | H170: -162115.2913 | I170: -0.0009868361728 | J170: =+FIXED(E170,4) -> 0,9967 | K170: =+FIXED(I170,4) -> -0.0010 | L170: =+FIXED(H170,2) -> -162,115.29 | M170: =IF(H170 < 0, "Disminución", "Aumento") -> Disminución | N170: Patrimonio | O170: =+CONCATENATE(#REF!,AnalisisBS!B170,#REF!,(AnalisisBS!J170*100),#REF!,N170,#REF!,AnalisisBS!L170,#REF!,AnalisisBS!M170,#REF!,(AnalisisBS!K170*100),#REF!) -> 
A171: 3.1.5.02. | B171: Resultado del ejercicio | D171: =+((SUMIF(BCPAC!B:B,"4.",BCPAC!G:G)-SUMIF(BCPAC!B:B,"5.",BCPAC!G:G))/1000) -> 542577.7243 | E171: 0.00329517427 | F171: =+((SUMIF(BCPAN!B:B,"4.",BCPAN!G:G)-SUMIF(BCPAN!B:B,"5.",BCPAN!G:G))/1000) -> -143497.3215 | G171: -0.0008742676253 | H171: 686075.0458 | I171: -4.781100013 | J171: =+FIXED(E171,4) -> 0,0033 | K171: =+FIXED(I171,4) -> -4.7811 | L171: =+FIXED(H171,2) -> 686,075.05 | M171: =IF(H171 < 0, "Disminución", "Aumento") -> Aumento | N171: Patrimonio | O171: =+CONCATENATE(#REF!,AnalisisBS!B171,#REF!,(AnalisisBS!J171*100),#REF!,N171,#REF!,AnalisisBS!L171,#REF!,AnalisisBS!M171,#REF!,(AnalisisBS!K171*100),#REF!) -> 
A172: 3.2. | B172: Intereses minoritarios | D172: =SUMIF(BCPAC!$B$10:$B$8000,$A172,BCPAC!$G$10:$G$8000)/1000 -> 0 | E172: 0 | F172: =SUMIF(BCPAN!$B$10:$B$8000,$A172,BCPAN!$G$10:$G$8000)/1000 -> 0 | G172: 0 | H172: 0 | I172: 0
A173: 3.2.1. | B173: Intereses minoritarios - Participaciones en el patrimonio de entidades controladas | C173: 29 | D173: =SUM(D174:D175) -> 0 | E173: 0 | F173: =SUM(F174:F175) -> 0 | G173: 0 | H173: 0 | I173: 0 | J173: =+FIXED(E173,4) -> 0,0000 | K173: =+FIXED(I173,4) -> 0,0000 | L173: =+FIXED(H173,2) -> 0,00 | M173: =IF(H173 < 0, "Disminución", "Aumento") -> Aumento | N173: Patrimonio | O173: =+CONCATENATE(#REF!,AnalisisBS!B173,#REF!,(AnalisisBS!J173*100),#REF!,N173,#REF!,AnalisisBS!L173,#REF!,AnalisisBS!M173,#REF!,(AnalisisBS!K173*100),#REF!) -> 
A174: 3.2.1.01. | B174: Intereses minoritarios - Participaciones en el patrimonio de entidades del sector gobierno general | D174: =SUMIF(BCPAC!$B$10:$B$8000,$A174,BCPAC!$G$10:$G$8000)/1000 -> 0 | E174: 0 | F174: =SUMIF(BCPAN!$B$10:$B$8000,$A174,BCPAN!$G$10:$G$8000)/1000 -> 0 | G174: 0 | H174: 0 | I174: 0
A175: 3.2.1.02. | B175: Intereses minoritarios - Participaciones en el patrimonio de empresas públicas e instituciones públicas financieras | D175: =SUMIF(BCPAC!$B$10:$B$8000,$A175,BCPAC!$G$10:$G$8000)/1000 -> 0 | E175: 0 | F175: =SUMIF(BCPAN!$B$10:$B$8000,$A175,BCPAN!$G$10:$G$8000)/1000 -> 0 | G175: 0 | H175: 0 | I175: 0
A176: 3.2.2. | B176: Intereses minoritarios - Evolución | C176: 30 | D176: =SUM(D177:D180) -> 0 | E176: 0 | F176: =SUM(F177:F180) -> 0 | G176: 0 | H176: 0 | I176: 0 | J176: =+FIXED(E176,4) -> 0,0000 | K176: =+FIXED(I176,4) -> 0,0000 | L176: =+FIXED(H176,2) -> 0,00 | M176: =IF(H176 < 0, "Disminución", "Aumento") -> Aumento | N176: Patrimonio | O176: =+CONCATENATE(#REF!,AnalisisBS!B176,#REF!,(AnalisisBS!J176*100),#REF!,N176,#REF!,AnalisisBS!L176,#REF!,AnalisisBS!M176,#REF!,(AnalisisBS!K176*100),#REF!) -> 
A177: 3.2.2.01. | B177: Intereses minoritarios - Evolución por reservas | D177: =SUMIF(BCPAC!$B$10:$B$8000,$A177,BCPAC!$G$10:$G$8000)/1000 -> 0 | E177: 0 | F177: =SUMIF(BCPAN!$B$10:$B$8000,$A177,BCPAN!$G$10:$G$8000)/1000 -> 0 | G177: 0 | H177: 0 | I177: 0
A178: 3.2.2.02. | B178: Intereses minoritarios - Evolución por variaciones no asignables a reservas | D178: =SUMIF(BCPAC!$B$10:$B$8000,$A178,BCPAC!$G$10:$G$8000)/1000 -> 0 | E178: 0 | F178: =SUMIF(BCPAN!$B$10:$B$8000,$A178,BCPAN!$G$10:$G$8000)/1000 -> 0 | G178: 0 | H178: 0 | I178: 0
A179: 3.2.2.03. | B179: Intereses minoritarios - Evolución por resultados acumulados | D179: =SUMIF(BCPAC!$B$10:$B$8000,$A179,BCPAC!$G$10:$G$8000)/1000 -> 0 | E179: 0 | F179: =SUMIF(BCPAN!$B$10:$B$8000,$A179,BCPAN!$G$10:$G$8000)/1000 -> 0 | G179: 0 | H179: 0 | I179: 0
A180: 3.2.2.99. | B180: Intereses minoritarios - Evolución por otros componentes del patrimonio | D180: =SUMIF(BCPAC!$B$10:$B$8000,$A180,BCPAC!$G$10:$G$8000)/1000 -> 0 | E180: 0 | F180: =SUMIF(BCPAN!$B$10:$B$8000,$A180,BCPAN!$G$10:$G$8000)/1000 -> 0 | G180: 0 | H180: 0 | I180: 0
B181: TOTAL DEL PATRIMONIO | D181: =+D176+D173+D169+D164+D161+D158+D155 -> 164658279 | E181: =+E176+E173+E169+E164+E161+E158+E155 -> 1 | F181: =+F176+F173+F169+F164+F161+F158+F155 -> 164134319.2 | G181: =+G176+G173+G169+G164+G161+G158+G155 -> 1 | H181: =+H176+H173+H169+H164+H161+H158+H155 -> 523959.7545 | I181: 0.003192262026
B182: TOTAL DEL PASIVO Y PATRIMONIO | D182: =+D181+D151 -> 166998937.7 | F182: =+F181+F151 -> 165832845.3 | H182: =+H181+H151 -> 1166092.368 | I182: 0.007031733467
D184: =D182-D91 -> 8.001923561e-05 | F184: =+F91-F151-F181 -> -9.983778e-06
A185: 3.1.5. | B185: Resultados acumulados | C185: 28 | D185: =D186+D187 -> 166672903.7 | F185: =F186+F187 -> 163528313.7 | H185: =F185-D185 -> -3144590.037
A186: 3.1.5.01. | B186: Resultados acumulados de ejercicios anteriores | D186: =D170 -> 164115700.7 | F186: 163528313.7 | H186: =D186-F186 -> 587387.0915
A187: 3.1.5.02. | B187: Resultado del ejercicio | D187: 2557202.946 | F187: 0 | H187: =D187-F187 -> 2557202.946
B188: TOTAL DEL PATRIMONIO | D188: =D181 -> 164658279 | F188: =F181 -> 164134319.2 | H188: =H181 -> 523959.7545
F189: =F191+F192 -> 163528313.7
A190: 3.1.5. | B190: Resultados acumulados | C190: 28 | D190: =SUM(D191:D192) -> 164658278.5 | E190: =+IFERROR(D190/$D$181,0) -> 0.9999999968 | F190: =SUM(F191:F192) -> 163528313.7 | G190: =+IFERROR(F190/$F$181,0) -> 0.9963078679 | H190: =+D190-F190 -> 1129964.816 | I190: =+IFERROR(H190/F190,0) -> 0.006909903188
A191: 3.1.5.01. | B191: Resultados acumulados de ejercicios anteriores | D191: =SUMIF(BCPAC!$B$10:$B$8000,$A191,BCPAC!$G$10:$G$8000)/1000 -> 164115700.7 | E191: =+IFERROR(D191/$D$181,0) -> 0.9967048225 | F191: 163528313.7 | G191: =+IFERROR(F191/$F$181,0) -> 0.9963078679 | H191: =+D191-F191 -> 587387.0915 | I191: =+IFERROR(H191/F191,0) -> 0.003591959572
A192: 3.1.5.02. | B192: Resultado del ejercicio | D192: =+((SUMIF(BCPAC!B:B,"4.",BCPAC!G:G)-SUMIF(BCPAC!B:B,"5.",BCPAC!G:G))/1000) -> 542577.7243 | E192: =+IFERROR(D192/$D$181,0) -> 0.00329517427 | F192: 0 | G192: =+IFERROR(F192/$F$181,0) -> 0 | H192: =+D192-F192 -> 542577.7243 | I192: =+IFERROR(H192/F192,0) -> 0
A193: 3.2. | B193: Intereses minoritarios | D193: =SUMIF(BCPAC!$B$10:$B$8000,$A193,BCPAC!$G$10:$G$8000)/1000 -> 0 | E193: =+IFERROR(D193/$D$181,0) -> 0 | F193: =SUMIF(BCPAN!$B$10:$B$8000,$A193,BCPAN!$G$10:$G$8000)/1000 -> 0 | G193: =+IFERROR(F193/$F$181,0) -> 0 | H193: =+D193-F193 -> 0 | I193: =+IFERROR(H193/F193,0) -> 0

Sheet AnalisisER
A1: =+Datos!C2 -> Municipalidad de Buenos Aires
A2: Análisis al Estado de Rendimiento Financiero Comparativo
A3: =+Datos!C4 -> Del 01 de Enero 2024 al 31 de diciembre del 2024
A4: - En miles de colones -
A6: Cuenta | B6: Descripción | C6: Nota | D6: =+Datos!D5 -> 2024-12-31 | E6: % análisis vertical | F6: =+Datos!F5 -> 2023-12-31 | G6: % | H6: Monto variación Absoluta | I6: % Variación relativa
A8: 4. | B8: INGRESOS
A9: 4.1. | B9: Impuestos
A10: 4.1.1. | B10: Impuestos sobre los ingresos, las utilidades y las ganancias de capital | C10: 31 | D10: =SUM(D11:D14) -> 0 | E10: =+IFERROR(D10/$D$133,0) -> 0 | F10: =SUM(F11:F14) -> 0 | G10: =+IFERROR(F10/$F$133,0) -> 0 | H10: =+D10-F10 -> 0 | I10: =+IFERROR(H10/F10,0) -> 0 | J10: =+FIXED(E10,4) -> 0,0000 | K10: =+FIXED(I10,4) -> 0,0000 | L10: =+FIXED(H10,2) -> 0,00 | M10: =IF(H10 < 0, "Disminución", "Aumento") -> Aumento | N10: Ingresos | O10: =+CONCATENATE(#REF!,AnalisisER!B10,#REF!,(AnalisisER!J10*100),#REF!,N10,#REF!,AnalisisER!L10,#REF!,AnalisisER!M10,#REF!,(AnalisisER!K10*100),#REF!) -> 
A11: 4.1.1.01. | B11: Impuestos sobre los ingresos y utilidades de personas físicas | D11: =SUMIF(BCPAC!$B$10:$B$8000,$A11,BCPAC!$G$10:$G$8000)/1000 -> 0 | E11: 0 | F11: =SUMIF(BCPAN!$B$10:$B$8000,$A11,BCPAN!$G$10:$G$8000)/1000 -> 0 | G11: 0 | H11: 0 | I11: =+IFERROR(H11/F11,0) -> 0
A12: 4.1.1.02. | B12: Impuestos sobre los ingresos y utilidades de personas jurídicas | D12: =SUMIF(BCPAC!$B$10:$B$8000,$A12,BCPAC!$G$10:$G$8000)/1000 -> 0 | E12: 0 | F12: =SUMIF(BCPAN!$B$10:$B$8000,$A12,BCPAN!$G$10:$G$8000)/1000 -> 0 | G12: 0 | H12: 0 | I12: 0
A13: 4.1.1.03. | B13: Impuestos sobre dividendos e intereses de títulos valores | D13: =SUMIF(BCPAC!$B$10:$B$8000,$A13,BCPAC!$G$10:$G$8000)/1000 -> 0 | E13: 0 | F13: =SUMIF(BCPAN!$B$10:$B$8000,$A13,BCPAN!$G$10:$G$8000)/1000 -> 0 | G13: 0 | H13: 0 | I13: 0
A14: 4.1.1.99. | B14: Otros impuestos sobre los ingresos, las utilidades y las ganancias de capital | D14: =SUMIF(BCPAC!$B$10:$B$8000,$A14,BCPAC!$G$10:$G$8000)/1000 -> 0 | E14: 0 | F14: =SUMIF(BCPAN!$B$10:$B$8000,$A14,BCPAN!$G$10:$G$8000)/1000 -> 0 | G14: 0 | H14: 0 | I14: 0
A15: 4.1.2. | B15: Impuestos sobre la propiedad | C15: 32 | D15: =SUM(D16:D21) -> 648621.2653 | E15: 0.1117322135 | F15: =SUM(F16:F21) -> 707206.0393 | G15: 0.124810896 | H15: -58584.77402 | I15: -0.08283975357 | J15: =+FIXED(E15,4) -> 0,1117 | K15: =+FIXED(I15,4) -> -0,0828 | L15: =+FIXED(H15,2) -> -58 584,77 | M15: =IF(H15 < 0, "Disminución", "Aumento") -> Disminución | N15: Ingresos | O15: =+CONCATENATE(#REF!,AnalisisER!B15,#REF!,(AnalisisER!J15*100),#REF!,N15,#REF!,AnalisisER!L15,#REF!,AnalisisER!M15,#REF!,(AnalisisER!K15*100),#REF!) -> 
A16: 4.1.2.01. | B16: Impuesto sobre la propiedad de bienes inmuebles | D16: =SUMIF(BCPAC!$B$10:$B$8000,$A16,BCPAC!$G$10:$G$8000)/1000 -> 648621.2653 | E16: =+IFERROR(D16/$D$133,0) -> 0.1117322135 | F16: =SUMIF(BCPAN!$B$10:$B$8000,$A16,BCPAN!$G$10:$G$8000)/1000 -> 707206.0393 | G16: =+IFERROR(F16/$F$133,0) -> 0.124810896 | H16: -58584.77402 | I16: -0.08283975357
A17: 4.1.2.02. | B17: Impuesto sobre la propiedad de vehículos, aeronaves y embarcaciones | D17: =SUMIF(BCPAC!$B$10:$B$8000,$A17,BCPAC!$G$10:$G$8000)/1000 -> 0 | E17: 0 | F17: =SUMIF(BCPAN!$B$10:$B$8000,$A17,BCPAN!$G$10:$G$8000)/1000 -> 0 | G17: 0 | H17: 0 | I17: 0
A18: 4.1.2.03. | B18: Impuesto sobre el patrimonio | D18: =SUMIF(BCPAC!$B$10:$B$8000,$A18,BCPAC!$G$10:$G$8000)/1000 -> 0 | E18: 0 | F18: =SUMIF(BCPAN!$B$10:$B$8000,$A18,BCPAN!$G$10:$G$8000)/1000 -> 0 | G18: 0 | H18: 0 | I18: 0
A19: 4.1.2.04. | B19: Impuesto sobre los traspasos de bienes inmuebles | D19: =SUMIF(BCPAC!$B$10:$B$8000,$A19,BCPAC!$G$10:$G$8000)/1000 -> 0 | E19: 0 | F19: =SUMIF(BCPAN!$B$10:$B$8000,$A19,BCPAN!$G$10:$G$8000)/1000 -> 0 | G19: 0 | H19: 0 | I19: 0
A20: 4.1.2.05. | B20: Impuesto a los traspasos de vehículos, aeronaves y embarcaciones | D20: =SUMIF(BCPAC!$B$10:$B$8000,$A20,BCPAC!$G$10:$G$8000)/1000 -> 0 | E20: 0 | F20: =SUMIF(BCPAN!$B$10:$B$8000,$A20,BCPAN!$G$10:$G$8000)/1000 -> 0 | G20: 0 | H20: 0 | I20: 0
A21: 4.1.2.99. | B21: Otros impuestos a la propiedad | D21: =SUMIF(BCPAC!$B$10:$B$8000,$A21,BCPAC!$G$10:$G$8000)/1000 -> 0 | E21: 0 | F21: =SUMIF(BCPAN!$B$10:$B$8000,$A21,BCPAN!$G$10:$G$8000)/1000 -> 0 | G21: 0 | H21: 0 | I21: 0
A22: 4.1.3. | B22: Impuestos sobre bienes y servicios | C22: 33 | D22: =SUM(D23:D25) -> 396638.1494 | E22: =+IFERROR(D22/$D$133,0) -> 0.06832532443 | F22: =SUM(F23:F25) -> 428075.5114 | G22: =+IFERROR(F22/$F$133,0) -> 0.0755486876 | H22: -31437.36205 | I22: -0.07343882378 | J22: =+FIXED(E22,4) -> 0,0683 | K22: =+FIXED(I22,4) -> -0,0734 | L22: =+FIXED(H22,2) -> -31 437,36 | M22: =IF(H22 < 0, "Disminución", "Aumento") -> Disminución | N22: Ingresos | O22: =+CONCATENATE(#REF!,AnalisisER!B22,#REF!,(AnalisisER!J22*100),#REF!,N22,#REF!,AnalisisER!L22,#REF!,AnalisisER!M22,#REF!,(AnalisisER!K22*100),#REF!) -> 
A23: 4.1.3.01. | B23: Impuestos generales y selectivos sobre ventas y consumo | D23: =SUMIF(BCPAC!$B$10:$B$8000,$A23,BCPAC!$G$10:$G$8000)/1000 -> 308988.1813 | E23: 0.05322664439 | F23: =SUMIF(BCPAN!$B$10:$B$8000,$A23,BCPAN!$G$10:$G$8000)/1000 -> 304514.2248 | G23: 0.05374203715 | H23: 4473.95647 | I23: 0.01469210994
A24: 4.1.3.02. | B24: Impuestos específicos sobre la producción y consumo de bienes y servicios | D24: =SUMIF(BCPAC!$B$10:$B$8000,$A24,BCPAC!$G$10:$G$8000)/1000 -> 81326.94311 | E24: 0.01400946879 | F24: =SUMIF(BCPAN!$B$10:$B$8000,$A24,BCPAN!$G$10:$G$8000)/1000 -> 118061.2866 | G24: 0.02083598576 | H24: -36734.34352 | I24: -0.3111463933
A25: 4.1.3.99. | B25: Otros impuestos sobre bienes y servicios | D25: =SUMIF(BCPAC!$B$10:$B$8000,$A25,BCPAC!$G$10:$G$8000)/1000 -> 6323.025 | E25: 0.00108921125 | F25: =SUMIF(BCPAN!$B$10:$B$8000,$A25,BCPAN!$G$10:$G$8000)/1000 -> 5500 | G25: 0.0009706646857 | H25: 823.025 | I25: 0.1496409091
A26: 4.1.4. | B26: Impuestos sobre el comercio exterior y transacciones internacionales | C26: 34 | D26: =SUM(D27:D29) -> 0 | E26: 0 | F26: =SUM(F27:F29) -> 0 | G26: 0 | H26: 0 | I26: 0 | J26: =+FIXED(E26,4) -> 0,0000 | K26: =+FIXED(I26,4) -> 0,0000 | L26: =+FIXED(H26,2) -> 0,00 | M26: =IF(H26 < 0, "Disminución", "Aumento") -> Aumento | N26: Ingresos | O26: =+CONCATENATE(#REF!,AnalisisER!B26,#REF!,(AnalisisER!J26*100),#REF!,N26,#REF!,AnalisisER!L26,#REF!,AnalisisER!M26,#REF!,(AnalisisER!K26*100),#REF!) -> 
A27: 4.1.4.01. | B27: Impuestos a las importaciones | D27: =SUMIF(BCPAC!$B$10:$B$8000,$A27,BCPAC!$G$10:$G$8000)/1000 -> 0 | E27: 0 | F27: =SUMIF(BCPAN!$B$10:$B$8000,$A27,BCPAN!$G$10:$G$8000)/1000 -> 0 | G27: 0 | H27: 0 | I27: =+IFERROR(H27/F27,0) -> 0
A28: 4.1.4.02. | B28: Impuestos a las exportaciones | D28: =SUMIF(BCPAC!$B$10:$B$8000,$A28,BCPAC!$G$10:$G$8000)/1000 -> 0 | E28: 0 | F28: =SUMIF(BCPAN!$B$10:$B$8000,$A28,BCPAN!$G$10:$G$8000)/1000 -> 0 | G28: 0 | H28: 0 | I28: =+IFERROR(H28/F28,0) -> 0
A29: 4.1.4.99. | B29: Otros impuestos sobre el comercio exterior y transacciones internacionales | D29: =SUMIF(BCPAC!$B$10:$B$8000,$A29,BCPAC!$G$10:$G$8000)/1000 -> 0 | E29: 0 | F29: =SUMIF(BCPAN!$B$10:$B$8000,$A29,BCPAN!$G$10:$G$8000)/1000 -> 0 | G29: 0 | H29: 0 | I29: =+IFERROR(H29/F29,0) -> 0
A30: 4.1.9. | B30: Otros impuestos | C30: 35 | D30: =SUM(D31:D32) -> 0 | E30: 0 | F30: =SUM(F31:F32) -> 0 | G30: 0 | H30: 0 | I30: =+IFERROR(H30/F30,0) -> 0 | J30: =+FIXED(E30,4) -> 0,0000 | K30: =+FIXED(I30,4) -> 0,0000 | L30: =+FIXED(H30,2) -> 0,00 | M30: =IF(H30 < 0, "Disminución", "Aumento") -> Aumento | N30: Ingresos | O30: =+CONCATENATE(#REF!,AnalisisER!B30,#REF!,(AnalisisER!J30*100),#REF!,N30,#REF!,AnalisisER!L30,#REF!,AnalisisER!M30,#REF!,(AnalisisER!K30*100),#REF!) -> 
A31: 4.1.9.99. | B31: Otros impuestos sin discriminar | D31: =SUMIF(BCPAC!$B$10:$B$8000,$A31,BCPAC!$G$10:$G$8000)/1000 -> 0 | E31: 0 | F31: =SUMIF(BCPAN!$B$10:$B$8000,$A31,BCPAN!$G$10:$G$8000)/1000 -> 0 | G31: 0 | H31: 0 | I31: =+IFERROR(H31/F31,0) -> 0
A32: 4.2. | B32: Contribuciones sociales
A33: 4.2.1. | B33: Contribuciones a la seguridad social | C33: 36 | D33: =SUM(D34:D36) -> 0 | E33: =+IFERROR(D33/$D$133,0) -> 0 | F33: =SUM(F34:F36) -> 0 | G33: =+IFERROR(F33/$F$133,0) -> 0 | H33: =+D33-F33 -> 0 | I33: =+IFERROR(H33/F33,0) -> 0 | J33: =+FIXED(E33,4) -> 0,0000 | K33: =+FIXED(I33,4) -> 0,0000 | L33: =+FIXED(H33,2) -> 0,00 | M33: =IF(H33 < 0, "Disminución", "Aumento") -> Aumento | N33: Ingresos | O33: =+CONCATENATE(#REF!,AnalisisER!B33,#REF!,(AnalisisER!J33*100),#REF!,N33,#REF!,AnalisisER!L33,#REF!,AnalisisER!M33,#REF!,(AnalisisER!K33*100),#REF!) -> 
A34: 4.2.1.01. | B34: Contribuciones al seguro de pensiones | D34: =SUMIF(BCPAC!$B$10:$B$8000,$A34,BCPAC!$G$10:$G$8000)/1000 -> 0 | E34: 0 | F34: =SUMIF(BCPAN!$B$10:$B$8000,$A34,BCPAN!$G$10:$G$8000)/1000 -> 0 | G34: 0 | H34: 0 | I34: 0
A35: 4.2.1.02. | B35: Contribuciones a regímenes especiales de pensiones | D35: =SUMIF(BCPAC!$B$10:$B$8000,$A35,BCPAC!$G$10:$G$8000)/1000 -> 0 | E35: 0 | F35: =SUMIF(BCPAN!$B$10:$B$8000,$A35,BCPAN!$G$10:$G$8000)/1000 -> 0 | G35: 0 | H35: 0 | I35: 0
A36: 4.2.1.03. | B36: Contribuciones al seguro de salud | D36: =SUMIF(BCPAC!$B$10:$B$8000,$A36,BCPAC!$G$10:$G$8000)/1000 -> 0 | E36: 0 | F36: =SUMIF(BCPAN!$B$10:$B$8000,$A36,BCPAN!$G$10:$G$8000)/1000 -> 0 | G36: 0 | H36: 0 | I36: 0
A37: 4.2.9. | B37: Contribuciones sociales diversas | C37: 37 | D37: =SUM(D38:D39) -> 0 | E37: 0 | F37: =SUM(F38:F39) -> 0 | G37: 0 | H37: 0 | I37: 0 | J37: =+FIXED(E37,4) -> 0,0000 | K37: =+FIXED(I37,4) -> 0,0000 | L37: =+FIXED(H37,2) -> 0,00 | M37: =IF(H37 < 0, "Disminución", "Aumento") -> Aumento | N37: Ingresos | O37: =+CONCATENATE(#REF!,AnalisisER!B37,#REF!,(AnalisisER!J37*100),#REF!,N37,#REF!,AnalisisER!L37,#REF!,AnalisisER!M37,#REF!,(AnalisisER!K37*100),#REF!) -> 
A38: 4.2.9.99. | B38: Otras contribuciones sociales | D38: =SUMIF(BCPAC!$B$10:$B$8000,$A38,BCPAC!$G$10:$G$8000)/1000 -> 0 | E38: 0 | F38: =SUMIF(BCPAN!$B$10:$B$8000,$A38,BCPAN!$G$10:$G$8000)/1000 -> 0 | G38: 0 | H38: 0 | I38: 0
A39: 4.3. | B39: Multas, sanciones, remates y confiscaciones de origen no tributario
A40: 4.3.1. | B40: Multas y sanciones administrativas | C40: 38 | D40: =SUM(D41:D44) -> 0 | E40: =+IFERROR(D40/$D$133,0) -> 0 | F40: =SUM(F41:F44) -> 0 | G40: =+IFERROR(F40/$F$133,0) -> 0 | H40: =+D40-F40 -> 0 | I40: =+IFERROR(H40/F40,0) -> 0 | J40: =+FIXED(E40,4) -> 0,0000 | K40: =+FIXED(I40,4) -> 0,0000 | L40: =+FIXED(H40,2) -> 0,00 | M40: =IF(H40 < 0, "Disminución", "Aumento") -> Aumento | N40: Ingresos | O40: =+CONCATENATE(#REF!,AnalisisER!B40,#REF!,(AnalisisER!J40*100),#REF!,N40,#REF!,AnalisisER!L40,#REF!,AnalisisER!M40,#REF!,(AnalisisER!K40*100),#REF!) -> 
A41: 4.3.1.01. | B41: Multas de tránsito | D41: =SUMIF(BCPAC!$B$10:$B$8000,$A41,BCPAC!$G$10:$G$8000)/1000 -> 0 | E41: 0 | F41: =SUMIF(BCPAN!$B$10:$B$8000,$A41,BCPAN!$G$10:$G$8000)/1000 -> 0 | G41: 0 | H41: 0 | I41: 0
A42: 4.3.1.02. | B42: Multas por atraso en el pago de bienes y servicios | D42: =SUMIF(BCPAC!$B$10:$B$8000,$A42,BCPAC!$G$10:$G$8000)/1000 -> 0 | E42: 0 | F42: =SUMIF(BCPAN!$B$10:$B$8000,$A42,BCPAN!$G$10:$G$8000)/1000 -> 0 | G42: 0 | H42: 0 | I42: 0
A43: 4.3.1.03. | B43: Sanciones administrativas | D43: =SUMIF(BCPAC!$B$10:$B$8000,$A43,BCPAC!$G$10:$G$8000)/1000 -> 0 | E43: 0 | F43: =SUMIF(BCPAN!$B$10:$B$8000,$A43,BCPAN!$G$10:$G$8000)/1000 -> 0 | G43: 0 | H43: 0 | I43: 0
A44: 4.3.1.99. | B44: Otras multas | D44: =SUMIF(BCPAC!$B$10:$B$8000,$A44,BCPAC!$G$10:$G$8000)/1000 -> 0 | E44: 0 | F44: =SUMIF(BCPAN!$B$10:$B$8000,$A44,BCPAN!$G$10:$G$8000)/1000 -> 0 | G44: 0 | H44: 0 | I44: 0
A45: 4.3.2. | B45: Remates y confiscaciones de origen no tributario | C45: 39 | D45: =SUM(D46) -> 0 | E45: 0 | F45: =SUM(F46) -> 0 | G45: 0 | H45: =+D45-F45 -> 0 | I45: 0 | J45: =+FIXED(E45,4) -> 0,0000 | K45: =+FIXED(I45,4) -> 0,0000 | L45: =+FIXED(H45,2) -> 0,00 | M45: =IF(H45 < 0, "Disminución", "Aumento") -> Aumento | N45: Ingresos | O45: =+CONCATENATE(#REF!,AnalisisER!B45,#REF!,(AnalisisER!J45*100),#REF!,N45,#REF!,AnalisisER!L45,#REF!,AnalisisER!M45,#REF!,(AnalisisER!K45*100),#REF!) -> 
A46: 4.3.2.99. | B46: Otros remates y confiscaciones de origen no tributario | D46: =SUMIF(BCPAC!$B$10:$B$8000,$A46,BCPAC!$G$10:$G$8000)/1000 -> 0 | E46: 0 | F46: =SUMIF(BCPAN!$B$10:$B$8000,$A46,BCPAN!$G$10:$G$8000)/1000 -> 0 | G46: 0 | H46: 0 | I46: 0
A47: 4.3.3. | B47: Intereses Moratorios | C47: 40 | D47: =SUM(D48:D49) -> 0 | E47: 0 | F47: =SUM(F48:F49) -> 0 | G47: 0 | H47: =+D47-F47 -> 0 | I47: 0 | J47: =+FIXED(E47,4) -> 0,0000 | K47: =+FIXED(I47,4) -> 0,0000 | L47: =+FIXED(H47,2) -> 0,00 | M47: =IF(H47 < 0, "Disminución", "Aumento") -> Aumento | N47: Ingresos | O47: =+CONCATENATE(#REF!,AnalisisER!B47,#REF!,(AnalisisER!J47*100),#REF!,N47,#REF!,AnalisisER!L47,#REF!,AnalisisER!M47,#REF!,(AnalisisER!K47*100),#REF!) -> 
A48: 4.3.3.01. | B48: Otros remates y confiscaciones de origen no tributario | D48: =SUMIF(BCPAC!$B$10:$B$8000,$A48,BCPAC!$G$10:$G$8000)/1000 -> 0 | E48: 0 | F48: =SUMIF(BCPAN!$B$10:$B$8000,$A48,BCPAN!$G$10:$G$8000)/1000 -> 0 | G48: 0 | H48: =+D48-F48 -> 0 | I48: 0
A49: 4.3.3.02. | B49: Intereses moratorios por atraso en el pago de multas de transito | D49: =SUMIF(BCPAC!$B$10:$B$8000,$A49,BCPAC!$G$10:$G$8000)/1000 -> 0 | E49: 0 | F49: =SUMIF(BCPAN!$B$10:$B$8000,$A49,BCPAN!$G$10:$G$8000)/1000 -> 0 | G49: 0 | H49: =+D49-F49 -> 0 | I49: 0
A50: 4.4. | B50: Ingresos y resultados positivos por ventas
A51: 4.4.1. | B51: Ventas de bienes y servicios | C51: 41 | D51: =SUM(D52:D53) -> 576873.0451 | E51: =+IFERROR(D51/$D$133,0) -> 0.09937278605 | F51: =SUM(F52:F53) -> 434850.4115 | G51: =+IFERROR(F51/$F$133,0) -> 0.07674435236 | H51: =+D51-F51 -> 142022.6336 | I51: =+IFERROR(H51/F51,0) -> 0.326601125 | J51: =+FIXED(E51,4) -> 0,0994 | K51: =+FIXED(I51,4) -> 0,3266 | L51: =+FIXED(H51,2) -> 142 022,63 | M51: =IF(H51 < 0, "Disminución", "Aumento") -> Aumento | N51: Ingresos | O51: =+CONCATENATE(#REF!,AnalisisER!B51,#REF!,(AnalisisER!J51*100),#REF!,N51,#REF!,AnalisisER!L51,#REF!,AnalisisER!M51,#REF!,(AnalisisER!K51*100),#REF!) -> 
A52: 4.4.1.01. | B52: Ventas de bienes | D52: =SUMIF(BCPAC!$B$10:$B$8000,$A52,BCPAC!$G$10:$G$8000)/1000 -> 0 | E52: 0 | F52: =SUMIF(BCPAN!$B$10:$B$8000,$A52,BCPAN!$G$10:$G$8000)/1000 -> 0 | G52: 0 | H52: 0 | I52: 0
A53: 4.4.1.02. | B53: Ventas de servicios | D53: =SUMIF(BCPAC!$B$10:$B$8000,$A53,BCPAC!$G$10:$G$8000)/1000 -> 576873.0451 | E53: 0.09937278605 | F53: =SUMIF(BCPAN!$B$10:$B$8000,$A53,BCPAN!$G$10:$G$8000)/1000 -> 434850.4115 | G53: 0.07674435236 | H53: 142022.6336 | I53: 0.326601125
A54: 4.4.2. | B54: Derechos administrativos | C54: 42 | D54: =SUM(D55:D56) -> 654.51999 | E54: 0.0001127483343 | F54: =SUM(F55:F56) -> 706 | G54: 0.0001245980488 | H54: -51.48001 | I54: -0.07291786119 | J54: =+FIXED(E54,4) -> 0,0001 | K54: =+FIXED(I54,4) -> -0,0729 | L54: =+FIXED(H54,2) -> -51,48 | M54: =IF(H54 < 0, "Disminución", "Aumento") -> Disminución | N54: Ingresos | O54: =+CONCATENATE(#REF!,AnalisisER!B54,#REF!,(AnalisisER!J54*100),#REF!,N54,#REF!,AnalisisER!L54,#REF!,AnalisisER!M54,#REF!,(AnalisisER!K54*100),#REF!) -> 
A55: 4.4.2.01. | B55: Derechos administrativos a los servicios de transporte | D55: =SUMIF(BCPAC!$B$10:$B$8000,$A55,BCPAC!$G$10:$G$8000)/1000 -> 440 | E55: 7.579488457e-05 | F55: =SUMIF(BCPAN!$B$10:$B$8000,$A55,BCPAN!$G$10:$G$8000)/1000 -> 510 | G55: 9.000708904e-05 | H55: -70 | I55: -0.137254902
A56: 4.4.2.99. | B56: Otros derechos administrativos | D56: =SUMIF(BCPAC!$B$10:$B$8000,$A56,BCPAC!$G$10:$G$8000)/1000 -> 214.51999 | E56: 3.695344973e-05 | F56: =SUMIF(BCPAN!$B$10:$B$8000,$A56,BCPAN!$G$10:$G$8000)/1000 -> 196 | G56: 3.459095971e-05 | H56: 18.51999 | I56: 0.0944897449
A57: 4.4.3. | B57: Comisiones por préstamos | C57: 43 | D57: =SUM(D58:D60) -> 0 | E57: 0 | F57: =SUM(F58:F60) -> 0 | G57: 0 | H57: 0 | I57: 0 | J57: =+FIXED(E57,4) -> 0,0000 | K57: =+FIXED(I57,4) -> 0,0000 | L57: =+FIXED(H57,2) -> 0,00 | M57: =IF(H57 < 0, "Disminución", "Aumento") -> Aumento | N57: Ingresos | O57: =+CONCATENATE(#REF!,AnalisisER!B57,#REF!,(AnalisisER!J57*100),#REF!,N57,#REF!,AnalisisER!L57,#REF!,AnalisisER!M57,#REF!,(AnalisisER!K57*100),#REF!) -> 
A58: 4.4.3.01. | B58: Comisiones por préstamos al sector privado interno | D58: =SUMIF(BCPAC!$B$10:$B$8000,$A58,BCPAC!$G$10:$G$8000)/1000 -> 0 | E58: 0 | F58: =SUMIF(BCPAN!$B$10:$B$8000,$A58,BCPAN!$G$10:$G$8000)/1000 -> 0 | G58: 0 | H58: 0 | I58: 0
A59: 4.4.3.02. | B59: Comisiones por préstamos al sector público interno | D59: =SUMIF(BCPAC!$B$10:$B$8000,$A59,BCPAC!$G$10:$G$8000)/1000 -> 0 | E59: 0 | F59: =SUMIF(BCPAN!$B$10:$B$8000,$A59,BCPAN!$G$10:$G$8000)/1000 -> 0 | G59: 0 | H59: 0 | I59: 0
A60: 4.4.3.03. | B60: Comisiones por préstamos al sector externo | D60: =SUMIF(BCPAC!$B$10:$B$8000,$A60,BCPAC!$G$10:$G$8000)/1000 -> 0 | E60: 0 | F60: =SUMIF(BCPAN!$B$10:$B$8000,$A60,BCPAN!$G$10:$G$8000)/1000 -> 0 | G60: 0 | H60: 0 | I60: 0
A61: 4.4.4. | B61: Resultados positivos por ventas de inversiones | C61: 44 | D61: =SUM(D62:D63) -> 0 | E61: 0 | F61: =SUM(F62:F63) -> 0 | G61: 0 | H61: 0 | I61: 0 | J61: =+FIXED(E61,4) -> 0,0000 | K61: =+FIXED(I61,4) -> 0,0000 | L61: =+FIXED(H61,2) -> 0,00 | M61: =IF(H61 < 0, "Disminución", "Aumento") -> Aumento | N61: Ingresos | O61: =+CONCATENATE(#REF!,AnalisisER!B61,#REF!,(AnalisisER!J61*100),#REF!,N61,#REF!,AnalisisER!L61,#REF!,AnalisisER!M61,#REF!,(AnalisisER!K61*100),#REF!) -> 
A62: 4.4.4.01. | B62: Resultados positivos por ventas de inversiones patrimoniales - Método de participación | D62: =SUMIF(BCPAC!$B$10:$B$8000,$A62,BCPAC!$G$10:$G$8000)/1000 -> 0 | E62: 0 | F62: =SUMIF(BCPAN!$B$10:$B$8000,$A62,BCPAN!$G$10:$G$8000)/1000 -> 0 | G62: 0 | H62: 0 | I62: 0
A63: 4.4.4.98. | B63: Resultados positivos por ventas de otras inversiones | D63: =SUMIF(BCPAC!$B$10:$B$8000,$A63,BCPAC!$G$10:$G$8000)/1000 -> 0 | E63: 0 | F63: =SUMIF(BCPAN!$B$10:$B$8000,$A63,BCPAN!$G$10:$G$8000)/1000 -> 0 | G63: 0 | H63: 0 | I63: 0
A64: 4.4.5. | B64: Resultados positivos por ventas e intercambio de bienes | C64: 45 | D64: =SUM(D65:D74) -> 0 | E64: 0 | F64: =SUM(F65:F74) -> 0 | G64: 0 | H64: =+D64-F64 -> 0 | I64: 0 | J64: =+FIXED(E64,4) -> 0,0000 | K64: =+FIXED(I64,4) -> 0,0000 | L64: =+FIXED(H64,2) -> 0,00 | M64: =IF(H64 < 0, "Disminución", "Aumento") -> Aumento | N64: Ingresos | O64: =+CONCATENATE(#REF!,AnalisisER!B64,#REF!,(AnalisisER!J64*100),#REF!,N64,#REF!,AnalisisER!L64,#REF!,AnalisisER!M64,#REF!,(AnalisisER!K64*100),#REF!) -> 
A65: 4.4.5.01. | B65: Resultados positivos por ventas de construcciones terminadas | D65: =SUMIF(BCPAC!$B$10:$B$8000,$A65,BCPAC!$G$10:$G$8000)/1000 -> 0 | E65: =+IFERROR(D65/$D$133,0) -> 0 | F65: =SUMIF(BCPAN!$B$10:$B$8000,$A65,BCPAN!$G$10:$G$8000)/1000 -> 0 | G65: =+IFERROR(F65/$F$133,0) -> 0 | H65: 0 | I65: =+IFERROR(H65/F65,0) -> 0
A66: 4.4.5.02. | B66: Resultados positivos por ventas de propiedades, planta y equipo | D66: =SUMIF(BCPAC!$B$10:$B$8000,$A66,BCPAC!$G$10:$G$8000)/1000 -> 0 | E66: 0 | F66: =SUMIF(BCPAN!$B$10:$B$8000,$A66,BCPAN!$G$10:$G$8000)/1000 -> 0 | G66: 0 | H66: 0 | I66: 0
A67: 4.4.5.03. | B67: Resultados positivos por ventas de activos biológicos | D67: =SUMIF(BCPAC!$B$10:$B$8000,$A67,BCPAC!$G$10:$G$8000)/1000 -> 0 | E67: 0 | F67: =SUMIF(BCPAN!$B$10:$B$8000,$A67,BCPAN!$G$10:$G$8000)/1000 -> 0 | G67: 0 | H67: 0 | I67: 0
A68: 4.4.5.04. | B68: Resultados positivos por ventas de bienes intangibles | D68: =SUMIF(BCPAC!$B$10:$B$8000,$A68,BCPAC!$G$10:$G$8000)/1000 -> 0 | E68: 0 | F68: =SUMIF(BCPAN!$B$10:$B$8000,$A68,BCPAN!$G$10:$G$8000)/1000 -> 0 | G68: 0 | H68: 0 | I68: 0
A69: 4.4.5.05. | B69: Resultados positivos por ventas por arrendamientos financieros | D69: =SUMIF(BCPAC!$B$10:$B$8000,$A69,BCPAC!$G$10:$G$8000)/1000 -> 0 | E69: 0 | F69: =SUMIF(BCPAN!$B$10:$B$8000,$A69,BCPAN!$G$10:$G$8000)/1000 -> 0 | G69: 0 | H69: 0 | I69: 0
A70: 4.4.5.06. | B70: Resultados positivos por intercambio de propiedades, planta y equipo | D70: =SUMIF(BCPAC!$B$10:$B$8000,$A70,BCPAC!$G$10:$G$8000)/1000 -> 0 | E70: 0 | F70: =SUMIF(BCPAN!$B$10:$B$8000,$A70,BCPAN!$G$10:$G$8000)/1000 -> 0 | G70: 0 | H70: 0 | I70: 0
A71: 4.4.5.07. | B71: Resultados positivos por intercambio de bienes intangibles | D71: =SUMIF(BCPAC!$B$10:$B$8000,$A71,BCPAC!$G$10:$G$8000)/1000 -> 0 | E71: 0 | F71: =SUMIF(BCPAN!$B$10:$B$8000,$A71,BCPAN!$G$10:$G$8000)/1000 -> 0 | G71: 0 | H71: 0 | I71: 0
A72: 4.4.5.08. | B72: Resultados positivos por intercambio de Inventario | D72: =SUMIF(BCPAC!$B$10:$B$8000,$A72,BCPAC!$G$10:$G$8000)/1000 -> 0 | E72: 0 | F72: =SUMIF(BCPAN!$B$10:$B$8000,$A72,BCPAN!$G$10:$G$8000)/1000 -> 0 | G72: 0 | H72: 0 | I72: 0
A73: 4.4.5.09. | B73: Resultados positivos por la entrega de activos como medio de pago de impuestos | D73: =SUMIF(BCPAC!$B$10:$B$8000,$A73,BCPAC!$G$10:$G$8000)/1000 -> 0 | E73: 0 | F73: =SUMIF(BCPAN!$B$10:$B$8000,$A73,BCPAN!$G$10:$G$8000)/1000 -> 0 | G73: 0 | H73: 0 | I73: 0
A74: 4.4.5.10. | B74: Resultados positivos por intercambio de Infra | D74: =SUMIF(BCPAC!$B$10:$B$8000,$A74,BCPAC!$G$10:$G$8000)/1000 -> 0 | E74: 0 | F74: =SUMIF(BCPAN!$B$10:$B$8000,$A74,BCPAN!$G$10:$G$8000)/1000 -> 0 | G74: 0 | H74: 0 | I74: 0
A75: 4.4.6. | B75: Resultados positivos por la recuperación de dinero mal acreditado de periodos anteriores | C75: 46 | D75: =SUM(D76:D77) -> 0 | E75: =+IFERROR(D75/$D$133,0) -> 0 | F75: =SUM(F76:F77) -> 0 | G75: =+IFERROR(F75/$F$133,0) -> 0 | H75: 0 | I75: =+IFERROR(H75/F75,0) -> 0 | J75: =+FIXED(E75,4) -> 0,0000 | K75: =+FIXED(I75,4) -> 0,0000 | L75: =+FIXED(H75,2) -> 0,00 | M75: =IF(H75 < 0, "Disminución", "Aumento") -> Aumento | N75: Ingresos | O75: =+CONCATENATE(#REF!,AnalisisER!B75,#REF!,(AnalisisER!J75*100),#REF!,N75,#REF!,AnalisisER!L75,#REF!,AnalisisER!M75,#REF!,(AnalisisER!K75*100),#REF!) -> 
A76: 4.4.6.01. | B76: Resultados positivos por la recuperacion de sumas de periodos anteriores | D76: =SUMIF(BCPAC!$B$10:$B$8000,$A76,BCPAC!$G$10:$G$8000)/1000 -> 0 | E76: =+IFERROR(D76/$D$133,0) -> 0 | F76: =SUMIF(BCPAN!$B$10:$B$8000,$A76,BCPAN!$G$10:$G$8000)/1000 -> 0 | G76: =+IFERROR(F76/$F$133,0) -> 0 | H76: 0 | I76: =+IFERROR(H76/F76,0) -> 0
A77: 4.5. | B77: Ingresos de la propiedad
A78: 4.5.1. | B78: Rentas de inversiones y de colocación de efectivo | C78: 47 | D78: =SUM(D79:D81) -> 19676.04936 | E78: =+IFERROR(D78/$D$133,0) -> 0.003389417932 | F78: =SUM(F79:F81) -> 28532.49586 | G78: =+IFERROR(F78/$F$133,0) -> 0.005035542932 | H78: =+D78-F78 -> -8856.4465 | I78: =+IFERROR(H78/F78,0) -> -0.3103985906 | J78: =+FIXED(E78,4) -> 0,0034 | K78: =+FIXED(I78,4) -> -0,3104 | L78: =+FIXED(H78,2) -> -8 856,45 | M78: =IF(H78 < 0, "Disminución", "Aumento") -> Disminución | N78: Ingresos | O78: =+CONCATENATE(#REF!,AnalisisER!B78,#REF!,(AnalisisER!J78*100),#REF!,N78,#REF!,AnalisisER!L78,#REF!,AnalisisER!M78,#REF!,(AnalisisER!K78*100),#REF!) -> 
A79: 4.5.1.01. | B79: Intereses por equivalentes de efectivo | D79: =SUMIF(BCPAC!$B$10:$B$8000,$A79,BCPAC!$G$10:$G$8000)/1000 -> 2834.37722 | E79: 0.0004882529414 | F79: =SUMIF(BCPAN!$B$10:$B$8000,$A79,BCPAN!$G$10:$G$8000)/1000 -> 5261.22014 | G79: 0.0009285237443 | H79: -2426.84292 | I79: -0.4612699821
A80: 4.5.1.02. | B80: Intereses por títulos y valores a costo amortizado | D80: =SUMIF(BCPAC!$B$10:$B$8000,$A80,BCPAC!$G$10:$G$8000)/1000 -> 0 | E80: 0 | F80: =SUMIF(BCPAN!$B$10:$B$8000,$A80,BCPAN!$G$10:$G$8000)/1000 -> 0 | G80: 0 | H80: 0 | I80: 0
A81: 4.5.1.98. | B81: Resultados positivos de otras inversiones | D81: =SUMIF(BCPAC!$B$10:$B$8000,$A81,BCPAC!$G$10:$G$8000)/1000 -> 16841.67214 | E81: 0.002901164991 | F81: =SUMIF(BCPAN!$B$10:$B$8000,$A81,BCPAN!$G$10:$G$8000)/1000 -> 23271.27572 | G81: 0.004107019188 | H81: -6429.60358 | I81: -0.2762892614
A82: 4.5.2. | B82: Alquileres y derechos sobre bienes | C82: 48 | D82: =SUM(D83:D85) -> 39497.45998 | E82: 0.006803875955 | F82: =SUM(F83:F85) -> 41920.69248 | G82: 0.007398351962 | H82: -2423.2325 | I82: -0.05780516391 | J82: =+FIXED(E82,4) -> 0,0068 | K82: =+FIXED(I82,4) -> -0,0578 | L82: =+FIXED(H82,2) -> -2 423,23 | M82: =IF(H82 < 0, "Disminución", "Aumento") -> Disminución | N82: Ingresos | O82: =+CONCATENATE(#REF!,AnalisisER!B82,#REF!,(AnalisisER!J82*100),#REF!,N82,#REF!,AnalisisER!L82,#REF!,AnalisisER!M82,#REF!,(AnalisisER!K82*100),#REF!) -> 
A83: 4.5.2.01. | B83: Alquileres | D83: =SUMIF(BCPAC!$B$10:$B$8000,$A83,BCPAC!$G$10:$G$8000)/1000 -> 39497.45998 | E83: 0.006803875955 | F83: =SUMIF(BCPAN!$B$10:$B$8000,$A83,BCPAN!$G$10:$G$8000)/1000 -> 41920.69248 | G83: 0.007398351962 | H83: -2423.2325 | I83: -0.05780516391 | J83: =+FIXED(E83,4) -> 0,0068 | K83: =+FIXED(I83,4) -> -0.0578 | L83: =+FIXED(H83,2) -> -2,423.23 | M83: =IF(H83 < 0, "Disminución", "Aumento") -> Disminución | N83: Ingresos | O83: =+CONCATENATE(#REF!,AnalisisER!B83,#REF!,(AnalisisER!J83*100),#REF!,N83,#REF!,AnalisisER!L83,#REF!,AnalisisER!M83,#REF!,(AnalisisER!K83*100),#REF!) -> 
A84: 4.5.2.02. | B84: Ingresos por concesiones | D84: =SUMIF(BCPAC!$B$10:$B$8000,$A84,BCPAC!$G$10:$G$8000)/1000 -> 0 | E84: 0 | F84: =SUMIF(BCPAN!$B$10:$B$8000,$A84,BCPAN!$G$10:$G$8000)/1000 -> 0 | G84: 0 | H84: 0 | I84: 0
A85: 4.5.2.03. | B85: Derechos sobre bienes intangibles | D85: =SUMIF(BCPAC!$B$10:$B$8000,$A85,BCPAC!$G$10:$G$8000)/1000 -> 0 | E85: 0 | F85: =SUMIF(BCPAN!$B$10:$B$8000,$A85,BCPAN!$G$10:$G$8000)/1000 -> 0 | G85: 0 | H85: 0 | I85: 0
A86: 4.5.9. | B86: Otros ingresos de la propiedad | C86: 49 | D86: =SUM(D87:D93) -> 0 | E86: 0 | F86: =SUM(F87:F93) -> 0 | G86: 0 | H86: 0 | I86: 0 | J86: =+FIXED(E86,4) -> 0,0000 | K86: =+FIXED(I86,4) -> 0,0000 | L86: =+FIXED(H86,2) -> 0,00 | M86: =IF(H86 < 0, "Disminución", "Aumento") -> Aumento | N86: Ingresos | O86: =+CONCATENATE(#REF!,AnalisisER!B86,#REF!,(AnalisisER!J86*100),#REF!,N86,#REF!,AnalisisER!L86,#REF!,AnalisisER!M86,#REF!,(AnalisisER!K86*100),#REF!) -> 
A87: 4.5.9.03. | B87: Intereses por ventas | D87: =SUMIF(BCPAC!$B$10:$B$8000,$A87,BCPAC!$G$10:$G$8000)/1000 -> 0 | E87: =+IFERROR(D87/$D$133,0) -> 0 | F87: =SUMIF(BCPAN!$B$10:$B$8000,$A87,BCPAN!$G$10:$G$8000)/1000 -> 0 | G87: =+IFERROR(F87/$F$133,0) -> 0 | H87: 0 | I87: =+IFERROR(H87/F87,0) -> 0
A88: 4.5.9.07. | B88: Intereses por préstamos | D88: =SUMIF(BCPAC!$B$10:$B$8000,$A88,BCPAC!$G$10:$G$8000)/1000 -> 0 | E88: 0 | F88: =SUMIF(BCPAN!$B$10:$B$8000,$A88,BCPAN!$G$10:$G$8000)/1000 -> 0 | G88: 0 | H88: 0 | I88: 0
A89: 4.5.9.08. | B89: Intereses por documentos a cobrar | D89: =SUMIF(BCPAC!$B$10:$B$8000,$A89,BCPAC!$G$10:$G$8000)/1000 -> 0 | E89: 0 | F89: =SUMIF(BCPAN!$B$10:$B$8000,$A89,BCPAN!$G$10:$G$8000)/1000 -> 0 | G89: 0 | H89: 0 | I89: 0
A90: 4.5.9.10. | B90: Intereses por deudores por avales ejecutados | D90: =SUMIF(BCPAC!$B$10:$B$8000,$A90,BCPAC!$G$10:$G$8000)/1000 -> 0 | E90: 0 | F90: =SUMIF(BCPAN!$B$10:$B$8000,$A90,BCPAN!$G$10:$G$8000)/1000 -> 0 | G90: 0 | H90: 0 | I90: 0
A91: 4.5.9.97. | B91: Intereses por cuentas a cobrar en gestión judicial | D91: =SUMIF(BCPAC!$B$10:$B$8000,$A91,BCPAC!$G$10:$G$8000)/1000 -> 0 | E91: 0 | F91: =SUMIF(BCPAN!$B$10:$B$8000,$A91,BCPAN!$G$10:$G$8000)/1000 -> 0 | G91: 0 | H91: 0 | I91: 0
A92: 4.5.9.99. | B92: Intereses por otras cuentas a cobrar | D92: =SUMIF(BCPAC!$B$10:$B$8000,$A92,BCPAC!$G$10:$G$8000)/1000 -> 0 | E92: 0 | F92: =SUMIF(BCPAN!$B$10:$B$8000,$A92,BCPAN!$G$10:$G$8000)/1000 -> 0 | G92: 0 | H92: 0 | I92: 0
A93: 4.6. | B93: Transferencias
A94: 4.6.1. | B94: Transferencias corrientes | C94: 50 | D94: =SUM(D95:D97) -> 18241.29303 | E94: =+IFERROR(D94/$D$133,0) -> 0.003142265226 | F94: =SUM(F95:F97) -> 20317.69336 | G94: =+IFERROR(F94/$F$133,0) -> 0.003585757716 | H94: =+D94-F94 -> -2076.40033 | I94: =+IFERROR(H94/F94,0) -> -0.1021966565 | J94: =+FIXED(E94,4) -> 0,0031 | K94: =+FIXED(I94,4) -> -0,1022 | L94: =+FIXED(H94,2) -> -2 076,40 | M94: =IF(H94 < 0, "Disminución", "Aumento") -> Disminución | N94: Ingresos | O94: =+CONCATENATE(#REF!,AnalisisER!B94,#REF!,(AnalisisER!J94*100),#REF!,N94,#REF!,AnalisisER!L94,#REF!,AnalisisER!M94,#REF!,(AnalisisER!K94*100),#REF!) -> 
A95: 4.6.1.01. | B95: Transferencias corrientes del sector privado interno | D95: =SUMIF(BCPAC!$B$10:$B$8000,$A95,BCPAC!$G$10:$G$8000)/1000 -> 0 | E95: 0 | F95: =SUMIF(BCPAN!$B$10:$B$8000,$A95,BCPAN!$G$10:$G$8000)/1000 -> 0 | G95: 0 | H95: 0 | I95: 0
A96: 4.6.1.02. | B96: Transferencias corrientes del sector público interno | D96: =SUMIF(BCPAC!$B$10:$B$8000,$A96,BCPAC!$G$10:$G$8000)/1000 -> 18241.29303 | E96: 0.003142265226 | F96: =SUMIF(BCPAN!$B$10:$B$8000,$A96,BCPAN!$G$10:$G$8000)/1000 -> 20317.69336 | G96: 0.003585757716 | H96: -2076.40033 | I96: -0.1021966565 | J96: =+FIXED(E96,4) -> 0,0031 | K96: =+FIXED(I96,4) -> -0.1022 | L96: =+FIXED(H96,2) -> -2,076.40 | M96: =IF(H96 < 0, "Disminución", "Aumento") -> Disminución | N96: Ingresos | O96: =+CONCATENATE(#REF!,AnalisisER!B96,#REF!,(AnalisisER!J96*100),#REF!,N96,#REF!,AnalisisER!L96,#REF!,AnalisisER!M96,#REF!,(AnalisisER!K96*100),#REF!) -> 
A97: 4.6.1.03. | B97: Transferencias corrientes del sector externo | D97: =SUMIF(BCPAC!$B$10:$B$8000,$A97,BCPAC!$G$10:$G$8000)/1000 -> 0 | E97: 0 | F97: =SUMIF(BCPAN!$B$10:$B$8000,$A97,BCPAN!$G$10:$G$8000)/1000 -> 0 | G97: 0 | H97: 0 | I97: 0
A98: 4.6.2. | B98: Transferencias de capital | C98: 51 | D98: =SUM(D99:D102) -> 4102012.638 | E98: 0.7066172146 | F98: =SUM(F99:F102) -> 4004209.238 | G98: 0.7066808186 | H98: 97803.3995 | I98: 0.02442514706 | J98: =+FIXED(E98,4) -> 0,7066 | K98: =+FIXED(I98,4) -> 0,0244 | L98: =+FIXED(H98,2) -> 97 803,40 | M98: =IF(H98 < 0, "Disminución", "Aumento") -> Aumento | N98: Ingresos | O98: =+CONCATENATE(#REF!,AnalisisER!B98,#REF!,(AnalisisER!J98*100),#REF!,N98,#REF!,AnalisisER!L98,#REF!,AnalisisER!M98,#REF!,(AnalisisER!K98*100),#REF!) -> 
A99: 4.6.2.01. | B99: Transferencias de capital del sector privado interno | D99: =SUMIF(BCPAC!$B$10:$B$8000,$A99,BCPAC!$G$10:$G$8000)/1000 -> 0 | E99: 0 | F99: =SUMIF(BCPAN!$B$10:$B$8000,$A99,BCPAN!$G$10:$G$8000)/1000 -> 0 | G99: 0 | H99: 0 | I99: 0
A100: 4.6.2.02. | B100: Transferencias de capital del sector público interno | D100: =SUMIF(BCPAC!$B$10:$B$8000,$A100,BCPAC!$G$10:$G$8000)/1000 -> 4102012.638 | E100: 0.7066172146 | F100: =SUMIF(BCPAN!$B$10:$B$8000,$A100,BCPAN!$G$10:$G$8000)/1000 -> 4004209.238 | G100: 0.7066808186 | H100: 97803.3995 | I100: 0.02442514706 | J100: =+FIXED(E100,4) -> 0,7066 | K100: =+FIXED(I100,4) -> 0.0244 | L100: =+FIXED(H100,2) -> 97,803.40 | M100: =IF(H100 < 0, "Disminución", "Aumento") -> Aumento | N100: Ingresos | O100: =+CONCATENATE(#REF!,AnalisisER!B100,#REF!,(AnalisisER!J100*100),#REF!,N100,#REF!,AnalisisER!L100,#REF!,AnalisisER!M100,#REF!,(AnalisisER!K100*100),#REF!) -> 
A101: 4.6.2.03. | B101: Transferencias de capital del sector externo | D101: =SUMIF(BCPAC!$B$10:$B$8000,$A101,BCPAC!$G$10:$G$8000)/1000 -> 0 | E101: 0 | F101: =SUMIF(BCPAN!$B$10:$B$8000,$A101,BCPAN!$G$10:$G$8000)/1000 -> 0 | G101: 0 | H101: 0 | I101: 0
A102: 4.9. | B102: Otros ingresos
A103: 4.9.1. | B103: Resultados positivos por tenencia y por exposición a la inflación | C103: 52 | D103: =SUM(D104:D109) -> 0 | E103: =+IFERROR(D103/$D$133,0) -> 0 | F103: =SUM(F104:F109) -> 0 | G103: =+IFERROR(F103/$F$133,0) -> 0 | H103: =+D103-F103 -> 0 | I103: =+IFERROR(H103/F103,0) -> 0 | J103: =+FIXED(E103,4) -> 0,0000 | K103: =+FIXED(I103,4) -> 0,0000 | L103: =+FIXED(H103,2) -> 0,00 | M103: =IF(H103 < 0, "Disminución", "Aumento") -> Aumento | N103: Ingresos | O103: =+CONCATENATE(#REF!,AnalisisER!B103,#REF!,(AnalisisER!J103*100),#REF!,N103,#REF!,AnalisisER!L103,#REF!,AnalisisER!M103,#REF!,(AnalisisER!K103*100),#REF!) -> 
A104: 4.9.1.01. | B104: Diferencias de cambio positivas por activos | D104: =SUMIF(BCPAC!$B$10:$B$8000,$A104,BCPAC!$G$10:$G$8000)/1000 -> 0 | E104: =+IFERROR(D104/$D$133,0) -> 0 | F104: =SUMIF(BCPAN!$B$10:$B$8000,$A104,BCPAN!$G$10:$G$8000)/1000 -> 0 | G104: =+IFERROR(F104/$F$133,0) -> 0 | H104: 0 | I104: =+IFERROR(H104/F104,0) -> 0
A105: 4.9.1.02. | B105: Diferencias de cambio positivas por pasivos | D105: =SUMIF(BCPAC!$B$10:$B$8000,$A105,BCPAC!$G$10:$G$8000)/1000 -> 0 | E105: 0 | F105: =SUMIF(BCPAN!$B$10:$B$8000,$A105,BCPAN!$G$10:$G$8000)/1000 -> 0 | G105: 0 | H105: 0 | I105: 0
A106: 4.9.1.03. | B106: Resultados positivos por tenencia de activos no derivados | D106: =SUMIF(BCPAC!$B$10:$B$8000,$A106,BCPAC!$G$10:$G$8000)/1000 -> 0 | E106: 0 | F106: =SUMIF(BCPAN!$B$10:$B$8000,$A106,BCPAN!$G$10:$G$8000)/1000 -> 0 | G106: 0 | H106: 0 | I106: 0
A107: 4.9.1.04. | B107: Resultados positivos por tenencia de pasivos no derivados | D107: =SUMIF(BCPAC!$B$10:$B$8000,$A107,BCPAC!$G$10:$G$8000)/1000 -> 0 | E107: 0 | F107: =SUMIF(BCPAN!$B$10:$B$8000,$A107,BCPAN!$G$10:$G$8000)/1000 -> 0 | G107: 0 | H107: 0 | I107: 0
A108: 4.9.1.05. | B108: Resultados positivos por tenencia de instrumentos financieros derivados | D108: =SUMIF(BCPAC!$B$10:$B$8000,$A108,BCPAC!$G$10:$G$8000)/1000 -> 0 | E108: 0 | F108: =SUMIF(BCPAN!$B$10:$B$8000,$A108,BCPAN!$G$10:$G$8000)/1000 -> 0 | G108: 0 | H108: 0 | I108: 0
A109: 4.9.1.06. | B109: Resultado positivo por exposición a la inflación | D109: =SUMIF(BCPAC!$B$10:$B$8000,$A109,BCPAC!$G$10:$G$8000)/1000 -> 0 | E109: 0 | F109: =SUMIF(BCPAN!$B$10:$B$8000,$A109,BCPAN!$G$10:$G$8000)/1000 -> 0 | G109: 0 | H109: 0 | I109: 0
A110: 4.9.2. | B110: Reversión de consumo de bienes | C110: 53 | D110: =SUM(D111:D112) -> 0 | E110: =+IFERROR(D110/$D$133,0) -> 0 | F110: =SUM(F111:F112) -> 0 | G110: =+IFERROR(F110/$F$133,0) -> 0 | H110: 0 | I110: =+IFERROR(H110/F110,0) -> 0 | J110: =+FIXED(E110,4) -> 0,0000 | K110: =+FIXED(I110,4) -> 0,0000 | L110: =+FIXED(H110,2) -> 0,00 | M110: =IF(H110 < 0, "Disminución", "Aumento") -> Aumento | N110: Ingresos | O110: =+CONCATENATE(#REF!,AnalisisER!B110,#REF!,(AnalisisER!J110*100),#REF!,N110,#REF!,AnalisisER!L110,#REF!,AnalisisER!M110,#REF!,(AnalisisER!K110*100),#REF!) -> 
A111: 4.9.2.01. | B111: Reversión de consumo de bienes no concesionados | D111: =SUMIF(BCPAC!$B$10:$B$8000,$A111,BCPAC!$G$10:$G$8000)/1000 -> 0 | E111: 0 | F111: =SUMIF(BCPAN!$B$10:$B$8000,$A111,BCPAN!$G$10:$G$8000)/1000 -> 0 | G111: 0 | H111: 0 | I111: 0
A112: 4.9.2.02. | B112: Reversión de consumo de bienes concesionados | D112: =SUMIF(BCPAC!$B$10:$B$8000,$A112,BCPAC!$G$10:$G$8000)/1000 -> 0 | E112: 0 | F112: =SUMIF(BCPAN!$B$10:$B$8000,$A112,BCPAN!$G$10:$G$8000)/1000 -> 0 | G112: 0 | H112: 0 | I112: 0
A113: 4.9.3. | B113: Reversión de pérdidas por deterioro y desvalorización de bienes | C113: 54 | D113: =SUM(D114:D118) -> 0 | E113: 0 | F113: =SUM(F114:F118) -> 0 | G113: 0 | H113: 0 | I113: 0 | J113: =+FIXED(E113,4) -> 0,0000 | K113: =+FIXED(I113,4) -> 0,0000 | L113: =+FIXED(H113,2) -> 0,00 | M113: =IF(H113 < 0, "Disminución", "Aumento") -> Aumento | N113: Ingresos | O113: =+CONCATENATE(#REF!,AnalisisER!B113,#REF!,(AnalisisER!J113*100),#REF!,N113,#REF!,AnalisisER!L113,#REF!,AnalisisER!M113,#REF!,(AnalisisER!K113*100),#REF!) -> 
A114: 4.9.3.01. | B114: Reversión de deterioro y desvalorización de bienes no concesionados | D114: =SUMIF(BCPAC!$B$10:$B$8000,$A114,BCPAC!$G$10:$G$8000)/1000 -> 0 | E114: 0 | F114: =SUMIF(BCPAN!$B$10:$B$8000,$A114,BCPAN!$G$10:$G$8000)/1000 -> 0 | G114: 0 | H114: 0 | I114: 0
A115: 4.9.3.02. | B115: Reversión de deterioro y desvalorización de bienes concesionados | D115: =SUMIF(BCPAC!$B$10:$B$8000,$A115,BCPAC!$G$10:$G$8000)/1000 -> 0 | E115: 0 | F115: =SUMIF(BCPAN!$B$10:$B$8000,$A115,BCPAN!$G$10:$G$8000)/1000 -> 0 | G115: 0 | H115: 0 | I115: 0
A116: 4.9.3.03. | B116: Reversión de deterioro y desvalorización de inventarios por materiales y suministros para consumo y prestación de servicios | D116: =SUMIF(BCPAC!$B$10:$B$8000,$A116,BCPAC!$G$10:$G$8000)/1000 -> 0 | E116: 0 | F116: =SUMIF(BCPAN!$B$10:$B$8000,$A116,BCPAN!$G$10:$G$8000)/1000 -> 0 | G116: 0 | H116: 0 | I116: 0
A117: 4.9.3.04. | B117: Reversión de deterioro y desvalorización de inventarios por bienes para la venta | D117: =SUMIF(BCPAC!$B$10:$B$8000,$A117,BCPAC!$G$10:$G$8000)/1000 -> 0 | E117: 0 | F117: =SUMIF(BCPAN!$B$10:$B$8000,$A117,BCPAN!$G$10:$G$8000)/1000 -> 0 | G117: 0 | H117: 0 | I117: 0
A118: 4.9.3.05. | B118: Reversión de deterioro y desvalorización de inventarios por materias primas y bienes en producción | D118: =SUMIF(BCPAC!$B$10:$B$8000,$A118,BCPAC!$G$10:$G$8000)/1000 -> 0 | E118: 0 | F118: =SUMIF(BCPAN!$B$10:$B$8000,$A118,BCPAN!$G$10:$G$8000)/1000 -> 0 | G118: 0 | H118: 0 | I118: 0
A119: 4.9.4. | B119: Recuperación de previsiones | C119: 55 | D119: =SUM(D120:D122) -> 0 | E119: 0 | F119: =SUM(F120:F122) -> 0 | G119: 0 | H119: 0 | I119: 0 | J119: =+FIXED(E119,4) -> 0,0000 | K119: =+FIXED(I119,4) -> 0,0000 | L119: =+FIXED(H119,2) -> 0,00 | M119: =IF(H119 < 0, "Disminución", "Aumento") -> Aumento | N119: Ingresos | O119: =+CONCATENATE(#REF!,AnalisisER!B119,#REF!,(AnalisisER!J119*100),#REF!,N119,#REF!,AnalisisER!L119,#REF!,AnalisisER!M119,#REF!,(AnalisisER!K119*100),#REF!) -> 
A120: 4.9.4.01. | B120: Recuperación de previsiones para deterioro de inversiones | D120: =SUMIF(BCPAC!$B$10:$B$8000,$A120,BCPAC!$G$10:$G$8000)/1000 -> 0 | E120: 0 | F120: =SUMIF(BCPAN!$B$10:$B$8000,$A120,BCPAN!$G$10:$G$8000)/1000 -> 0 | G120: 0 | H120: 0 | I120: 0
A121: 4.9.4.02. | B121: Recuperación de previsiones para deterioro de cuentas a cobrar | D121: =SUMIF(BCPAC!$B$10:$B$8000,$A121,BCPAC!$G$10:$G$8000)/1000 -> 0 | E121: 0 | F121: =SUMIF(BCPAN!$B$10:$B$8000,$A121,BCPAN!$G$10:$G$8000)/1000 -> 0 | G121: 0 | H121: 0 | I121: 0
A122: 4.9.4.03. | B122: Recuperación de previsiones para deterioro y pérdidas de inventarios | D122: =SUMIF(BCPAC!$B$10:$B$8000,$A122,BCPAC!$G$10:$G$8000)/1000 -> 0 | E122: 0 | F122: =SUMIF(BCPAN!$B$10:$B$8000,$A122,BCPAN!$G$10:$G$8000)/1000 -> 0 | G122: 0 | H122: 0 | I122: 0
A123: 4.9.5. | B123: Recuperación de provisiones y reservas técnicas | C123: 56 | D123: =SUM(D124:D127) -> 0 | E123: 0 | F123: =SUM(F124:F127) -> 0 | G123: 0 | H123: 0 | I123: 0 | J123: =+FIXED(E123,4) -> 0,0000 | K123: =+FIXED(I123,4) -> 0,0000 | L123: =+FIXED(H123,2) -> 0,00 | M123: =IF(H123 < 0, "Disminución", "Aumento") -> Aumento | N123: Ingresos | O123: =+CONCATENATE(#REF!,AnalisisER!B123,#REF!,(AnalisisER!J123*100),#REF!,N123,#REF!,AnalisisER!L123,#REF!,AnalisisER!M123,#REF!,(AnalisisER!K123*100),#REF!) -> 
A124: 4.9.5.01. | B124: Recuperación de provisiones para litigios y demandas | D124: =SUMIF(BCPAC!$B$10:$B$8000,$A124,BCPAC!$G$10:$G$8000)/1000 -> 0 | E124: 0 | F124: =SUMIF(BCPAN!$B$10:$B$8000,$A124,BCPAN!$G$10:$G$8000)/1000 -> 0 | G124: 0 | H124: 0 | I124: 0
A125: 4.9.5.02. | B125: Recuperación de provisiones para reestructuración | D125: =SUMIF(BCPAC!$B$10:$B$8000,$A125,BCPAC!$G$10:$G$8000)/1000 -> 0 | E125: 0 | F125: =SUMIF(BCPAN!$B$10:$B$8000,$A125,BCPAN!$G$10:$G$8000)/1000 -> 0 | G125: 0 | H125: 0 | I125: 0
A126: 4.9.5.03. | B126: Recuperación de provisiones para beneficios a los empleados | D126: =SUMIF(BCPAC!$B$10:$B$8000,$A126,BCPAC!$G$10:$G$8000)/1000 -> 0 | E126: 0 | F126: =SUMIF(BCPAN!$B$10:$B$8000,$A126,BCPAN!$G$10:$G$8000)/1000 -> 0 | G126: 0 | H126: 0 | I126: 0
A127: 4.9.5.99. | B127: Recuperación de otras provisiones y reservas técnicas | D127: =SUMIF(BCPAC!$B$10:$B$8000,$A127,BCPAC!$G$10:$G$8000)/1000 -> 0 | E127: 0 | F127: =SUMIF(BCPAN!$B$10:$B$8000,$A127,BCPAN!$G$10:$G$8000)/1000 -> 0 | G127: 0 | H127: 0 | I127: 0
A128: 4.9.6. | B128: Resultados positivos de inversiones patrimoniales y participación de los intereses minoritarios | C128: 57 | D128: =SUM(D129:D130) -> 0 | E128: 0 | F128: =SUM(F129:F130) -> 0 | G128: =+IFERROR(F128/$F$133,0) -> 0 | H128: 0 | I128: 0 | J128: =+FIXED(E128,4) -> 0,0000 | K128: =+FIXED(I128,4) -> 0,0000 | L128: =+FIXED(H128,2) -> 0,00 | M128: =IF(H128 < 0, "Disminución", "Aumento") -> Aumento | N128: Ingresos | O128: =+CONCATENATE(#REF!,AnalisisER!B128,#REF!,(AnalisisER!J128*100),#REF!,N128,#REF!,AnalisisER!L128,#REF!,AnalisisER!M128,#REF!,(AnalisisER!K128*100),#REF!) -> 
A129: 4.9.6.01. | B129: Resultados positivos de inversiones patrimoniales | D129: =SUMIF(BCPAC!$B$10:$B$8000,$A129,BCPAC!$G$10:$G$8000)/1000 -> 0 | E129: 0 | F129: =SUMIF(BCPAN!$B$10:$B$8000,$A129,BCPAN!$G$10:$G$8000)/1000 -> 0 | G129: 0 | H129: 0 | I129: 0
A130: 4.9.6.02. | B130: Participación de los intereses minoritarios en el resultado neto negativo | D130: =SUMIF(BCPAC!$B$10:$B$8000,$A130,BCPAC!$G$10:$G$8000)/1000 -> 0 | E130: 0 | F130: =SUMIF(BCPAN!$B$10:$B$8000,$A130,BCPAN!$G$10:$G$8000)/1000 -> 0 | G130: 0 | H130: 0 | I130: 0
A131: 4.9.9. | B131: Otros ingresos y resultados positivos | C131: 58 | D131: =SUM(D132) -> 2926.68528 | E131: 0.0005041540295 | F131: =SUM(F132) -> 402.27242 | G131: 7.099484221e-05 | H131: 2524.41286 | I131: 6.275381395 | J131: =+FIXED(E131,4) -> 0,0005 | K131: =+FIXED(I131,4) -> 6,2754 | L131: =+FIXED(H131,2) -> 2 524,41 | M131: =IF(H131 < 0, "Disminución", "Aumento") -> Aumento | N131: Ingresos | O131: =+CONCATENATE(#REF!,AnalisisER!B131,#REF!,(AnalisisER!J131*100),#REF!,N131,#REF!,AnalisisER!L131,#REF!,AnalisisER!M131,#REF!,(AnalisisER!K131*100),#REF!) -> 
A132: 4.9.9.99. | B132: Ingresos y resultados positivos varios | D132: =SUMIF(BCPAC!$B$10:$B$8000,$A132,BCPAC!$G$10:$G$8000)/1000 -> 2926.68528 | E132: 0.0005041540295 | F132: =SUMIF(BCPAN!$B$10:$B$8000,$A132,BCPAN!$G$10:$G$8000)/1000 -> 402.27242 | G132: 7.099484221e-05 | H132: 2524.41286 | I132: 6.275381395
B133: TOTAL DE INGRESOS | D133: =+D131+D128+D123+D119+D113+D110+D103+D98+D94+D86+D82+D78+D75+D64+D61+D57+D54+D51+D45+D40+D37+D33+D30+D26+D22+D15+D10 -> 5805141.105 | E133: 1 | F133: =+F131+F128+F123+F119+F113+F110+F103+F98+F94+F86+F82+F78+F75+F64+F61+F57+F54+F51+F45+F40+F37+F33+F30+F26+F22+F15+F10 -> 5666220.355 | G133: 1 | H133: 138920.7505 | I133: 0.02451735758
A135: 5. | B135: GASTOS
A136: 5.1. | B136: Gastos de funcionamiento
A137: 5.1.1. | B137: Gastos en personal | C137: 59 | D137: =SUM(D138:D145) -> 1385399.269 | E137: =+IFERROR(D137/$D$233,0) -> 0.2632555978 | F137: =SUM(F138:F145) -> 1284241.329 | G137: =+IFERROR(F137/$F$233,0) -> 0.2210505571 | H137: =+D137-F137 -> 101157.9401 | I137: =+IFERROR(H137/F137,0) -> 0.07876863785 | J137: =+FIXED(E137,4) -> 0.2633 | K137: =+FIXED(I137,4) -> 0.0788 | L137: =+FIXED(H137,2) -> 101,157.94 | M137: =IF(H137 < 0, "Disminución", "Aumento") -> Aumento | N137: Gastos | O137: =+CONCATENATE(#REF!,AnalisisER!B137,#REF!,(AnalisisER!J137*100),#REF!,N137,#REF!,AnalisisER!L137,#REF!,AnalisisER!M137,#REF!,(AnalisisER!K137*100),#REF!) -> 
A138: 5.1.1.01. | B138: Remuneraciones Básicas | D138: =SUMIF(BCPAC!$B$10:$B$8000,$A138,BCPAC!$G$10:$G$8000)/1000 -> 746913.1266 | E138: =+IFERROR(D138/$D$233,0) -> 0.1419295261 | F138: =SUMIF(BCPAN!$B$10:$B$8000,$A138,BCPAN!$G$10:$G$8000)/1000 -> 746186.0116 | G138: =+IFERROR(F138/$F$233,0) -> 0.1284375684 | H138: 727.11497 | I138: =+IFERROR(H138/F138,0) -> 0.0009744419738
A139: 5.1.1.02. | B139: Remuneraciones eventuales | D139: =SUMIF(BCPAC!$B$10:$B$8000,$A139,BCPAC!$G$10:$G$8000)/1000 -> 70522.29155 | E139: =+IFERROR(D139/$D$233,0) -> 0.01340074911 | F139: =SUMIF(BCPAN!$B$10:$B$8000,$A139,BCPAN!$G$10:$G$8000)/1000 -> 77287.62543 | G139: =+IFERROR(F139/$F$233,0) -> 0.01330316372 | H139: -6765.33388 | I139: -0.087534503
A140: 5.1.1.03. | B140: Incentivos salariales | D140: =SUMIF(BCPAC!$B$10:$B$8000,$A140,BCPAC!$G$10:$G$8000)/1000 -> 320697.6515 | E140: 0.06093943736 | F140: =SUMIF(BCPAN!$B$10:$B$8000,$A140,BCPAN!$G$10:$G$8000)/1000 -> 261470.8933 | G140: 0.04500578304 | H140: 59226.75824 | I140: 0.2265137718
A141: 5.1.1.04. | B141: Contribuciones patronales al desarrollo y la seguridad social | D141: =SUMIF(BCPAC!$B$10:$B$8000,$A141,BCPAC!$G$10:$G$8000)/1000 -> 202734.3529 | E141: 0.03852387861 | F141: =SUMIF(BCPAN!$B$10:$B$8000,$A141,BCPAN!$G$10:$G$8000)/1000 -> 176018.1011 | G141: 0.0302971867 | H141: 26716.25176 | I141: 0.1517812747
A142: 5.1.1.05. | B142: Contribuciones patronales a fondos de pensiones y a otros fondos de capitalización | D142: =SUMIF(BCPAC!$B$10:$B$8000,$A142,BCPAC!$G$10:$G$8000)/1000 -> 2962.79636 | E142: 0.0005629949029 | F142: =SUMIF(BCPAN!$B$10:$B$8000,$A142,BCPAN!$G$10:$G$8000)/1000 -> 165.46731 | G142: 2.848112752e-05 | H142: 2797.32905 | I142: 16.90562958
A143: 5.1.1.06. | B143: Asistencia social y beneficios al personal | D143: =SUMIF(BCPAC!$B$10:$B$8000,$A143,BCPAC!$G$10:$G$8000)/1000 -> 41569.05 | E143: 0.007899011753 | F143: =SUMIF(BCPAN!$B$10:$B$8000,$A143,BCPAN!$G$10:$G$8000)/1000 -> 23113.23 | G143: 0.003978374043 | H143: 18455.82 | I143: 0.7984959264
A144: 5.1.1.07. | B144: Contribuciones estatales a la seguridad social | D144: =SUMIF(BCPAC!$B$10:$B$8000,$A144,BCPAC!$G$10:$G$8000)/1000 -> 0 | E144: 0 | F144: =SUMIF(BCPAN!$B$10:$B$8000,$A144,BCPAN!$G$10:$G$8000)/1000 -> 0 | G144: 0 | H144: 0 | I144: 0
A145: 5.1.1.99. | B145: Otros gastos en personal | D145: =SUMIF(BCPAC!$B$10:$B$8000,$A145,BCPAC!$G$10:$G$8000)/1000 -> 0 | E145: 0 | F145: =SUMIF(BCPAN!$B$10:$B$8000,$A145,BCPAN!$G$10:$G$8000)/1000 -> 0 | G145: 0 | H145: 0 | I145: 0
A146: 5.1.2. | B146: Servicios | C146: 60 | D146: =SUM(D147:D155) -> 2658062.48 | E146: =+IFERROR(D146/$D$233,0) -> 0.5050889248 | F146: =SUM(F147:F155) -> 3548386.693 | G146: =+IFERROR(F146/$F$233,0) -> 0.6107674917 | H146: -890324.2129 | I146: =+IFERROR(H146/F146,0) -> -0.2509095795 | J146: =+FIXED(E146,4) -> 0.5051 | K146: =+FIXED(I146,4) -> -0.2509 | L146: =+FIXED(H146,2) -> -890,324.21 | M146: =IF(H146 < 0, "Disminución", "Aumento") -> Disminución | N146: Gastos | O146: =+CONCATENATE(#REF!,AnalisisER!B146,#REF!,(AnalisisER!J146*100),#REF!,N146,#REF!,AnalisisER!L146,#REF!,AnalisisER!M146,#REF!,(AnalisisER!K146*100),#REF!) -> 
A147: 5.1.2.01. | B147: Alquileres y derechos sobre bienes | D147: =SUMIF(BCPAC!$B$10:$B$8000,$A147,BCPAC!$G$10:$G$8000)/1000 -> 86512.63863 | E147: =+IFERROR(D147/$D$233,0) -> 0.01643925828 | F147: =SUMIF(BCPAN!$B$10:$B$8000,$A147,BCPAN!$G$10:$G$8000)/1000 -> 177278.1772 | G147: =+IFERROR(F147/$F$233,0) -> 0.0305140778 | H147: -90765.53854 | I147: =+IFERROR(H147/F147,0) -> -0.51199499 | J147: =+FIXED(E147,4) -> 0.0164 | K147: =+FIXED(I147,4) -> -0.5120 | L147: =+FIXED(H147,2) -> -90,765.54 | M147: =IF(H147 < 0, "Disminución", "Aumento") -> Disminución | N147: Gastos | O147: =+CONCATENATE(#REF!,AnalisisER!B147,#REF!,(AnalisisER!J147*100),#REF!,N147,#REF!,AnalisisER!L147,#REF!,AnalisisER!M147,#REF!,(AnalisisER!K147*100),#REF!) -> 
A148: 5.1.2.02. | B148: Servicios básicos | D148: =SUMIF(BCPAC!$B$10:$B$8000,$A148,BCPAC!$G$10:$G$8000)/1000 -> 178594.7743 | E148: 0.03393684055 | F148: =SUMIF(BCPAN!$B$10:$B$8000,$A148,BCPAN!$G$10:$G$8000)/1000 -> 177713.3088 | G148: 0.03058897501 | H148: 881.46551 | I148: 0.004960042193
A149: 5.1.2.03. | B149: Servicios comerciales y financieros | D149: =SUMIF(BCPAC!$B$10:$B$8000,$A149,BCPAC!$G$10:$G$8000)/1000 -> 29661.77932 | E149: 0.005636374742 | F149: =SUMIF(BCPAN!$B$10:$B$8000,$A149,BCPAN!$G$10:$G$8000)/1000 -> 37714.10827 | G149: 0.006491556108 | H149: -8052.32895 | I149: -0.2135097267
A150: 5.1.2.04. | B150: Servicios de gestión y apoyo | D150: =SUMIF(BCPAC!$B$10:$B$8000,$A150,BCPAC!$G$10:$G$8000)/1000 -> 129221.9524 | E150: 0.02455494462 | F150: =SUMIF(BCPAN!$B$10:$B$8000,$A150,BCPAN!$G$10:$G$8000)/1000 -> 119626.0661 | G150: 0.02059068491 | H150: 9595.88626 | I150: 0.08021568018
A151: 5.1.2.05. | B151: Gastos de viaje y transporte | D151: =SUMIF(BCPAC!$B$10:$B$8000,$A151,BCPAC!$G$10:$G$8000)/1000 -> 6243.82345 | E151: 0.001186460475 | F151: =SUMIF(BCPAN!$B$10:$B$8000,$A151,BCPAN!$G$10:$G$8000)/1000 -> 8797.11797 | G151: 0.001514207481 | H151: -2553.29452 | I151: -0.2902421598
A152: 5.1.2.06. | B152: Seguros, reaseguros y otras obligaciones | D152: =SUMIF(BCPAC!$B$10:$B$8000,$A152,BCPAC!$G$10:$G$8000)/1000 -> 57418.18043 | E152: 0.01091068673 | F152: =SUMIF(BCPAN!$B$10:$B$8000,$A152,BCPAN!$G$10:$G$8000)/1000 -> 53701.05927 | G152: 0.009243316502 | H152: 3717.12116 | I152: 0.06921876794
A153: 5.1.2.07. | B153: Capacitación y protocolo | D153: =SUMIF(BCPAC!$B$10:$B$8000,$A153,BCPAC!$G$10:$G$8000)/1000 -> 10860 | E153: 0.002063633103 | F153: =SUMIF(BCPAN!$B$10:$B$8000,$A153,BCPAN!$G$10:$G$8000)/1000 -> 0 | G153: 0 | H153: 10860 | I153: 0
A154: 5.1.2.08. | B154: Mantenimiento y reparaciones | D154: =SUMIF(BCPAC!$B$10:$B$8000,$A154,BCPAC!$G$10:$G$8000)/1000 -> 2159399.331 | E154: 0.4103322231 | F154: =SUMIF(BCPAN!$B$10:$B$8000,$A154,BCPAN!$G$10:$G$8000)/1000 -> 2973406.855 | G154: 0.5117988551 | H154: -814007.5238 | I154: -0.2737625772
A155: 5.1.2.99. | B155: Otros servicios | D155: =SUMIF(BCPAC!$B$10:$B$8000,$A155,BCPAC!$G$10:$G$8000)/1000 -> 150 | E155: 2.850321965e-05 | F155: =SUMIF(BCPAN!$B$10:$B$8000,$A155,BCPAN!$G$10:$G$8000)/1000 -> 150 | G155: 2.581881054e-05 | H155: 0 | I155: 0
A156: 5.1.3. | B156: Materiales y suministros consumidos | C156: 61 | D156: =SUM(D157:D161) -> 591454.2494 | E156: =+IFERROR(D156/$D$233,0) -> 0.1123890026 | F156: =SUM(F157:F161) -> 539311.4258 | G156: =+IFERROR(F156/$F$233,0) -> 0.09282919685 | H156: 52142.82357 | I156: =+IFERROR(H156/F156,0) -> 0.09668406986 | J156: =+FIXED(E156,4) -> 0.1124 | K156: =+FIXED(I156,4) -> 0.0967 | L156: =+FIXED(H156,2) -> 52,142.82 | M156: =IF(H156 < 0, "Disminución", "Aumento") -> Aumento | N156: Gastos | O156: =+CONCATENATE(#REF!,AnalisisER!B156,#REF!,(AnalisisER!J156*100),#REF!,N156,#REF!,AnalisisER!L156,#REF!,AnalisisER!M156,#REF!,(AnalisisER!K156*100),#REF!) -> 
A157: 5.1.3.01. | B157: Productos químicos y conexos | D157: =SUMIF(BCPAC!$B$10:$B$8000,$A157,BCPAC!$G$10:$G$8000)/1000 -> 171260.9372 | E157: =+IFERROR(D157/$D$233,0) -> 0.03254325408 | F157: =SUMIF(BCPAN!$B$10:$B$8000,$A157,BCPAN!$G$10:$G$8000)/1000 -> 169525.808 | G157: 0.02917969813 | H157: 1735.12922 | I157: 0.01023519215
A158: 5.1.3.02. | B158: Alimentos y productos agropecuarios | D158: =SUMIF(BCPAC!$B$10:$B$8000,$A158,BCPAC!$G$10:$G$8000)/1000 -> 3213.03709 | E158: =+IFERROR(D158/$D$233,0) -> 0.0006105460129 | F158: =SUMIF(BCPAN!$B$10:$B$8000,$A158,BCPAN!$G$10:$G$8000)/1000 -> 8106.78 | G158: 0.00139538278 | H158: -4893.74291 | I158: -0.6036605052
A159: 5.1.3.03. | B159: Materiales y productos de uso en la construcción y mantenimiento | D159: =SUMIF(BCPAC!$B$10:$B$8000,$A159,BCPAC!$G$10:$G$8000)/1000 -> 221669.2684 | E159: 0.04212191899 | F159: =SUMIF(BCPAN!$B$10:$B$8000,$A159,BCPAN!$G$10:$G$8000)/1000 -> 182412.7368 | G159: 0.03139786595 | H159: 39256.53163 | I159: 0.2152071852
A160: 5.1.3.04. | B160: Herramientas, repuestos y accesorios | D160: =SUMIF(BCPAC!$B$10:$B$8000,$A160,BCPAC!$G$10:$G$8000)/1000 -> 151500.9952 | E160: 0.02878844096 | F160: =SUMIF(BCPAN!$B$10:$B$8000,$A160,BCPAN!$G$10:$G$8000)/1000 -> 152345.6673 | G160: 0.02622255947 | H160: -844.67209 | I160: -0.005544444454
A161: 5.1.3.99. | B161: Útiles, materiales y suministros diversos | D161: =SUMIF(BCPAC!$B$10:$B$8000,$A161,BCPAC!$G$10:$G$8000)/1000 -> 43810.0115 | E161: 0.008324842539 | F161: =SUMIF(BCPAN!$B$10:$B$8000,$A161,BCPAN!$G$10:$G$8000)/1000 -> 26920.43378 | G161: 0.00463369053 | H161: 16889.57772 | I161: 0.6273887657
A162: 5.1.4. | B162: Consumo de bienes distintos de inventarios | C162: 62 | D162: =SUM(D163:D164) -> 221860.5991 | E162: =+IFERROR(D162/$D$233,0) -> 0.04215827593 | F162: =SUM(F163:F164) -> 176031.8154 | G162: 0.03029954728 | H162: 45828.7837 | I162: 0.2603437543 | J162: =+FIXED(E162,4) -> 0.0422 | K162: =+FIXED(I162,4) -> 0.2603 | L162: =+FIXED(H162,2) -> 45,828.78 | M162: =IF(H162 < 0, "Disminución", "Aumento") -> Aumento | N162: Gastos | O162: =+CONCATENATE(#REF!,AnalisisER!B162,#REF!,(AnalisisER!J162*100),#REF!,N162,#REF!,AnalisisER!L162,#REF!,AnalisisER!M162,#REF!,(AnalisisER!K162*100),#REF!) -> 
A163: 5.1.4.01. | B163: Consumo de bienes no concesionados | D163: =SUMIF(BCPAC!$B$10:$B$8000,$A163,BCPAC!$G$10:$G$8000)/1000 -> 221860.5991 | E163: 0.04215827593 | F163: =SUMIF(BCPAN!$B$10:$B$8000,$A163,BCPAN!$G$10:$G$8000)/1000 -> 176031.8154 | G163: 0.03029954728 | H163: 45828.7837 | I163: 0.2603437543
A164: 5.1.4.02. | B164: Consumo de bienes concesionados | D164: =SUMIF(BCPAC!$B$10:$B$8000,$A164,BCPAC!$G$10:$G$8000)/1000 -> 0 | E164: 0 | F164: =SUMIF(BCPAN!$B$10:$B$8000,$A164,BCPAN!$G$10:$G$8000)/1000 -> 0 | G164: 0 | H164: 0 | I164: 0
A165: 5.1.5. | B165: Pérdidas por deterioro y desvalorización de bienes | C165: 63 | D165: =SUM(D166:D167) -> 0 | E165: =+IFERROR(D165/$D$233,0) -> 0 | F165: =SUM(F166:F167) -> 155.07773 | G165: 2.669281687e-05 | H165: -155.07773 | I165: -1 | J165: =+FIXED(E165,4) -> 0.0000 | K165: =+FIXED(I165,4) -> -1.0000 | L165: =+FIXED(H165,2) -> -155.08 | M165: =IF(H165 < 0, "Disminución", "Aumento") -> Disminución | N165: Gastos | O165: =+CONCATENATE(#REF!,AnalisisER!B165,#REF!,(AnalisisER!J165*100),#REF!,N165,#REF!,AnalisisER!L165,#REF!,AnalisisER!M165,#REF!,(AnalisisER!K165*100),#REF!) -> 
A166: 5.1.5.01. | B166: Deterioro y desvalorización de bienes no concesionados | D166: =SUMIF(BCPAC!$B$10:$B$8000,$A166,BCPAC!$G$10:$G$8000)/1000 -> 0 | E166: 0 | F166: =SUMIF(BCPAN!$B$10:$B$8000,$A166,BCPAN!$G$10:$G$8000)/1000 -> 155.07773 | G166: 2.669281687e-05 | H166: -155.07773 | I166: -1
A167: 5.1.5.02. | B167: Deterioro y desvalorización de bienes concesionados | D167: =SUMIF(BCPAC!$B$10:$B$8000,$A167,BCPAC!$G$10:$G$8000)/1000 -> 0 | E167: 0 | F167: =SUMIF(BCPAN!$B$10:$B$8000,$A167,BCPAN!$G$10:$G$8000)/1000 -> 0 | G167: 0 | H167: 0 | I167: 0
A168: 5.1.6. | B168: Deterioro y pérdidas de inventarios | C168: 64 | D168: =SUM(D169:D171) -> 0 | E168: =+IFERROR(D168/$D$233,0) -> 0 | F168: =SUM(F169:F171) -> 0 | G168: 0 | H168: 0 | I168: 0 | J168: =+FIXED(E168,4) -> 0.0000 | K168: =+FIXED(I168,4) -> 0.0000 | L168: =+FIXED(H168,2) -> 0.00 | M168: =IF(H168 < 0, "Disminución", "Aumento") -> Aumento | N168: Gastos | O168: =+CONCATENATE(#REF!,AnalisisER!B168,#REF!,(AnalisisER!J168*100),#REF!,N168,#REF!,AnalisisER!L168,#REF!,AnalisisER!M168,#REF!,(AnalisisER!K168*100),#REF!) -> 
A169: 5.1.6.01. | B169: Deterioro y pérdidas de inventarios por materiales y suministros para consumo y prestación de servicios | D169: =SUMIF(BCPAC!$B$10:$B$8000,$A169,BCPAC!$G$10:$G$8000)/1000 -> 0 | E169: 0 | F169: =SUMIF(BCPAN!$B$10:$B$8000,$A169,BCPAN!$G$10:$G$8000)/1000 -> 0 | G169: 0 | H169: 0 | I169: 0
A170: 5.1.6.02. | B170: Deterioro y pérdidas de inventarios por bienes para la venta | D170: =SUMIF(BCPAC!$B$10:$B$8000,$A170,BCPAC!$G$10:$G$8000)/1000 -> 0 | E170: 0 | F170: =SUMIF(BCPAN!$B$10:$B$8000,$A170,BCPAN!$G$10:$G$8000)/1000 -> 0 | G170: 0 | H170: 0 | I170: 0
A171: 5.1.6.03. | B171: Deterioro y pérdidas de inventarios por materias primas y bienes en producción | D171: =SUMIF(BCPAC!$B$10:$B$8000,$A171,BCPAC!$G$10:$G$8000)/1000 -> 0 | E171: 0 | F171: =SUMIF(BCPAN!$B$10:$B$8000,$A171,BCPAN!$G$10:$G$8000)/1000 -> 0 | G171: 0 | H171: 0 | I171: 0
A172: 5.1.7. | B172: Deterioro de inversiones y cuentas a cobrar | C172: 65 | D172: =SUM(D173:D174) -> 0 | E172: =+IFERROR(D172/$D$233,0) -> 0 | F172: =SUM(F173:F174) -> 0 | G172: 0 | H172: 0 | I172: 0 | J172: =+FIXED(E172,4) -> 0.0000 | K172: =+FIXED(I172,4) -> 0.0000 | L172: =+FIXED(H172,2) -> 0.00 | M172: =IF(H172 < 0, "Disminución", "Aumento") -> Aumento | N172: Gastos | O172: =+CONCATENATE(#REF!,AnalisisER!B172,#REF!,(AnalisisER!J172*100),#REF!,N172,#REF!,AnalisisER!L172,#REF!,AnalisisER!M172,#REF!,(AnalisisER!K172*100),#REF!) -> 
A173: 5.1.7.01. | B173: Deterioro de inversiones | D173: =SUMIF(BCPAC!$B$10:$B$8000,$A173,BCPAC!$G$10:$G$8000)/1000 -> 0 | E173: 0 | F173: =SUMIF(BCPAN!$B$10:$B$8000,$A173,BCPAN!$G$10:$G$8000)/1000 -> 0 | G173: 0 | H173: 0 | I173: 0
A174: 5.1.7.02. | B174: Deterioro de cuentas a cobrar | D174: =SUMIF(BCPAC!$B$10:$B$8000,$A174,BCPAC!$G$10:$G$8000)/1000 -> 0 | E174: 0 | F174: =SUMIF(BCPAN!$B$10:$B$8000,$A174,BCPAN!$G$10:$G$8000)/1000 -> 0 | G174: 0 | H174: 0 | I174: 0
A175: 5.1.8. | B175: Cargos por provisiones y reservas técnicas | C175: 66 | D175: =SUM(D176:D180) -> 121 | E175: =+IFERROR(D175/$D$233,0) -> 2.299259719e-05 | F175: =SUM(F176:F180) -> 181.5 | G175: 3.124076076e-05 | H175: -60.5 | I175: -0.3333333333 | J175: =+FIXED(E175,4) -> 0.0000 | K175: =+FIXED(I175,4) -> -0.3333 | L175: =+FIXED(H175,2) -> -60.50 | M175: =IF(H175 < 0, "Disminución", "Aumento") -> Disminución | N175: Gastos | O175: =+CONCATENATE(#REF!,AnalisisER!B175,#REF!,(AnalisisER!J175*100),#REF!,N175,#REF!,AnalisisER!L175,#REF!,AnalisisER!M175,#REF!,(AnalisisER!K175*100),#REF!) -> 
A176: 5.1.8.01. | B176: Cargos por litigios y demandas | D176: =SUMIF(BCPAC!$B$10:$B$8000,$A176,BCPAC!$G$10:$G$8000)/1000 -> 121 | E176: 2.299259719e-05 | F176: =SUMIF(BCPAN!$B$10:$B$8000,$A176,BCPAN!$G$10:$G$8000)/1000 -> 181.5 | G176: 3.124076076e-05 | H176: -60.5 | I176: -0.3333333333 | J176: =+FIXED(E176,4) -> 0.0000 | K176: =+FIXED(I176,4) -> -0.3333 | L176: =+FIXED(H176,2) -> -60.50 | M176: =IF(H176 < 0, "Disminución", "Aumento") -> Disminución | N176: Gastos | O176: =+CONCATENATE(#REF!,AnalisisER!B176,#REF!,(AnalisisER!J176*100),#REF!,N176,#REF!,AnalisisER!L176,#REF!,AnalisisER!M176,#REF!,(AnalisisER!K176*100),#REF!) -> 
A177: 5.1.8.02. | B177: Cargos por reestructuración | D177: =SUMIF(BCPAC!$B$10:$B$8000,$A177,BCPAC!$G$10:$G$8000)/1000 -> 0 | E177: 0 | F177: =SUMIF(BCPAN!$B$10:$B$8000,$A177,BCPAN!$G$10:$G$8000)/1000 -> 0 | G177: 0 | H177: 0 | I177: 0
A178: 5.1.8.03. | B178: Cargos por beneficios a los empleados | D178: =SUMIF(BCPAC!$B$10:$B$8000,$A178,BCPAC!$G$10:$G$8000)/1000 -> 0 | E178: 0 | F178: =SUMIF(BCPAN!$B$10:$B$8000,$A178,BCPAN!$G$10:$G$8000)/1000 -> 0 | G178: 0 | H178: 0 | I178: 0
A179: 5.1.8.99. | B179: Cargos por otras provisiones y reservas técnicas | D179: =SUMIF(BCPAC!$B$10:$B$8000,$A179,BCPAC!$G$10:$G$8000)/1000 -> 0 | E179: 0 | F179: =SUMIF(BCPAN!$B$10:$B$8000,$A179,BCPAN!$G$10:$G$8000)/1000 -> 0 | G179: 0 | H179: 0 | I179: 0
A180: 5.2. | B180: Gastos financieros
A181: 5.2.1. | B181: Intereses sobre endeudamiento público | C181: 67 | D181: =SUM(D182:D185) -> 107152.3241 | E181: =+IFERROR(D181/$D$233,0) -> 0.02036124154 | F181: =SUM(F182:F185) -> 106997.6737 | G181: =+IFERROR(F181/$F$233,0) -> 0.01841701777 | H181: =+D181-F181 -> 154.65043 | I181: =+IFERROR(H181/F181,0) -> 0.001445362546 | J181: =+FIXED(E181,4) -> 0.0204 | K181: =+FIXED(I181,4) -> 0.0014 | L181: =+FIXED(H181,2) -> 154.65 | M181: =IF(H181 < 0, "Disminución", "Aumento") -> Aumento | N181: Gastos | O181: =+CONCATENATE(#REF!,AnalisisER!B181,#REF!,(AnalisisER!J181*100),#REF!,N181,#REF!,AnalisisER!L181,#REF!,AnalisisER!M181,#REF!,(AnalisisER!K181*100),#REF!) -> 
A182: 5.2.1.01. | B182: Intereses sobre títulos y valores de la deuda pública | D182: =SUMIF(BCPAC!$B$10:$B$8000,$A182,BCPAC!$G$10:$G$8000)/1000 -> 0 | E182: 0 | F182: =SUMIF(BCPAN!$B$10:$B$8000,$A182,BCPAN!$G$10:$G$8000)/1000 -> 0 | G182: 0 | H182: 0 | I182: 0
A183: 5.2.1.02. | B183: Intereses sobre préstamos | D183: =SUMIF(BCPAC!$B$10:$B$8000,$A183,BCPAC!$G$10:$G$8000)/1000 -> 107152.3241 | E183: 0.02036124154 | F183: =SUMIF(BCPAN!$B$10:$B$8000,$A183,BCPAN!$G$10:$G$8000)/1000 -> 106997.6737 | G183: 0.01841701777 | H183: 154.65043 | I183: 0.001445362546
A184: 5.2.1.03. | B184: Intereses sobre deudas asumidas | D184: =SUMIF(BCPAC!$B$10:$B$8000,$A184,BCPAC!$G$10:$G$8000)/1000 -> 0 | E184: 0 | F184: =SUMIF(BCPAN!$B$10:$B$8000,$A184,BCPAN!$G$10:$G$8000)/1000 -> 0 | G184: 0 | H184: 0 | I184: 0
A185: 5.2.1.04. | B185: Intereses sobre endeudamiento de Tesorería | D185: =SUMIF(BCPAC!$B$10:$B$8000,$A185,BCPAC!$G$10:$G$8000)/1000 -> 0 | E185: 0 | F185: =SUMIF(BCPAN!$B$10:$B$8000,$A185,BCPAN!$G$10:$G$8000)/1000 -> 0 | G185: 0 | H185: 0 | I185: 0
A186: 5.2.9. | B186: Otros gastos financieros | C186: 68 | D186: =SUM(D187:D192) -> 0 | E186: 0 | F186: =SUM(F187:F192) -> 0 | G186: 0 | H186: 0 | I186: 0 | J186: =+FIXED(E186,4) -> 0.0000 | K186: =+FIXED(I186,4) -> 0.0000 | L186: =+FIXED(H186,2) -> 0.00 | M186: =IF(H186 < 0, "Disminución", "Aumento") -> Aumento | N186: Gastos | O186: =+CONCATENATE(#REF!,AnalisisER!B186,#REF!,(AnalisisER!J186*100),#REF!,N186,#REF!,AnalisisER!L186,#REF!,AnalisisER!M186,#REF!,(AnalisisER!K186*100),#REF!) -> 
A187: 5.2.9.01. | B187: Intereses por deudas comerciales | D187: =SUMIF(BCPAC!$B$10:$B$8000,$A187,BCPAC!$G$10:$G$8000)/1000 -> 0 | E187: 0 | F187: =SUMIF(BCPAN!$B$10:$B$8000,$A187,BCPAN!$G$10:$G$8000)/1000 -> 0 | G187: 0 | H187: 0 | I187: 0
A188: 5.2.9.02. | B188: Intereses por deudas sociales y fiscales | D188: =SUMIF(BCPAC!$B$10:$B$8000,$A188,BCPAC!$G$10:$G$8000)/1000 -> 0 | E188: 0 | F188: =SUMIF(BCPAN!$B$10:$B$8000,$A188,BCPAN!$G$10:$G$8000)/1000 -> 0 | G188: 0 | H188: 0 | I188: 0
A189: 5.2.9.04. | B189: Intereses por documentos a pagar | D189: =SUMIF(BCPAC!$B$10:$B$8000,$A189,BCPAC!$G$10:$G$8000)/1000 -> 0 | E189: 0 | F189: =SUMIF(BCPAN!$B$10:$B$8000,$A189,BCPAN!$G$10:$G$8000)/1000 -> 0 | G189: 0 | H189: 0 | I189: 0
A190: 5.2.9.06. | B190: Intereses sobre deudas por avales ejecutados | D190: =SUMIF(BCPAC!$B$10:$B$8000,$A190,BCPAC!$G$10:$G$8000)/1000 -> 0 | E190: 0 | F190: =SUMIF(BCPAN!$B$10:$B$8000,$A190,BCPAN!$G$10:$G$8000)/1000 -> 0 | G190: 0 | H190: 0 | I190: 0
A191: 5.2.9.99. | B191: Otros gastos financieros varios | D191: =SUMIF(BCPAC!$B$10:$B$8000,$A191,BCPAC!$G$10:$G$8000)/1000 -> 0 | E191: 0 | F191: =SUMIF(BCPAN!$B$10:$B$8000,$A191,BCPAN!$G$10:$G$8000)/1000 -> 0 | G191: 0 | H191: 0 | I191: 0
A192: 5.3. | B192: Gastos y resultados negativos por ventas
A193: 5.3.1. | B193: Costo de ventas de bienes y servicios | C193: 69 | D193: =SUM(D194:D195) -> 0 | E193: =+IFERROR(D193/$D$233,0) -> 0 | F193: =SUM(F194:F195) -> 0 | G193: =+IFERROR(F193/$F$233,0) -> 0 | H193: =+D193-F193 -> 0 | I193: =+IFERROR(H193/F193,0) -> 0 | J193: =+FIXED(E193,4) -> 0.0000 | K193: =+FIXED(I193,4) -> 0.0000 | L193: =+FIXED(H193,2) -> 0.00 | M193: =IF(H193 < 0, "Disminución", "Aumento") -> Aumento | N193: Gastos | O193: =+CONCATENATE(#REF!,AnalisisER!B193,#REF!,(AnalisisER!J193*100),#REF!,N193,#REF!,AnalisisER!L193,#REF!,AnalisisER!M193,#REF!,(AnalisisER!K193*100),#REF!) -> 
A194: 5.3.1.01. | B194: Costo de ventas de bienes | D194: =SUMIF(BCPAC!$B$10:$B$8000,$A194,BCPAC!$G$10:$G$8000)/1000 -> 0 | E194: 0 | F194: =SUMIF(BCPAN!$B$10:$B$8000,$A194,BCPAN!$G$10:$G$8000)/1000 -> 0 | G194: 0 | H194: 0 | I194: 0
A195: 5.3.1.02. | B195: Costo de ventas de servicios | D195: =SUMIF(BCPAC!$B$10:$B$8000,$A195,BCPAC!$G$10:$G$8000)/1000 -> 0 | E195: 0 | F195: =SUMIF(BCPAN!$B$10:$B$8000,$A195,BCPAN!$G$10:$G$8000)/1000 -> 0 | G195: 0 | H195: 0 | I195: 0
A196: 5.3.2. | B196: Resultados negativos por ventas de inversiones | C196: 70 | D196: =SUM(D197:D198) -> 0 | E196: 0 | F196: =SUM(F197:F198) -> 0 | G196: 0 | H196: 0 | I196: 0 | J196: =+FIXED(E196,4) -> 0.0000 | K196: =+FIXED(I196,4) -> 0.0000 | L196: =+FIXED(H196,2) -> 0.00 | M196: =IF(H196 < 0, "Disminución", "Aumento") -> Aumento | N196: Gastos | O196: =+CONCATENATE(#REF!,AnalisisER!B196,#REF!,(AnalisisER!J196*100),#REF!,N196,#REF!,AnalisisER!L196,#REF!,AnalisisER!M196,#REF!,(AnalisisER!K196*100),#REF!) -> 
A197: 5.3.2.02. | B197: Resultados negativos por ventas de inversiones patrimoniales - Método de participación | D197: =SUMIF(BCPAC!$B$10:$B$8000,$A197,BCPAC!$G$10:$G$8000)/1000 -> 0 | E197: 0 | F197: =SUMIF(BCPAN!$B$10:$B$8000,$A197,BCPAN!$G$10:$G$8000)/1000 -> 0 | G197: 0 | H197: 0 | I197: 0
A198: 5.3.2.99. | B198: Resultados negativos por ventas de otras inversiones | D198: =SUMIF(BCPAC!$B$10:$B$8000,$A198,BCPAC!$G$10:$G$8000)/1000 -> 0 | E198: 0 | F198: =SUMIF(BCPAN!$B$10:$B$8000,$A198,BCPAN!$G$10:$G$8000)/1000 -> 0 | G198: 0 | H198: 0 | I198: 0
A199: 5.3.3. | B199: Resultados negativos por ventas e intercambio de bienes | C199: 71 | D199: =SUM(D200:D208) -> 0 | E199: 0 | F199: =SUM(F200:F208) -> 0 | G199: 0 | H199: =+D199-F199 -> 0 | I199: 0 | J199: =+FIXED(E199,4) -> 0.0000 | K199: =+FIXED(I199,4) -> 0.0000 | L199: =+FIXED(H199,2) -> 0.00 | M199: =IF(H199 < 0, "Disminución", "Aumento") -> Aumento | N199: Gastos | O199: =+CONCATENATE(#REF!,AnalisisER!B199,#REF!,(AnalisisER!J199*100),#REF!,N199,#REF!,AnalisisER!L199,#REF!,AnalisisER!M199,#REF!,(AnalisisER!K199*100),#REF!) -> 
A200: 5.3.3.01. | B200: Resultados negativos por ventas de construcciones terminadas | D200: =SUMIF(BCPAC!$B$10:$B$8000,$A200,BCPAC!$G$10:$G$8000)/1000 -> 0 | E200: =+IFERROR(D200/$D$233,0) -> 0 | F200: =SUMIF(BCPAN!$B$10:$B$8000,$A200,BCPAN!$G$10:$G$8000)/1000 -> 0 | G200: =+IFERROR(F200/$F$233,0) -> 0 | H200: 0 | I200: =+IFERROR(H200/F200,0) -> 0
A201: 5.3.3.02. | B201: Resultados negativos por ventas de propiedades, planta y equipo | D201: =SUMIF(BCPAC!$B$10:$B$8000,$A201,BCPAC!$G$10:$G$8000)/1000 -> 0 | E201: 0 | F201: =SUMIF(BCPAN!$B$10:$B$8000,$A201,BCPAN!$G$10:$G$8000)/1000 -> 0 | G201: 0 | H201: 0 | I201: 0
A202: 5.3.3.03. | B202: Resultados negativos por ventas de activos biológicos | D202: =SUMIF(BCPAC!$B$10:$B$8000,$A202,BCPAC!$G$10:$G$8000)/1000 -> 0 | E202: 0 | F202: =SUMIF(BCPAN!$B$10:$B$8000,$A202,BCPAN!$G$10:$G$8000)/1000 -> 0 | G202: 0 | H202: 0 | I202: 0
A203: 5.3.3.04. | B203: Resultados negativos por ventas de bienes intangibles | D203: =SUMIF(BCPAC!$B$10:$B$8000,$A203,BCPAC!$G$10:$G$8000)/1000 -> 0 | E203: 0 | F203: =SUMIF(BCPAN!$B$10:$B$8000,$A203,BCPAN!$G$10:$G$8000)/1000 -> 0 | G203: 0 | H203: 0 | I203: 0
... 31 more rows

Sheet AnalisisFlujo
A1: =+Datos!C2 -> Municipalidad de Buenos Aires
A2: Análisis al Estado de Flujo de Efectivo Comparativo
A3: =+Datos!C4 -> Del 01 de Enero 2024 al 31 de diciembre del 2024 | M3: ¢
A4: - En miles de colones -
D5: TOTAL SECTOR MUNICIPAL 2019 | F5: TOTAL SECTOR MUNICIPAL 2018
B7: Descripción | C7: Nota Nº | D7: =+Datos!D5 -> 2024-12-31 | E7: % análisis vertical | F7: =+Datos!F5 -> 2023-12-31 | G7: % | H7: Monto variación Absoluta | I7: % Variación relativa
A8: FLUJOS DE EFECTIVO DE LAS ACTIVIDADES DE OPERACIÓN
A9: Cobros | C9: 77 | D9: =SUM(D10:D17) -> 5605726.546 | F9: =SUM(F10:F17) -> 0 | H9: =+D9-F9 -> 5605726.546 | I9: =+IFERROR(H9/F9,0) -> 0 | K9: =+I9 -> 0 | L9: =+FIXED(H9,2) -> 5 605 726,55 | M9: =IF(H9 < 0, "Disminución", "Aumento") -> Aumento | N9: =+CONCATENATE("Los Cobros de los Flujos de Efectivo de las Actividades de Operación, comparado al periodo anterior genera una variación absoluta de ¢",L9," que corresponde a un(a) ",M9," del ",K9," % de recursos disponibles, producto de:") -> Los Cobros de los Flujos de Efectivo de las Actividades de Operación, comparado al periodo anterior genera una variación absoluta de ¢5 605 726,55 que corresponde a un(a) Aumento del 0 % de recursos disponibles, producto de:
B10: Cobros por impuestos | D10: ='Papel Trabajo EFE'!G6 -> 1087600.091 | E10: =+IFERROR(D10/$D$9,0) -> 0.1940159018 | F10: 0 | G10: =+IFERROR(F10/$F$9,0) -> 0 | H10: 1087600.091 | I10: 0
B11: Cobros por contribuciones sociales | D11: 0 | E11: 0 | F11: 0 | G11: =+IFERROR(F11/$F$9,0) -> 0 | H11: 0 | I11: 0
B12: Cobros por multas, sanciones, remates y confiscaciones de origen no tributario | D12: ='Papel Trabajo EFE'!H25 -> 4035.645 | E12: 0.0007199147099 | F12: 0 | G12: 0 | H12: 4035.645 | I12: 0
B13: Cobros por ventas de inventarios, servicios y derechos administrativos | D13: ='Papel Trabajo EFE'!G11 -> 583291.6334 | E13: 0.1040528161 | F13: 0 | G13: 0 | H13: 583291.6334 | I13: 0
B14: Cobros por ingresos de la propiedad | D14: ='Papel Trabajo EFE'!G16 -> 59173.50934 | E14: 0.01055590366 | F14: 0 | G14: 0 | H14: 59173.50934 | I14: 0
B15: Cobros por transferencias | D15: ='Papel Trabajo EFE'!G21 -> 3778419.544 | E15: 0.6740285159 | F15: 0 | G15: 0 | H15: 3778419.544 | I15: 0
B16: Cobros por concesiones | D16: 0 | E16: 0 | F16: 0 | G16: 0 | H16: 0 | I16: 0 | K16: ='Papel Trabajo EFE'!G31 -> 
B17: Otros cobros por actividades de operación | D17: ='Papel Trabajo EFE'!G37 -> 93206.12261 | E17: 0.01662694779 | F17: 0 | G17: =+IFERROR(F17/$F$9,0) -> 0 | H17: 93206.12261 | I17: 0
A18: Pagos | C18: 78 | D18: =+SUM(D19:D23) -> 4908733.179 | F18: =SUM(F19:F23) -> 0 | H18: =+D18-F18 -> 4908733.179 | I18: 0 | K18: =+I18 -> 0 | L18: =+FIXED(H18,2) -> 4 908 733,18 | M18: =IF(H18 < 0, "Disminución", "Aumento") -> Aumento | N18: =+CONCATENATE("Los Pagos de los Flujos de Efectivo de las Actividades de Operación, comparado al periodo anterior genera una variación absoluta de ¢",L18," que corresponde a un(a) ",M18," del ",K18, "% de recursos disponibles, producto de:") -> Los Pagos de los Flujos de Efectivo de las Actividades de Operación, comparado al periodo anterior genera una variación absoluta de ¢4 908 733,18 que corresponde a un(a) Aumento del 0% de recursos disponibles, producto de:
B19: Pagos por beneficios al personal | D19: ='Papel Trabajo EFE'!H55 -> 1139873.49 | E19: =+IFERROR(D19/$D$18,0) -> 0.2322133732 | F19: 0 | G19: =+IFERROR(F19/$F$18,0) -> 0 | H19: 1139873.49 | I19: 0
B20: Pagos por servicios y adquisiciones de inventarios (incluye anticipos) | D20: ='Papel Trabajo EFE'!H46 -> 3257216.199 | E20: =+IFERROR(D20/$D$18,0) -> 0.6635553573 | F20: 0 | G20: =+IFERROR(F20/$F$18,0) -> 0 | H20: 3257216.199 | I20: 0
B21: Pagos por prestaciones de la seguridad social | D21: ='Papel Trabajo EFE'!H41 -> 198989.9451 | E21: =+IFERROR(D21/$D$18,0) -> 0.04053794285 | F21: 0 | G21: =+IFERROR(F21/$F$18,0) -> 0 | H21: 198989.9451 | I21: 0
B22: Pagos por otras transferencias | D22: ='Papel Trabajo EFE'!H60 -> 289073.2252 | E22: =+IFERROR(D22/$D$18,0) -> 0.05888957795 | F22: 0 | G22: =+IFERROR(F22/$F$18,0) -> 0 | H22: 289073.2252 | I22: 0 | K22: 2637.74335
B23: Otros pagos por actividades de operación | D23: ='Papel Trabajo EFE'!H78 -> 23580.32056 | E23: =+IFERROR(D23/$D$18,0) -> 0.004803748686 | F23: 0 | G23: =+IFERROR(F23/$F$18,0) -> 0 | H23: 23580.32056 | I23: 0
A24: Flujos netos de efectivo por actividades de operación | D24: =+D9-D18 -> 696993.3672 | F24: =+F9-F18 -> 0 | H24: 696993.3672 | I24: 0
A26: FLUJOS DE EFECTIVO DE LAS ACTIVIDADES DE INVERSIÓN
A27: Cobros | C27: 79 | D27: =SUM(D28:D32) -> 0 | F27: =SUM(F28:F32) -> 0 | H27: =+D27-F27 -> 0 | I27: =+IFERROR(H27/F27,0) -> 0 | K27: =+I27 -> 0 | L27: =+FIXED(H27,2) -> 0.00 | M27: =IF(H27 < 0, "Disminución", "Aumento") -> Aumento | N27: =+CONCATENATE("Los Cobros de los Flujos de Efectivo de las Actividades de Inversión, comparado al periodo anterior genera una variación absoluta de ¢",L27," que corresponde a un(a) ",M27," del ",K27,"% de recursos disponibles, producto de:") -> Los Cobros de los Flujos de Efectivo de las Actividades de Inversión, comparado al periodo anterior genera una variación absoluta de ¢0.00 que corresponde a un(a) Aumento del 0% de recursos disponibles, producto de:
B28: Cobros por ventas de bienes distintos de inventarios | D28: 0 | E28: =+IFERROR(D28/$D$27,0) -> 0 | F28: 0 | G28: =+IFERROR(F28/$F$27,0) -> 0 | H28: 0 | I28: 0
B29: Cobros por ventas y reembolso de inversiones patrimoniales | D29: 0 | E29: =+IFERROR(D29/$D$27,0) -> 0 | F29: 0 | G29: =+IFERROR(F29/$F$27,0) -> 0 | H29: 0 | I29: 0
B30: Cobros por ventas y reembolso de inversiones en otros instrumentos financieros | D30: 0 | E30: =+IFERROR(D30/$D$27,0) -> 0 | F30: 0 | G30: =+IFERROR(F30/$F$27,0) -> 0 | H30: 0 | I30: 0
B31: Cobros por reembolsos de préstamos | D31: 0 | E31: =+IFERROR(D31/$D$27,0) -> 0 | F31: 0 | G31: =+IFERROR(F31/$F$27,0) -> 0 | H31: 0 | I31: 0
B32: Otros cobros por actividades de inversión | D32: 0 | E32: =+IFERROR(D32/$D$27,0) -> 0 | F32: 0 | G32: =+IFERROR(F32/$F$27,0) -> 0 | H32: 0 | I32: 0
A33: Pagos | C33: 80 | D33: =SUM(D34:D38) -> 509414.1776 | F33: =SUM(F34:F38) -> 0 | H33: 509414.1776 | I33: 0 | K33: =+I33 -> 0 | L33: =+FIXED(H33,2) -> 509 414,18 | M33: =IF(H33 < 0, "Disminución", "Aumento") -> Aumento | N33: =+CONCATENATE("Los Pagos de los Flujos de Efectivo de las Actividades de Inversión, comparado al periodo anterior genera una variación absoluta de ¢",L33," que corresponde a un(a) ",M33," del ",K33,"% de recursos disponibles, producto de:") -> Los Pagos de los Flujos de Efectivo de las Actividades de Inversión, comparado al periodo anterior genera una variación absoluta de ¢509 414,18 que corresponde a un(a) Aumento del 0% de recursos disponibles, producto de:
B34: Pagos por adquisición de bienes distintos de inventarios | D34: ='Papel Trabajo EFE'!H37 -> 509414.1776 | E34: =+IFERROR(D34/$D$33,0) -> 1 | F34: 0 | G34: =+IFERROR(F34/F33,0) -> 0 | H34: 509414.1776 | I34: 0
B35: Pagos por adquisición de inversiones patrimoniales | D35: 0 | E35: =+IFERROR(D35/$D$33,0) -> 0 | F35: 0 | G35: =+IFERROR(F35/F34,0) -> 0 | H35: 0 | I35: 0
B36: Pagos por adquisición de inversiones en otros instrumentos financieros | D36: 0 | E36: =+IFERROR(D36/$D$33,0) -> 0 | F36: 0 | G36: =+IFERROR(F36/F35,0) -> 0 | H36: 0 | I36: 0
B37: Pagos por préstamos otorgados | D37: 0 | E37: =+IFERROR(D37/$D$33,0) -> 0 | F37: 0 | G37: =+IFERROR(F37/F36,0) -> 0 | H37: 0 | I37: 0
B38: Otros pagos por actividades de inversión | D38: 0 | E38: =+IFERROR(D38/$D$33,0) -> 0 | F38: 0 | G38: =+IFERROR(F38/F37,0) -> 0 | H38: 0 | I38: 0
A39: Flujos netos de efectivo por actividades de inversión | D39: =+D27-D33 -> -509414.1776 | F39: =+F27-F33 -> 0 | H39: -509414.1776 | I39: 0
A41: FLUJOS DE EFECTIVO DE LAS ACTIVIDADES DE FINANCIACIÓN
A42: Cobros | C42: 81 | D42: =SUM(D43:D45) -> 1023072.243 | F42: =SUM(F43:F45) -> 0 | H42: =+D42-F42 -> 1023072.243 | I42: =+IFERROR(H42/F42,0) -> 0 | K42: =+I42 -> 0 | L42: =+FIXED(H42,2) -> 1 023 072,24 | M42: =IF(H42 < 0, "Disminución", "Aumento") -> Aumento | N42: =+CONCATENATE("Los Cobros de los Flujos de Efectivo de las Actividades de Financiamiento, comparado al periodo anterior genera una variación absoluta de ¢",L42," que corresponde a un(a) ",M42," del ",K42,"% de recursos disponibles, producto de:") -> Los Cobros de los Flujos de Efectivo de las Actividades de Financiamiento, comparado al periodo anterior genera una variación absoluta de ¢1 023 072,24 que corresponde a un(a) Aumento del 0% de recursos disponibles, producto de:
B43: Cobros por incrementos de capital y transferencias de capital | D43: 0 | E43: =+IFERROR(D43/$D$42,0) -> 0 | F43: 0 | G43: =+IFERROR(F43/$F$42,0) -> 0 | H43: 0 | I43: 0
B44: Cobros por endeudamiento público | D44: 0 | E44: =+IFERROR(D44/$D$42,0) -> 0 | F44: 0 | G44: =+IFERROR(F44/$F$42,0) -> 0 | H44: 0 | I44: 0
B45: Otros cobros por actividades de financiación | D45: ='Papel Trabajo EFE'!J64 -> 1023072.243 | E45: =+IFERROR(D45/$D$42,0) -> 1 | F45: 0 | G45: =+IFERROR(F45/$F$42,0) -> 0 | H45: 1023072.243 | I45: 0
A46: Pagos | C46: 82 | D46: =SUM(D47:D49) -> 538117.6809 | F46: =SUM(F47:F49) -> 0 | H46: 538117.6809 | I46: 0 | K46: =+I46 -> 0 | L46: =+FIXED(H46,2) -> 538 117,68 | M46: =IF(H46 < 0, "Disminución", "Aumento") -> Aumento | N46: =+CONCATENATE("Los Pagos de los Flujos de Efectivo de las Actividades de Financiamiento, comparado al periodo anterior genera una variación absoluta de ¢",L46," que corresponde a un(a) ",M46," del ",K46,"% de recursos disponibles, producto de:") -> Los Pagos de los Flujos de Efectivo de las Actividades de Financiamiento, comparado al periodo anterior genera una variación absoluta de ¢538 117,68 que corresponde a un(a) Aumento del 0% de recursos disponibles, producto de:
B47: Pagos por disminuciones del patrimonio que no afectan resultados | D47: 0 | E47: =+IFERROR(D47/$D$46,0) -> 0 | F47: 0 | G47: =+IFERROR(F47/$F$46,0) -> 0 | H47: 0 | I47: 0
B48: Pagos por amortizaciones de endeudamiento público | D48: ='Papel Trabajo EFE'!H62 -> 430965.3568 | E48: =+IFERROR(D48/$D$46,0) -> 0.8008756673 | F48: 0 | G48: =+IFERROR(F48/$F$46,0) -> 0 | H48: 430965.3568 | I48: 0
B49: Otros pagos por actividades de financiación | D49: ='Papel Trabajo EFE'!H57 -> 107152.3241 | E49: =+IFERROR(D49/$D$46,0) -> 0.1991243327 | F49: 0 | G49: =+IFERROR(F49/$F$46,0) -> 0 | H49: 107152.3241 | I49: 0
A50: Flujos netos de efectivo por actividades de financiación | D50: =+D42-D46 -> 484954.5625 | F50: =+F42-F46 -> 0 | H50: =+D50-F50 -> 484954.5625 | I50: 0
A52: Incremento/Disminución neta de efectivo y equivalentes de efectivo por flujos de actividades | D52: =+D24+D39+D50 -> 672533.7521 | F52: =+F24+F39+F50 -> 0 | H52: =+D52-F52 -> 672533.7521 | I52: =+IFERROR(H52/F52,0) -> 0
F53: 0 | H53: =+D53-F53 -> 0 | I53: =+IFERROR(H53/F53,0) -> 0
A54: Incremento/Disminución neta de efectivo y equivalentes de efectivo por diferencias de cambio no realizadas | D54: 0 | F54: 0 | H54: =+D54-F54 -> 0 | I54: =+IFERROR(H54/F54,0) -> 0
A55: Efectivo y equivalentes de efectivo al inicio del ejercicio | D55: =BCPAN!G12/1000 -> 2106811.911 | F55: 0 | H55: =+D55-F55 -> 2106811.911 | I55: =+IFERROR(H55/F55,0) -> 0
A56: Efectivo y equivalentes de efectivo al final del ejercicio | C56: 83 | D56: =+D52+D54+D55 -> 2779345.663 | F56: =+F52+F54+F55 -> 0 | H56: =+D56-F56 -> 2779345.663 | I56: =+IFERROR(H56/F56,0) -> 0 | K56: =+I56 -> 0 | L56: =+FIXED(H56,2) -> 2 779 345,66 | M56: =IF(H56 < 0, "Disminución", "Aumento") -> Aumento | N56: =+CONCATENATE("La cuenta Efectivo y Equivalentes de Efectivo al final de ejercicio, comparado al periodo anterior genera una variación absoluta de ¢",L56," que corresponde a un(a) ",M56," del ",K56,"% de recursos disponibles, producto de:") -> La cuenta Efectivo y Equivalentes de Efectivo al final de ejercicio, comparado al periodo anterior genera una variación absoluta de ¢2 779 345,66 que corresponde a un(a) Aumento del 0% de recursos disponibles, producto de:
A59: Validaciones
A60: Balanza de comprobación periodo actual saldo final
A61: 1.1.1. | B61: Efectivo y equivalentes de efectivo | D61: =+BCPAC!G12/1000 -> 2779345.66
B62: No debe haber diferencia con Efectivo y equivalentes de efectivo al final del ejercicio | D62: =+D56-D61 -> 0.003389996476 | F62: =D62/2 -> 0.001694998238 | K62: =+D62*1000 -> 3.389996476
A64: Balanza de comprobación periodo actual saldo inicial
A65: 1.1.1. | B65: Efectivo y equivalentes de efectivo | D65: =+BCPAC!D12/1000 -> 2106811.911
B66: No debe haber diferencia con Efectivo y equivalentes de efectivo al inicio del ejercicio | D66: =+D55-D65 -> 0

Sheet Papel Trabajo EFE
A1: ERF | B1: ESF | C1: Concepto | D1: Suma | E1: Resta | G1: Cobro | H1: Pago | I1: Tipo de transacción
A2: 4.1.2. | C2: Impuestos sobre la propiedad | D2: =AnalisisER!D15 -> 648621.2653
A3: 4.1.3. | C3: Impuestos sobre bienes y servicios | D3: =AnalisisER!D22 -> 396638.1494
A4: 4.1.3.99.01.02. | C4: Multas por licencias profesionales, comerciales y otros permisos | D4: =+AnalisisER!D25 -> 6323.025
D5: =D3-D4 -> 390315.1244
B6: 1.1.3.01. | C6: Disminucion Cuentas por Cobrar - Impuestos- | D6: =-AnalisisBS!H20 -> 48663.70172 | G6: =D2+D5+D6 -> 1087600.091 | I6: Operación
A9: 4.4.1. | C9: Ventas de bienes y servicios | D9: =AnalisisER!D51 -> 576873.0451
A10: 4.4.2. | C10: Derechos administrativos | D10: =AnalisisER!D54 -> 654.51999
B11: 1.1.3.04. | C11: Disminución de Venta de bienes y servicios y derechos administrativos a cobrar | D11: =-AnalisisBS!H23 -> 5764.06833 | G11: =D9+D10+D11 -> 583291.6334 | I11: Operación
C12: Cobros por ventas de inventarios, servicios y derechos administrativos
A14: 4.5.1. | C14: Rentas de inversiones y de colocación de efectivo | D14: =AnalisisER!D78 -> 19676.04936
A15: 4.5.2. | C15: Alquileres y derechos sobre bienes | D15: =AnalisisER!D82 -> 39497.45998
B16: 1.1.3.05. | C16: Disminución ingresos a la propiedad por cobrar | D16: =-AnalisisBS!H24 -> 0 | G16: =D14+D15+D16 -> 59173.50934 | I16: Operación
C17: Cobros por ingresos de la propiedad
A19: 4.6.1. | C19: Transferencias corrientes | D19: =AnalisisER!D94 -> 18241.29303
A20: 4.6.2. | C20: Transferencias de capital | D20: =AnalisisER!D98 -> 4102012.638
B21: 1.1.3.06. | C21: Aumento de Transferencias a cobrar a corto plazo | E21: =AnalisisBS!H25 -> 341834.3865 | G21: =D19+D20-E21 -> 3778419.544 | I21: Operación
C22: Cobros por transferencias
A24: 4.9.9. | C24: Otros ingresos y resultados positivos | D24: =AnalisisER!D131 -> 2926.68528
B25: 1.1.3.98. | C25: Aumento Cobros por multas, sanciones, remates y confiscaciones de origen no tributario | E25: 2287.38 | H25: =D4-E25 -> 4035.645 | I25: Operación
B26: 1.1.3.98. | C26: Aumento Otras cuentas a cobrar a corto plazo | E26: =AnalisisBS!H35-'Papel Trabajo EFE'!E25 -> 3680.96052 | H26: =E26-D24 -> 754.27524
A28: 5.1.3. | C28: Materiales y suministros consumidos | E28: =AnalisisER!D156 -> 591454.2494
B29: 1.1.4.01. | C29: Aumento Inventarios | D29: 0 | E29: =AnalisisBS!H38 -> 7720.76382 | H29: 0
B30: 2.1.1.01. | C30: Disminución Deudas comerciales a corto plazo | D30: 0 | E30: =-AnalisisBS!H96 -> 1108.9857
H31: =E28+E29+E30 -> 600283.9989 | I31: Operación
L32: 1.2.5.01 | M32: =+E34-AnalisisBS!H65 -> 313105.2718
A33: 5.1.4.01 | C33: Consumo de bienes distintos de inventarios | E33: =AnalisisER!D163 -> 221860.5991
B34: 1.2.5.01. | C34: Disminución Propiedades, planta y equipos explotados | D34: 313105.27 | E34: 398655.74
B35: 1.2.5.04. | C35: Aumento Bienes de infraestructura y de beneficio y uso público en servicio | E35: =+AnalisisBS!H68 -> 90760.25079
B36: 1.2.5.08. | C36: Disminución Bienes intangibles no concesionados | D36: =-AnalisisBS!H72 -> 2715.72697 | E36: 0 | G36: =-E33+D34+D36 -> 93960.39785 | I36: Operación
B37: 1.2.5.99. | C37: Aumento Bienes no concesionados en proceso de producción | E37: =AnalisisBS!H73 -> 19998.18677 | G37: =G36-H26 -> 93206.12261 | H37: =E34+E35+E37 -> 509414.1776 | I37: Inversión
A39: 5.1.1.04. | C39: Contribuciones patronales al desarrollo y la seguridad social | E39: =AnalisisER!D141 -> 202734.3529
A40: 5.1.1.05. | C40: Contribuciones patronales a fondos de pensiones y a otros fondos de capitalización | E40: =AnalisisER!D142 -> 2962.79636
B41: 2.1.1.02. | C41: Aumento Deudas sociales y fiscales a corto plazo | D41: =+AnalisisBS!H97 -> 6707.20414 | H41: =E39+E40-D41 -> 198989.9451 | I41: Operación
A44: 5.1.2. | C44: Servicios | E44: =AnalisisER!D146 -> 2658062.48
B45: 1.1.9.01. | C45: Disminucion Gastos a devengar a corto plazo | D45: =-AnalisisBS!H44 -> 1130.28007 | H45: =+E44-D45 -> 2656932.2 | J45: 573.03068
C46: Pagos por servicios y adquisiciones de inventarios (incluye anticipos) | H46: =H45+H31 -> 3257216.199 | I46: Operación
A50: 5.1.1.01. | C50: Remuneraciones Básicas | E50: =AnalisisER!D138 -> 746913.1266
A51: 5.1.1.02. | C51: Remuneraciones eventuales | E51: =AnalisisER!D139 -> 70522.29155
A52: 5.1.1.03. | C52: Incentivos salariales | E52: =AnalisisER!D140 -> 320697.6515
A53: 5.1.1.06 | C53: Asistencia social y beneficios al personal | E53: =+AnalisisER!D143 -> 41569.05 | I53: Operación
B54: 2.1.1.08. | C54: Pagos por beneficios al personal
B55: 2.2.4.01 | C55: Aumento Provisiones a largo plazo | D55: =+AnalisisBS!H144 -> 39828.63 | H55: =+E50+E51+E52+E53-D55 -> 1139873.49
A57: 5.2.1. | C57: Intereses sobre préstamos | E57: =AnalisisER!D181 -> 107152.3241 | H57: =E57 -> 107152.3241 | I57: Financiamiento
A59: 5.4.1. | C59: Transferencias corrientes | E59: =AnalisisER!D210 -> 297356.5424 | I59: Operación
B60: 2.1.1.03. | C60: Aumento Transferencias a pagar a corto plazo | D60: 8283.31721 | E60: 0 | H60: =E59-D60 -> 289073.2252
B62: 2.1.2.02. | C62: Aumento Préstamos a pagar a corto plazo | D62: =AnalisisBS!H108 -> 0 | H62: 430965.3568 | J62: 1023651.542
B63: 2.2.2.02. | C63: Aumento Préstamos a pagar a largo plazo | D63: 592106.887 | G63: 492668.3688 | I63: Financiamiento | J63: 579.29847
J64: =J62-J63 -> 1023072.243
A65: 5.1.8 | C65: Cargos por provisiones y reservas técnicas | E65: =+AnalisisER!D175 -> 121
A66: 5.9.1 | C66: Resultados negativos por tenencia y por exposición a la inflación | E66: =+AnalisisER!D219 -> 0 | H66: =+E65+E66-D67 -> 121 | I66: Operación
B67: 2.1.1.99. | C67: Aumento Otras deudas a corto plazo | D67: =+AnalisisBS!D105 -> 0
B70: 2.1.3.03. | C70: Disminución Depósitos en garantía | E70: =-AnalisisBS!H115 -> 3684.43882 | H70: =+E70+E72+E71 -> 3684.43882 | I70: Operación
B71: 2.1.3.99. | C71: Disminución Otros fondos de terceros | E71: =-AnalisisBS!H117 -> 0
B72: 2.1.9.99. | C72: Disminución Pasivos a corto plazo sujetos a depuración contable | E72: =-AnalisisBS!H124 -> 0
A73: 5.1.5.01. | C73: Aumento Deterioro y desvalorización de bienes no concesionados | E73: =+AnalisisER!D166 -> 0 | H73: =+E73 -> 0 | I73: Operación
A74: 5.9.9 | C74: Gastos y resultados negativos varios | E74: ='[2]Est Rend Dic -Oct'!D67 -> 0
A75: 5.9.9.02. | C75: Impuestos, multas y recargos moratorios | E75: =+AnalisisER!D230 -> 1156.912 | H75: =+E75 -> 1156.912 | I75: Operación
B76: 2.1.1.04. | C76: Aumento Documentos a pagar a corto plazo | E76: =+AnalisisBS!D99 -> 0 | H76: =+E76 -> 0 | I76: Operación
E77: 0.01
B78: 3.1.5.01. | C78: Resultados acumulados de ejercicios anteriores | E78: =-G96 -> 18617.96974 | H78: =+H70+E78+H66+H73+H75 -> 23580.32056 | I78: Operación
D81: Este papel de trabajo | E81: Estado Rendimientos | G81: Diferencia
C82: Ingresos | D82: =D2+D3+D9+D10+D14+D15+D19+D20+D24 -> 5805141.105 | E82: =AnalisisER!D133 -> 5805141.105 | G82: =D82-E82 -> 0
C83: Gastos | D83: =E28+E33+E39+E40+E44+E50+E51+E52+E57+E59+E74+E65+E66+E53+E48+E73+E75 -> 5262563.376 | E83: =AnalisisER!D233 -> 5262563.381 | G83: =D83-E83 -> -0.005549999885
C84: Utilidad Periodo Enero - Octubre | D84: =D82-D83 -> 542577.7298 | E84: =E82-E83 -> 542577.7242 | G84: =D84-E84 -> 0.005549999885
C86: Total Activo - Octubre | D86: =E21+E25-D11+E29+E26-D34+E34+E35-D36+E37-D45-D6 -> 493558.6213 | E86: =AnalisisBS!H92 -> 493558.6195 | G86: =E86-D86 -> -0.001820023812
C87: Total Pasivo - Octubre | D87: =D106-E106 -> 642132.6138 | E87: =AnalisisBS!H151 -> 642132.6138 | G87: =D87-E87 -> 0
D88: =D86-D87 -> -148573.9925 | E88: =E86-E87 -> -148573.9943 | G88: =D88-E88 -> 0.001820023812
C90: Efectivo y Equivalentes de efectivo | D90: =AnalisisBS!H10 -> 672533.7488 | E90: =AnalisisBS!H10 -> 672533.7488
C92: Totales | D92: =D88+D90 -> 523959.7563 | E92: =E88+E90 -> 523959.7545
A95: 3.1.5. | B95: Resultados acumulados | D95: =D96+D97 -> 164658278.5 | E95: =E96+E97 -> 164134318.7 | G95: =E95-D95 -> -523959.7545
A96: 3.1.5.01. | B96: Resultados acumulados de ejercicios anteriores | D96: =AnalisisBS!D170 -> 164115700.7 | E96: =AnalisisBS!F169 -> 164134318.7 | G96: =D96-E96 -> -18617.96974
A97: 3.1.5.02. | B97: Resultado del ejercicio | D97: =AnalisisBS!D171 -> 542577.7243 | E97: 0 | G97: =D97-E97 -> 542577.7243
D100: 164115700.7 | E100: 164134318.7
D106: =D41+D55+D60+D63 -> 646926.0383 | E106: =E30+E70 -> 4793.42452
D110: 5805141.105
D111: =D2+D3+D9+D10+D14+D15+D19+D20+D24 -> 5805141.105 | E111: =E28+E33+E39+E40+E44+E50+E51+E52+E53+E57+E59+E65+E75 -> 5262563.376
D112: =D111-D110 -> 0

Sheet BCPAC
A10: 3.1 | B10: 1. | C10: ACTIVO | D10: 1.658328453e+11 | E10: 1.624236699e+10 | F10: 1.507627462e+10 | G10: 1.669989377e+11
A11: 3.1 | B11: 1.1. | C11: Activo Corriente | D11: 2822037062 | E11: 1.569702102e+10 | F11: 1.472452183e+10 | G11: 3794536252
A12: 3.1 | B12: 1.1.1. | C12: Efectivo equivalentes de efectivo | D12: 2106811911 | E12: 9422554090 | F12: 8750020341 | G12: 2779345660
A13: 3.1 | B13: 1.1.1.01. | C13: Efectivo | D13: 2106811911 | E13: 8745712417 | F13: 8073178669 | G13: 2779345660
A14: 3.1 | B14: 1.1.1.01.02. | C14: Depósitos bancarios | D14: 2103561911 | E14: 8745712417 | F14: 8073178669 | G14: 2776095660
A15: 3.1 | B15: 1.1.1.01.02.02. | C15: Depósitos bancarios en el sector público interno | D15: 2103561911 | E15: 8745712417 | F15: 8073178669 | G15: 2776095660
A16: 3.1 | B16: 1.1.1.01.02.02.2. | C16: Cuentas corrientes en el sector público interno | D16: 687233539.5 | E16: 2547700925 | F16: 2526729835 | G16: 708204629.8
A17: 3.1 | B17: 1.1.1.01.02.02.2.21101 | C17: Banco Costa Rica | D17: 372598001.7 | E17: 637228013.8 | F17: 611062670.2 | G17: 398763345.3
A18: 3.1 | B18: 1.1.1.01.02.02.2.21103 | C18: Banco Nacional de Costa Rica | D18: 314635537.9 | E18: 1910472911 | F18: 1915667164 | G18: 309441284.6
A19: 3.1 | B19: 1.1.1.01.02.02.3. | C19: Caja Única | D19: 1416328372 | E19: 6198011492 | F19: 5546448834 | G19: 2067891030
A20: 3.1 | B20: 1.1.1.01.02.02.3.11206 | C20: Ministerio de Hacienda | D20: 1416328372 | E20: 6198011492 | F20: 5546448834 | G20: 2067891030
A21: 3.1 | B21: 1.1.1.01.03. | C21: Cajas chicas fondos rotatorios | D21: 3250000 | E21: 0 | F21: 0 | G21: 3250000
A22: 3.1 | B22: 1.1.1.01.03.01. | C22: Cajas chicas | D22: 2250000 | E22: 0 | F22: 0 | G22: 2250000
A23: 3.1 | B23: 1.1.1.01.03.01.2. | C23: Cajas chicas en el país | D23: 2250000 | E23: 0 | F23: 0 | G23: 2250000
A24: 3.1 | B24: 1.1.1.01.03.01.2.99999 | C24: Cajas chicas en el país | D24: 2250000 | E24: 0 | F24: 0 | G24: 2250000
A25: 3.1 | B25: 1.1.1.01.03.02. | C25: Fondos rotatorios | D25: 1000000 | E25: 0 | F25: 0 | G25: 1000000
A26: 3.1 | B26: 1.1.1.01.03.02.2. | C26: Fondos rotatorios en el sector público interno | D26: 1000000 | E26: 0 | F26: 0 | G26: 1000000
A27: 3.1 | B27: 1.1.1.01.03.02.2.99999 | C27: Fondos rotatorios en el sector público interno | D27: 1000000 | E27: 0 | F27: 0 | G27: 1000000
A28: 3.1 | B28: 1.1.1.02. | C28: Equivalentes de efectivo | D28: 0 | E28: 676841672.1 | F28: 676841672.1 | G28: 0
A29: 3.1 | B29: 1.1.1.02.99. | C29: Otros equivalentes de efectivo | D29: 0 | E29: 676841672.1 | F29: 676841672.1 | G29: 0
A30: 3.1 | B30: 1.1.1.02.99.02. | C30: Otros equivalentes de efectivo en el sector público interno | D30: 0 | E30: 676841672.1 | F30: 676841672.1 | G30: 0
A31: 3.1 | B31: 1.1.1.02.99.02.0. | C31: Otros equivalentes de efectivo en el sector público interno | D31: 0 | E31: 676841672.1 | F31: 676841672.1 | G31: 0
A32: 3.1 | B32: 1.1.1.02.99.02.0.21101 | C32: Banco Costa Rica | D32: 0 | E32: 338511155.3 | F32: 338511155.3 | G32: 0
A33: 3.1 | B33: 1.1.1.02.99.02.0.21103 | C33: Banco Nacional de Costa Rica | D33: 0 | E33: 338330516.8 | F33: 338330516.8 | G33: 0
A34: 3.1 | B34: 1.1.3. | C34: Cuentas a cobrar a c/p | D34: 495942436.4 | E34: 6145790066 | F34: 5852415109 | G34: 789317393.4
A35: 3.1 | B35: 1.1.3.01. | C35: Impuestos a cobrar a c/p | D35: 488369513.4 | E35: 1213889629 | F35: 1262553330 | G35: 439705811.6
A36: 3.1 | B36: 1.1.3.01.02. | C36: Impuestos sobre la propiedad a cobrar c/p | D36: 454864572.4 | E36: 904401251 | F36: 934814967.4 | G36: 424450856
A37: 3.1 | B37: 1.1.3.01.02.01. | C37: Impuesto sobre la propiedad de bienes inmuebles a cobrar c/p | D37: 454864572.4 | E37: 904401251 | F37: 934814967.4 | G37: 424450856
A38: 3.1 | B38: 1.1.3.01.02.01.0. | C38: Impuesto sobre la propiedad de bienes inmuebles a cobrar c/p | D38: 454864572.4 | E38: 904401251 | F38: 934814967.4 | G38: 424450856
A39: 3.1 | B39: 1.1.3.01.02.01.0.99999 | C39: Impuesto sobre la propiedad de bienes inmuebles a cobrar c/p | D39: 454864572.4 | E39: 904401251 | F39: 934814967.4 | G39: 424450856
A40: 3.1 | B40: 1.1.3.01.03. | C40: Impuestos sobre bienes y servicios a cobrar c/p | D40: 33504940.95 | E40: 309488377.7 | F40: 327738363.1 | G40: 15254955.62
A41: 3.1 | B41: 1.1.3.01.03.99. | C41: Otros Impuestos sobre bienes y servicios a cobrar c/p | D41: 33504940.95 | E41: 309488377.7 | F41: 327738363.1 | G41: 15254955.62
A42: 3.1 | B42: 1.1.3.01.03.99.1. | C42: Licencias profesionales, comerciales y otros permisos a cobrar c/p | D42: 30044160.51 | E42: 296000636.6 | F42: 315584420.3 | G42: 10460376.82
A43: 3.1 | B43: 1.1.3.01.03.99.1.99999 | C43: Licencias profesionales, comerciales y otros permisos a cobrar c/p | D43: 30044160.51 | E43: 296000636.6 | F43: 315584420.3 | G43: 10460376.82
A44: 3.1 | B44: 1.1.3.01.03.99.9. | C44: Otros impuestos varios sobre bienes y servicios a cobrar c/p | D44: 3460780.44 | E44: 13487741.16 | F44: 12153942.8 | G44: 4794578.8
A45: 3.1 | B45: 1.1.3.01.03.99.9.99999 | C45: Otros impuestos varios sobre bienes y servicios a cobrar c/p | D45: 3460780.44 | E45: 13487741.16 | F45: 12153942.8 | G45: 4794578.8
A46: 3.1 | B46: 1.1.3.04. | C46: Servicios y derechos a cobrar a corto plazo | D46: 180183637.8 | E46: 771071312.2 | F46: 776835380.5 | G46: 174419569.5
A47: 3.1 | B47: 1.1.3.04.01. | C47: Servicios a cobrar c/p | D47: 179741182.8 | E47: 770126247.2 | F47: 775998890.5 | G47: 173868539.5
A48: 3.1 | B48: 1.1.3.04.01.04. | C48: Servicios comunitarios a cobrar c/p | D48: 179741182.8 | E48: 770126247.2 | F48: 775998890.5 | G48: 173868539.5
A49: 3.1 | B49: 1.1.3.04.01.04.0. | C49: Servicios comunitarios a cobrar c/p | D49: 179741182.8 | E49: 770126247.2 | F49: 775998890.5 | G49: 173868539.5
A50: 3.1 | B50: 1.1.3.04.01.04.0.99999 | C50: Servicios comunitarios a cobrar c/p | D50: 179741182.8 | E50: 770126247.2 | F50: 775998890.5 | G50: 173868539.5
A51: 3.1 | B51: 1.1.3.04.02. | C51: Derechos administrativos a cobrar c/p | D51: 442455 | E51: 945064.99 | F51: 836490 | G51: 551029.99
A52: 3.1 | B52: 1.1.3.04.02.01. | C52: Derechos administrativos a los servicios de transporte a cobrar c/p | D52: 50000 | E52: 630000 | F52: 610000 | G52: 70000
A53: 3.1 | B53: 1.1.3.04.02.01.0. | C53: Derechos administrativos a los servicios de transporte a cobrar c/p | D53: 50000 | E53: 630000 | F53: 610000 | G53: 70000
A54: 3.1 | B54: 1.1.3.04.02.01.0.99999 | C54: Derechos administrativos a los servicios de transporte a cobrar c/p Derecho de piso uso terminal | D54: 50000 | E54: 630000 | F54: 610000 | G54: 70000
A55: 3.1 | B55: 1.1.3.04.02.99. | C55: Otros derechos administrativos a cobrar c/p | D55: 392455 | E55: 315064.99 | F55: 226490 | G55: 481029.99
A56: 3.1 | B56: 1.1.3.04.02.99.0. | C56: Otros derechos administrativos a cobrar c/p | D56: 392455 | E56: 315064.99 | F56: 226490 | G56: 481029.99
A57: 3.1 | B57: 1.1.3.04.02.99.0.99999 | C57: Otros derechos administrativos a cobrar c/p Derecho cementerio | D57: 392455 | E57: 315064.99 | F57: 226490 | G57: 481029.99
A58: 3.1 | B58: 1.1.3.06. | C58: Transferencias a cobrar a c/p | D58: 0 | E58: 4147407457 | F58: 3805573071 | G58: 341834386.5
A59: 3.1 | B59: 1.1.3.06.02. | C59: Transferencias del sector público interno a cobrar c/p | D59: 0 | E59: 4147407457 | F59: 3805573071 | G59: 341834386.5
A60: 3.1 | B60: 1.1.3.06.02.01. | C60: Transferencias del Gobierno Central a cobrar c/p | D60: 0 | E60: 4129623703 | F60: 3787789316 | G60: 341834386.5
A61: 3.1 | B61: 1.1.3.06.02.01.0. | C61: Transferencias del Gobierno Central a cobrar c/p | D61: 0 | E61: 4129623703 | F61: 3787789316 | G61: 341834386.5
A62: 3.1 | B62: 1.1.3.06.02.01.0.11203 | C62: Ministerio de Gobernación y Policía | D62: 0 | E62: 27611065 | F62: 27611065 | G62: 0
A63: 3.1 | B63: 1.1.3.06.02.01.0.11206 | C63: Ministerio de Hacienda | D63: 0 | E63: 4102012638 | F63: 3760178251 | G63: 341834386.5
A64: 3.1 | B64: 1.1.3.06.02.02. | C64: Transferencias de Órganos Desconcentrados a cobrar c/p | D64: 0 | E64: 6460924 | F64: 6460924 | G64: 0
A65: 3.1 | B65: 1.1.3.06.02.02.0. | C65: Transferencias de Órganos Desconcentrados a cobrar c/p | D65: 0 | E65: 6460924 | F65: 6460924 | G65: 0
A66: 3.1 | B66: 1.1.3.06.02.02.0.12583 | C66: Transfrencias de Organos desconcentrados a cobrar.Consejo Nacional de la Política Pública de la Persona Joven (CPJ) | D66: 0 | E66: 6460924 | F66: 6460924 | G66: 0
A67: 3.1 | B67: 1.1.3.06.02.03. | C67: Transferencias de Instituciones Descentralizadas no Empresariales a cobrar c/p | D67: 0 | E67: 11322830.07 | F67: 11322830.07 | G67: 0
A68: 3.1 | B68: 1.1.3.06.02.03.0. | C68: Transferencias de Instituciones Descentralizadas no Empresariales a cobrar c/p | D68: 0 | E68: 11322830.07 | F68: 11322830.07 | G68: 0
A69: 3.1 | B69: 1.1.3.06.02.03.0.14226 | C69: Transferencias de Instituciones Descentralizadas no Empresariales a cobrar c/p (Aporte IFAM Licores Nacionales y Ext) | D69: 0 | E69: 11322830.07 | F69: 11322830.07 | G69: 0
A70: 3.1 | B70: 1.1.3.98. | C70: Otras cuentas a cobrar a corto plazo | D70: 2767182.6 | E70: 13421668.1 | F70: 7453327.58 | G70: 8735523.12
A71: 3.1 | B71: 1.1.3.98.01. | C71: Multas, sanciones, remates y confiscaciones de origen no tributario a cobrar c/p | D71: 2267182.6 | E71: 7682065.1 | F71: 7453327.58 | G71: 2495920.12
A72: 3.1 | B72: 1.1.3.98.01.01. | C72: Multas y sanciones administrativas a cobrar c/p | D72: 2267182.6 | E72: 7682065.1 | F72: 7453327.58 | G72: 2495920.12
A73: 3.1 | B73: 1.1.3.98.01.01.0. | C73: Multas y sanciones administrativas a cobrar c/p | D73: 2267182.6 | E73: 7682065.1 | F73: 7453327.58 | G73: 2495920.12
A74: 3.1 | B74: 1.1.3.98.01.01.0.99999 | C74: Multas y sanciones administrativas a cobrar c/p | D74: 2267182.6 | E74: 7682065.1 | F74: 7453327.58 | G74: 2495920.12
A75: 3.1 | B75: 1.1.3.98.03. | C75: Depósitos en garantía c/p | D75: 500000 | E75: 5739603 | F75: 0 | G75: 6239603
A76: 3.1 | B76: 1.1.3.98.03.02. | C76: Depósitos en garantía en el sector público interno c/p | D76: 500000 | E76: 5739603 | F76: 0 | G76: 6239603
A77: 3.1 | B77: 1.1.3.98.03.02.0. | C77: Depósitos en garantía en el sector público interno c/p | D77: 500000 | E77: 5739603 | F77: 0 | G77: 6239603
A78: 3.1 | B78: 1.1.3.98.03.02.0.99999 | C78: Depósitos en garantía en el sector público interno c/p | D78: 500000 | E78: 5739603 | F78: 0 | G78: 6239603
A79: 3.1 | B79: 1.1.3.99. | C79: Previsiones para deterioro de cuentas a cobrar a corto plazo * | D79: -175377897.4 | E79: 0 | F79: 0 | G79: -175377897.4
A80: 3.1 | B80: 1.1.3.99.01. | C80: Previsiones para impuestos a cobrar c/p * | D80: -116983004.6 | E80: 0 | F80: 0 | G80: -116983004.6
A81: 3.1 | B81: 1.1.3.99.01.02. | C81: Previsiones para impuestos sobre la propiedad a cobrar c/p * | D81: -106283608.3 | E81: 0 | F81: 0 | G81: -106283608.3
A82: 3.1 | B82: 1.1.3.99.01.02.0. | C82: Previsiones para impuestos sobre la propiedad a cobrar c/p * | D82: -106283608.3 | E82: 0 | F82: 0 | G82: -106283608.3
A83: 3.1 | B83: 1.1.3.99.01.02.0.99999 | C83: Previsiones para impuestos sobre la propiedad a cobrar c/p * | D83: -106283608.3 | E83: 0 | F83: 0 | G83: -106283608.3
A84: 3.1 | B84: 1.1.3.99.01.03. | C84: Previsiones para impuestos sobre bienes y servicios a cobrar c/p * | D84: -9270015.01 | E84: 0 | F84: 0 | G84: -9270015.01
A85: 3.1 | B85: 1.1.3.99.01.03.0. | C85: Previsiones para impuestos sobre bienes y servicios a cobrar c/p * | D85: -9270015.01 | E85: 0 | F85: 0 | G85: -9270015.01
A86: 3.1 | B86: 1.1.3.99.01.03.0.99999 | C86: Previsiones para impuestos sobre bienes y servicios a cobrar c/p * | D86: -9270015.01 | E86: 0 | F86: 0 | G86: -9270015.01
A87: 3.1 | B87: 1.1.3.99.01.99. | C87: Previsiones para otros impuestos a cobrar c/p * | D87: -1429381.33 | E87: 0 | F87: 0 | G87: -1429381.33
A88: 3.1 | B88: 1.1.3.99.01.99.0. | C88: Previsiones para otros impuestos a cobrar c/p * | D88: -1429381.33 | E88: 0 | F88: 0 | G88: -1429381.33
A89: 3.1 | B89: 1.1.3.99.01.99.0.99999 | C89: Previsiones para otros impuestos a cobrar c/p * | D89: -1429381.33 | E89: 0 | F89: 0 | G89: -1429381.33
A90: 3.1 | B90: 1.1.3.99.04. | C90: Previsiones para servicios a cobrar c/p * | D90: -51378929.55 | E90: 0 | F90: 0 | G90: -51378929.55
A91: 3.1 | B91: 1.1.3.99.04.01. | C91: Previsiones para ventas de servicios a cobrar c/p * | D91: -50738208.69 | E91: 0 | F91: 0 | G91: -50738208.69
A92: 3.1 | B92: 1.1.3.99.04.01.0. | C92: Previsiones para ventas de servicios a cobrar c/p * | D92: -50738208.69 | E92: 0 | F92: 0 | G92: -50738208.69
A93: 3.1 | B93: 1.1.3.99.04.01.0.99999 | C93: Previsiones para ventas de servicios a cobrar c/p * | D93: -50738208.69 | E93: 0 | F93: 0 | G93: -50738208.69
A94: 3.1 | B94: 1.1.3.99.04.02. | C94: Previsiones para derechos administrativos a cobrar c/p * | D94: -640720.86 | E94: 0 | F94: 0 | G94: -640720.86
A95: 3.1 | B95: 1.1.3.99.04.02.0. | C95: Previsiones para derechos administrativos a cobrar c/p * | D95: -640720.86 | E95: 0 | F95: 0 | G95: -640720.86
A96: 3.1 | B96: 1.1.3.99.04.02.0.99999 | C96: Previsiones para derechos administrativos a cobrar c/p * | D96: -640720.86 | E96: 0 | F96: 0 | G96: -640720.86
A97: 3.1 | B97: 1.1.3.99.05. | C97: Previsiones para ingresos de la propiedad a cobrar c/p * | D97: -7015963.19 | E97: 0 | F97: 0 | G97: -7015963.19
A98: 3.1 | B98: 1.1.3.99.05.01. | C98: Previsiones para alquileres y derechos sobre bienes a cobrar c/p * | D98: -7015963.19 | E98: 0 | F98: 0 | G98: -7015963.19
A99: 3.1 | B99: 1.1.3.99.05.01.0. | C99: Previsiones para alquileres y derechos sobre bienes a cobrar c/p * | D99: -7015963.19 | E99: 0 | F99: 0 | G99: -7015963.19
A100: 3.1 | B100: 1.1.3.99.05.01.0.99999 | C100: Previsiones para alquileres y derechos sobre bienes a cobrar c/p * | D100: -7015963.19 | E100: 0 | F100: 0 | G100: -7015963.19
A101: 3.1 | B101: 1.1.4. | C101: Inventarios | D101: 192987092.2 | E101: 72388964.91 | F101: 64668201.09 | G101: 200707856
A102: 3.1 | B102: 1.1.4.01. | C102: Materiales y suministros para consumo y prestación de servicios | D102: 192987092.2 | E102: 72388964.91 | F102: 64668201.09 | G102: 200707856
A103: 3.1 | B103: 1.1.4.01.01. | C103: Productos químicos y conexos | D103: 21280495.09 | E103: 1943368.79 | F103: 10707449.77 | G103: 12516414.11
A104: 3.1 | B104: 1.1.4.01.01.01. | C104: Combustibles y lubricantes | D104: 17684339.46 | E104: 210230.78 | F104: 8666612.85 | G104: 9227957.39
A105: 3.1 | B105: 1.1.4.01.01.01.0. | C105: Combustibles y lubricantes | D105: 17684339.46 | E105: 210230.78 | F105: 8666612.85 | G105: 9227957.39
A106: 3.1 | B106: 1.1.4.01.01.01.0.99999 | C106: Combustibles y lubricantes | D106: 17684339.46 | E106: 210230.78 | F106: 8666612.85 | G106: 9227957.39
A107: 3.1 | B107: 1.1.4.01.01.02. | C107: Productos farmacéuticos y medicinales | D107: 6400 | E107: 0 | F107: 6400 | G107: 0
A108: 3.1 | B108: 1.1.4.01.01.02.0. | C108: Productos farmacéuticos y medicinales | D108: 6400 | E108: 0 | F108: 6400 | G108: 0
A109: 3.1 | B109: 1.1.4.01.01.02.0.99999 | C109: Productos farmacéuticos y medicinales | D109: 6400 | E109: 0 | F109: 6400 | G109: 0
A110: 3.1 | B110: 1.1.4.01.01.04. | C110: Tintas, pinturas y diluyentes | D110: 2775593.63 | E110: 1372291.7 | F110: 1367135.89 | G110: 2780749.44
A111: 3.1 | B111: 1.1.4.01.01.04.0. | C111: Tintas, pinturas y diluyentes | D111: 2775593.63 | E111: 1372291.7 | F111: 1367135.89 | G111: 2780749.44
A112: 3.1 | B112: 1.1.4.01.01.04.0.99999 | C112: Tintas, pinturas y diluyentes | D112: 2775593.63 | E112: 1372291.7 | F112: 1367135.89 | G112: 2780749.44
A113: 3.1 | B113: 1.1.4.01.01.99. | C113: Otros productos químicos y conexos | D113: 814162 | E113: 360846.31 | F113: 667301.03 | G113: 507707.28
A114: 3.1 | B114: 1.1.4.01.01.99.0. | C114: Otros productos químicos y conexos | D114: 814162 | E114: 360846.31 | F114: 667301.03 | G114: 507707.28
A115: 3.1 | B115: 1.1.4.01.01.99.0.99999 | C115: Otros productos químicos y conexos | D115: 814162 | E115: 360846.31 | F115: 667301.03 | G115: 507707.28
A116: 3.1 | B116: 1.1.4.01.03. | C116: Materiales y productos de uso en la construcción y mantenimiento | D116: 30127789.25 | E116: 11469946.47 | F116: 13411536.8 | G116: 28186198.92
A117: 3.1 | B117: 1.1.4.01.03.01. | C117: Materiales y productos metálicos | D117: 25238704.2 | E117: 6210556.42 | F117: 6074045.39 | G117: 25375215.23
A118: 3.1 | B118: 1.1.4.01.03.01.0. | C118: Materiales y productos metálicos | D118: 25238704.2 | E118: 6210556.42 | F118: 6074045.39 | G118: 25375215.23
A119: 3.1 | B119: 1.1.4.01.03.01.0.99999 | C119: Materiales y productos metálicos | D119: 25238704.2 | E119: 6210556.42 | F119: 6074045.39 | G119: 25375215.23
A120: 3.1 | B120: 1.1.4.01.03.02. | C120: Materiales y productos minerales y asfálticos | D120: 3708677 | E120: 4248745.2 | F120: 5979503.1 | G120: 1977919.1
A121: 3.1 | B121: 1.1.4.01.03.02.0. | C121: Materiales y productos minerales y asfálticos | D121: 3708677 | E121: 4248745.2 | F121: 5979503.1 | G121: 1977919.1
A122: 3.1 | B122: 1.1.4.01.03.02.0.99999 | C122: Materiales y productos minerales y asfálticos | D122: 3708677 | E122: 4248745.2 | F122: 5979503.1 | G122: 1977919.1
A123: 3.1 | B123: 1.1.4.01.03.03. | C123: Madera y sus derivados | D123: 896515 | E123: 915675 | F123: 1221460 | G123: 590730
A124: 3.1 | B124: 1.1.4.01.03.03.0. | C124: Madera y sus derivados | D124: 896515 | E124: 915675 | F124: 1221460 | G124: 590730
A125: 3.1 | B125: 1.1.4.01.03.03.0.99999 | C125: Madera y sus derivados | D125: 896515 | E125: 915675 | F125: 1221460 | G125: 590730
A126: 3.1 | B126: 1.1.4.01.03.04. | C126: Materiales y productos eléctricos, telefónicos y de cómputo | D126: 135171.56 | E126: 54603.85 | F126: 100090.01 | G126: 89685.4
A127: 3.1 | B127: 1.1.4.01.03.04.0. | C127: Materiales y productos eléctricos, telefónicos y de cómputo | D127: 135171.56 | E127: 54603.85 | F127: 100090.01 | G127: 89685.4
A128: 3.1 | B128: 1.1.4.01.03.04.0.99999 | C128: Materiales y productos eléctricos, telefónicos y de cómputo | D128: 135171.56 | E128: 54603.85 | F128: 100090.01 | G128: 89685.4
A129: 3.1 | B129: 1.1.4.01.03.06. | C129: Materiales y productos de plástico | D129: 148721.49 | E129: 40366 | F129: 36438.3 | G129: 152649.19
A130: 3.1 | B130: 1.1.4.01.03.06.0. | C130: Materiales y productos de plástico | D130: 148721.49 | E130: 40366 | F130: 36438.3 | G130: 152649.19
A131: 3.1 | B131: 1.1.4.01.03.06.0.99999 | C131: Materiales y productos de plástico | D131: 148721.49 | E131: 40366 | F131: 36438.3 | G131: 152649.19
A132: 3.1 | B132: 1.1.4.01.04. | C132: Herramientas, repuestos y accesorios | D132: 131278007.8 | E132: 40855161.84 | F132: 24841209.85 | G132: 147291959.8
A133: 3.1 | B133: 1.1.4.01.04.01. | C133: Herramientas e instrumentos | D133: 1233641.5 | E133: 796940.45 | F133: 709310.91 | G133: 1321271.04
A134: 3.1 | B134: 1.1.4.01.04.01.0. | C134: Herramientas e instrumentos | D134: 1233641.5 | E134: 796940.45 | F134: 709310.91 | G134: 1321271.04
A135: 3.1 | B135: 1.1.4.01.04.01.0.99999 | C135: Herramientas e instrumentos | D135: 1233641.5 | E135: 796940.45 | F135: 709310.91 | G135: 1321271.04
A136: 3.1 | B136: 1.1.4.01.04.02. | C136: Repuestos y accesorios Nuevos | D136: 130044366.3 | E136: 40058221.39 | F136: 24131898.94 | G136: 145970688.7
A137: 3.1 | B137: 1.1.4.01.04.02.0. | C137: Repuestos y accesorios Nuevos | D137: 130044366.3 | E137: 40058221.39 | F137: 24131898.94 | G137: 145970688.7
A138: 3.1 | B138: 1.1.4.01.04.02.0.99999 | C138: Repuestos y accesorios Nuevos | D138: 130044366.3 | E138: 40058221.39 | F138: 24131898.94 | G138: 145970688.7
A139: 3.1 | B139: 1.1.4.01.99. | C139: Útiles, materiales y suministros diversos | D139: 10300800.1 | E139: 18120487.81 | F139: 15708004.67 | G139: 12713283.24
A140: 3.1 | B140: 1.1.4.01.99.01. | C140: Útiles y materiales de oficina y cómputo | D140: 1943168.61 | E140: 1711681.71 | F140: 1456171.75 | G140: 2198678.57
A141: 3.1 | B141: 1.1.4.01.99.01.0. | C141: Útiles y materiales de oficina y cómputo | D141: 1943168.61 | E141: 1711681.71 | F141: 1456171.75 | G141: 2198678.57
A142: 3.1 | B142: 1.1.4.01.99.01.0.99999 | C142: Útiles y materiales de oficina y cómputo | D142: 1943168.61 | E142: 1711681.71 | F142: 1456171.75 | G142: 2198678.57
A143: 3.1 | B143: 1.1.4.01.99.02. | C143: Útiles y materiales médico, hospitalario y de investigación | D143: 0 | E143: 675000 | F143: 486000 | G143: 189000
A144: 3.1 | B144: 1.1.4.01.99.02.0. | C144: Útiles y materiales médico, hospitalario y de investigación | D144: 0 | E144: 675000 | F144: 486000 | G144: 189000
A145: 3.1 | B145: 1.1.4.01.99.02.0.99999 | C145: Útiles y materiales médico, hospitalario y de investigación | D145: 0 | E145: 675000 | F145: 486000 | G145: 189000
A146: 3.1 | B146: 1.1.4.01.99.03. | C146: Productos de papel, cartón e impresos | D146: 2730589.18 | E146: 1487939.28 | F146: 1358617.99 | G146: 2859910.47
A147: 3.1 | B147: 1.1.4.01.99.03.0. | C147: Productos de papel, cartón e impresos | D147: 2730589.18 | E147: 1487939.28 | F147: 1358617.99 | G147: 2859910.47
A148: 3.1 | B148: 1.1.4.01.99.03.0.99999 | C148: Productos de papel, cartón e impresos | D148: 2730589.18 | E148: 1487939.28 | F148: 1358617.99 | G148: 2859910.47
A149: 3.1 | B149: 1.1.4.01.99.04. | C149: Textiles y vestuario | D149: 306936.35 | E149: 5355174.05 | F149: 5450742.95 | G149: 211367.45
A150: 3.1 | B150: 1.1.4.01.99.04.0. | C150: Textiles y vestuario | D150: 306936.35 | E150: 5355174.05 | F150: 5450742.95 | G150: 211367.45
A151: 3.1 | B151: 1.1.4.01.99.04.0.99999 | C151: Textiles y vestuario | D151: 306936.35 | E151: 5355174.05 | F151: 5450742.95 | G151: 211367.45
A152: 3.1 | B152: 1.1.4.01.99.05. | C152: Útiles y materiales de limpieza | D152: 2737377.74 | E152: 3527891.33 | F152: 2480766.98 | G152: 3784502.09
A153: 3.1 | B153: 1.1.4.01.99.05.0. | C153: Útiles y materiales de limpieza | D153: 2737377.74 | E153: 3527891.33 | F153: 2480766.98 | G153: 3784502.09
A154: 3.1 | B154: 1.1.4.01.99.05.0.99999 | C154: Útiles y materiales de limpieza | D154: 2737377.74 | E154: 3527891.33 | F154: 2480766.98 | G154: 3784502.09
A155: 3.1 | B155: 1.1.4.01.99.06. | C155: Útiles y materiales de resguardo y seguridad | D155: 2042904.22 | E155: 5083437.44 | F155: 4342687 | G155: 2783654.66
A156: 3.1 | B156: 1.1.4.01.99.06.0. | C156: Útiles y materiales de resguardo y seguridad | D156: 2042904.22 | E156: 5083437.44 | F156: 4342687 | G156: 2783654.66
A157: 3.1 | B157: 1.1.4.01.99.06.0.99999 | C157: Útiles y materiales de resguardo y seguridad | D157: 2042904.22 | E157: 5083437.44 | F157: 4342687 | G157: 2783654.66
A158: 3.1 | B158: 1.1.4.01.99.99. | C158: Otros útiles, materiales y suministros diversos | D158: 539824 | E158: 279364 | F158: 133018 | G158: 686170
A159: 3.1 | B159: 1.1.4.01.99.99.0. | C159: Otros útiles, materiales y suministros diversos | D159: 539824 | E159: 279364 | F159: 133018 | G159: 686170
A160: 3.1 | B160: 1.1.4.01.99.99.0.99999 | C160: Otros útiles, materiales y suministros diversos | D160: 539824 | E160: 279364 | F160: 133018 | G160: 686170
A161: 3.1 | B161: 1.1.9. | C161: Otros activos a corto plazo | D161: 26295622.24 | E161: 56287900.36 | F161: 57418180.43 | G161: 25165342.17
A162: 3.1 | B162: 1.1.9.01. | C162: Gastos a devengar a corto plazo | D162: 26295622.24 | E162: 56287900.36 | F162: 57418180.43 | G162: 25165342.17
A163: 3.1 | B163: 1.1.9.01.01. | C163: Servicios a devengar c/p | D163: 26295622.24 | E163: 56287900.36 | F163: 57418180.43 | G163: 25165342.17
A164: 3.1 | B164: 1.1.9.01.01.01. | C164: Primas y gastos de seguros a devengar c/p | D164: 26295622.24 | E164: 56287900.36 | F164: 57418180.43 | G164: 25165342.17
A165: 3.1 | B165: 1.1.9.01.01.01.0. | C165: Primas y gastos de seguros a devengar c/p | D165: 26295622.24 | E165: 56287900.36 | F165: 57418180.43 | G165: 25165342.17
A166: 3.1 | B166: 1.1.9.01.01.01.0.99999 | C166: Primas y gastos de seguros a devengar c/p | D166: 26295622.24 | E166: 56287900.36 | F166: 57418180.43 | G166: 25165342.17
A167: 3.1 | B167: 1.2. | C167: Activo No Corriente | D167: 1.630108083e+11 | E167: 545345968.2 | F167: 351752789.4 | G167: 1.632044014e+11
A168: 3.1 | B168: 1.2.5. | C168: Bienes no concesionados | D168: 1.630108083e+11 | E168: 545345968.2 | F168: 351752789.4 | G168: 1.632044014e+11
A169: 3.1 | B169: 1.2.5.01. | C169: Propiedades, planta y equipos explotados | D169: 2155163988 | E169: 426685739 | F169: 341135270.9 | G169: 2240714457
A170: 3.1 | B170: 1.2.5.01.02. | C170: Edificios | D170: 1250873081 | E170: 46566425.89 | F170: 54667808.01 | G170: 1242771699
A171: 3.1 | B171: 1.2.5.01.02.01. | C171: Edificios de oficinas atención al públ | D171: 439702157.1 | E171: 2226968.22 | F171: 9088808.1 | G171: 432840317.2
A172: 3.1 | B172: 1.2.5.01.02.01.1. | C172: Edificios de oficinas y atención público Valores Origen | D172: 258127776.8 | E172: 0 | F172: 0 | G172: 258127776.8
A173: 3.1 | B173: 1.2.5.01.02.01.1.99999 | C173: Edificios de oficinas y atención público Valores Origen | D173: 258127776.8 | E173: 0 | F173: 0 | G173: 258127776.8
A174: 3.1 | B174: 1.2.5.01.02.01.3. | C174: Edificios oficinas y atención público Depreciación Acumulada | D174: -9149119.74 | E174: 1436968.18 | F174: 8298808.06 | G174: -16010959.62
A175: 3.1 | B175: 1.2.5.01.02.01.3.99999 | C175: Edificios oficinas y atención público Depreciación Acumulada | D175: -9149119.74 | E175: 1436968.18 | F175: 8298808.06 | G175: -16010959.62
A176: 3.1 | B176: 1.2.5.01.02.01.4. | C176: Edificios oficinas y atención público Pérdidas por Deterioro | D176: 0 | E176: 790000.04 | F176: 790000.04 | G176: 0
A177: 3.1 | B177: 1.2.5.01.02.01.4.99999 | C177: Edificios oficinas y atención público Pérdidas por Deterioro | D177: 0 | E177: 790000.04 | F177: 790000.04 | G177: 0
A178: 3.1 | B178: 1.2.5.01.02.01.6. | C178: Edificios oficinas y atención público Porción Terreno Valores Origen | D178: 190723500 | E178: 0 | F178: 0 | G178: 190723500
A179: 3.1 | B179: 1.2.5.01.02.01.6.99999 | C179: Edificios oficinas y atención público Porción Terreno Valores Origen | D179: 190723500 | E179: 0 | F179: 0 | G179: 190723500
A180: 3.1 | B180: 1.2.5.01.02.04. | C180: Bodegas | D180: 0 | E180: 16326666.69 | F180: 9875000.06 | G180: 6451666.63
A181: 3.1 | B181: 1.2.5.01.02.04.1. | C181: Bodegas Valores de origen | D181: 0 | E181: 15800000 | F181: 0 | G181: 15800000
A182: 3.1 | B182: 1.2.5.01.02.04.1.99999 | C182: Bodegas Valores de origen | D182: 0 | E182: 15800000 | F182: 0 | G182: 15800000
A183: 3.1 | B183: 1.2.5.01.02.04.3. | C183: Bodegas Depreciaciones acumuladas * | D183: 0 | E183: 526666.69 | F183: 9875000.06 | G183: -9348333.37
A184: 3.1 | B184: 1.2.5.01.02.04.3.99999 | C184: Bodegas Depreciaciones acumuladas * | D184: 0 | E184: 526666.69 | F184: 9875000.06 | G184: -9348333.37
A185: 3.1 | B185: 1.2.5.01.02.05. | C185: Locales | D185: 297585392.3 | E185: 7750489.01 | F185: 7505554.45 | G185: 297830326.9
A186: 3.1 | B186: 1.2.5.01.02.05.1. | C186: Locales Valores de origen | D186: 198576095.4 | E186: 0 | F186: 0 | G186: 198576095.4
A187: 3.1 | B187: 1.2.5.01.02.05.1.99999 | C187: Locales Valores de origen | D187: 198576095.4 | E187: 0 | F187: 0 | G187: 198576095.4
A188: 3.1 | B188: 1.2.5.01.02.05.3. | C188: Locales Depreciaciones acumuladas * | D188: -6823353.09 | E188: 2180339.01 | F188: 7505554.45 | G188: -12148568.53
A189: 3.1 | B189: 1.2.5.01.02.05.3.99999 | C189: Locales Depreciaciones acumuladas * | D189: -6823353.09 | E189: 2180339.01 | F189: 7505554.45 | G189: -12148568.53
A190: 3.1 | B190: 1.2.5.01.02.05.5. | C190: Locales Mejoras | D190: 0 | E190: 5570150 | F190: 0 | G190: 5570150
A191: 3.1 | B191: 1.2.5.01.02.05.5.99999 | C191: Locales Mejoras | D191: 0 | E191: 5570150 | F191: 0 | G191: 5570150
A192: 3.1 | B192: 1.2.5.01.02.05.6. | C192: Locales Porción terreno: valores de origen | D192: 105832650 | E192: 0 | F192: 0 | G192: 105832650
A193: 3.1 | B193: 1.2.5.01.02.05.6.99999 | C193: Locales Porción terreno: valores de origen | D193: 105832650 | E193: 0 | F193: 0 | G193: 105832650 | H193: =D193-F193 -> 105832650
A194: 3.1 | B194: 1.2.5.01.02.99. | C194: Otros edificios | D194: 513585531.3 | E194: 20262301.97 | F194: 28198445.4 | G194: 505649387.9 | H194: =D194+E194-F194 -> 505649387.9
A195: 3.1 | B195: 1.2.5.01.02.99.1. | C195: Otros edificios Valores de origen | D195: 362322050.9 | E195: 20205550 | F195: 20205550 | G195: 362322050.9
A196: 3.1 | B196: 1.2.5.01.02.99.1.99999 | C196: Otros edificios Valores de origen | D196: 362322050.9 | E196: 20205550 | F196: 20205550 | G196: 362322050.9
A197: 3.1 | B197: 1.2.5.01.02.99.3. | C197: Otros edificios Depreciaciones acumuladas * | D197: -10193719.61 | E197: 56751.97 | F197: 7992895.4 | G197: -18129863.04
A198: 3.1 | B198: 1.2.5.01.02.99.3.99999 | C198: Otros edificios Depreciaciones acumuladas * | D198: -10193719.61 | E198: 56751.97 | F198: 7992895.4 | G198: -18129863.04
A199: 3.1 | B199: 1.2.5.01.02.99.6. | C199: Otros edificios Porción terreno: valores de origen | D199: 161457200 | E199: 0 | F199: 0 | G199: 161457200
A200: 3.1 | B200: 1.2.5.01.02.99.6.99999 | C200: Otros edificios Porción terreno: valores de origen | D200: 161457200 | E200: 0 | F200: 0 | G200: 161457200
A201: 3.1 | B201: 1.2.5.01.03. | C201: Maquinaria equipos para la producción | D201: 786374546 | E201: 285154795.2 | F201: 217484274.9 | G201: 854045066.3
A202: 3.1 | B202: 1.2.5.01.03.01. | C202: Maquinaria para la construcción | D202: 754306983.3 | E202: 276720926.2 | F202: 209996952.7 | G202: 821030956.8
A203: 3.1 | B203: 1.2.5.01.03.01.1. | C203: Maquinaria para la construcción Valores de origen | D203: 1997638164 | E203: 276048832.1 | F203: 0 | G203: 2273686996
A204: 3.1 | B204: 1.2.5.01.03.01.1.99999 | C204: Maquinaria para la construcción Valores de origen | D204: 1997638164 | E204: 276048832.1 | F204: 0 | G204: 2273686996
A205: 3.1 | B205: 1.2.5.01.03.01.3. | C205: Maq para la construcción Depreciaciones acumuladas | D205: -1243331181 | E205: 672094.13 | F205: 209996952.7 | G205: -1452656039
A206: 3.1 | B206: 1.2.5.01.03.01.3.99999 | C206: Maq para la construcción Depreciaciones acumuladas | D206: -1243331181 | E206: 672094.13 | F206: 209996952.7 | G206: -1452656039
A207: 3.1 | B207: 1.2.5.01.03.03. | C207: Planta eléctrica | D207: 3500057.28 | E207: 0 | F207: 345978.96 | G207: 3154078.32
A208: 3.1 | B208: 1.2.5.01.03.03.1. | C208: Planta eléctrica Valores de origen | D208: 5189684.8 | E208: 0 | F208: 0 | G208: 5189684.8
A209: 3.1 | B209: 1.2.5.01.03.03.1.99999 | C209: Planta eléctrica Valores de origen | D209: 5189684.8 | E209: 0 | F209: 0 | G209: 5189684.8
... 832 more rows

Sheet BCPAN
A10: 3.1 | B10: 1. | C10: ACTIVO | D10: 1.662327302e+11 | E10: 1.557370486e+10 | F10: 1.597358975e+10 | G10: 1.658328453e+11
A11: 3.1 | B11: 1.1. | C11: Activo Corriente | D11: 3349699858 | E11: 1.498015259e+10 | F11: 1.550781538e+10 | G11: 2822037062
A12: 3.1 | B12: 1.1.1. | C12: Efectivo equivalentes de efectivo | D12: 2705767389 | E12: 8620068481 | F12: 9219023959 | G12: 2106811911
A13: 3.1 | B13: 1.1.1.01. | C13: Efectivo | D13: 2705767389 | E13: 7941797205 | F13: 8540752683 | G13: 2106811911
A14: 3.1 | B14: 1.1.1.01.02. | C14: Depósitos bancarios | D14: 2704317389 | E14: 7938047205 | F14: 8538802683 | G14: 2103561911
A15: 3.1 | B15: 1.1.1.01.02.02. | C15: Depósitos bancarios en el sector público interno | D15: 2704317389 | E15: 7938047205 | F15: 8538802683 | G15: 2103561911
A16: 3.1 | B16: 1.1.1.01.02.02.2. | C16: Cuentas corrientes en el sector público interno | D16: 600136255.9 | E16: 2619932502 | F16: 2532835218 | G16: 687233539.5
A17: 3.1 | B17: 1.1.1.01.02.02.2.21101 | C17: Banco Costa Rica | D17: 478691142.3 | E17: 608687986.8 | F17: 714781127.4 | G17: 372598001.7
A18: 3.1 | B18: 1.1.1.01.02.02.2.21103 | C18: Banco Nacional de Costa Rica | D18: 121445113.7 | E18: 2011244515 | F18: 1818054091 | G18: 314635537.9
A19: 3.1 | B19: 1.1.1.01.02.02.3. | C19: Caja Única | D19: 2104181133 | E19: 5318114703 | F19: 6005967464 | G19: 1416328372
A20: 3.1 | B20: 1.1.1.01.02.02.3.11206 | C20: Ministerio de Hacienda | D20: 2104181133 | E20: 5318114703 | F20: 6005967464 | G20: 1416328372
A21: 3.1 | B21: 1.1.1.01.03. | C21: Cajas chicas fondos rotatorios | D21: 1450000 | E21: 3750000 | F21: 1950000 | G21: 3250000
A22: 3.1 | B22: 1.1.1.01.03.01. | C22: Cajas chicas | D22: 450000 | E22: 3750000 | F22: 1950000 | G22: 2250000
A23: 3.1 | B23: 1.1.1.01.03.01.2. | C23: Cajas chicas en el país | D23: 450000 | E23: 3750000 | F23: 1950000 | G23: 2250000
A24: 3.1 | B24: 1.1.1.01.03.01.2.99999 | C24: Cajas chicas en el país | D24: 450000 | E24: 3750000 | F24: 1950000 | G24: 2250000
A25: 3.1 | B25: 1.1.1.01.03.02. | C25: Fondos rotatorios | D25: 1000000 | E25: 0 | F25: 0 | G25: 1000000
A26: 3.1 | B26: 1.1.1.01.03.02.2. | C26: Fondos rotatorios en el sector público interno | D26: 1000000 | E26: 0 | F26: 0 | G26: 1000000
A27: 3.1 | B27: 1.1.1.01.03.02.2.99999 | C27: Fondos rotatorios en el sector público interno | D27: 1000000 | E27: 0 | F27: 0 | G27: 1000000
A28: 3.1 | B28: 1.1.1.02. | C28: Equivalentes de efectivo | D28: 0 | E28: 678271275.7 | F28: 678271275.7 | G28: 0
A29: 3.1 | B29: 1.1.1.02.99. | C29: Otros equivalentes de efectivo | D29: 0 | E29: 678271275.7 | F29: 678271275.7 | G29: 0
A30: 3.1 | B30: 1.1.1.02.99.02. | C30: Otros equivalentes de efectivo en el sector público interno | D30: 0 | E30: 678271275.7 | F30: 678271275.7 | G30: 0
A31: 3.1 | B31: 1.1.1.02.99.02.0. | C31: Otros equivalentes de efectivo en el sector público interno | D31: 0 | E31: 678271275.7 | F31: 678271275.7 | G31: 0
A32: 3.1 | B32: 1.1.1.02.99.02.0.21101 | C32: Banco Costa Rica | D32: 0 | E32: 311624057.2 | F32: 311624057.2 | G32: 0
A33: 3.1 | B33: 1.1.1.02.99.02.0.21103 | C33: Banco Nacional de Costa Rica | D33: 0 | E33: 366647218.5 | F33: 366647218.5 | G33: 0
A34: 3.1 | B34: 1.1.3. | C34: Cuentas a cobrar a c/p | D34: 616617332.2 | E34: 6100237757 | F34: 6220912653 | G34: 495942436.4
A35: 3.1 | B35: 1.1.3.01. | C35: Impuestos a cobrar a c/p | D35: 619441745.8 | E35: 1404350721 | F35: 1535422953 | G35: 488369513.4
A36: 3.1 | B36: 1.1.3.01.02. | C36: Impuestos sobre la propiedad a cobrar c/p | D36: 583097545.6 | E36: 1097625125 | F36: 1225858098 | G36: 454864572.4
A37: 3.1 | B37: 1.1.3.01.02.01. | C37: Impuesto sobre la propiedad de bienes inmuebles a cobrar c/p | D37: 583097545.6 | E37: 1097625125 | F37: 1225858098 | G37: 454864572.4
A38: 3.1 | B38: 1.1.3.01.02.01.0. | C38: Impuesto sobre la propiedad de bienes inmuebles a cobrar c/p | D38: 583097545.6 | E38: 1097625125 | F38: 1225858098 | G38: 454864572.4
A39: 3.1 | B39: 1.1.3.01.02.01.0.99999 | C39: Impuesto sobre la propiedad de bienes inmuebles a cobrar c/p | D39: 583097545.6 | E39: 1097625125 | F39: 1225858098 | G39: 454864572.4
A40: 3.1 | B40: 1.1.3.01.03. | C40: Impuestos sobre bienes y servicios a cobrar c/p | D40: 36344200.19 | E40: 306725595.6 | F40: 309564854.9 | G40: 33504940.95
A41: 3.1 | B41: 1.1.3.01.03.99. | C41: Otros Impuestos sobre bienes y servicios a cobrar c/p | D41: 36344200.19 | E41: 306725595.6 | F41: 309564854.9 | G41: 33504940.95
A42: 3.1 | B42: 1.1.3.01.03.99.1. | C42: Licencias profesionales, comerciales y otros permisos a cobrar c/p | D42: 34052862.94 | E42: 294079923.4 | F42: 298088625.8 | G42: 30044160.51
A43: 3.1 | B43: 1.1.3.01.03.99.1.99999 | C43: Licencias profesionales, comerciales y otros permisos a cobrar c/p | D43: 34052862.94 | E43: 294079923.4 | F43: 298088625.8 | G43: 30044160.51
A44: 3.1 | B44: 1.1.3.01.03.99.9. | C44: Otros impuestos varios sobre bienes y servicios a cobrar c/p | D44: 2291337.25 | E44: 12645672.25 | F44: 11476229.06 | G44: 3460780.44
A45: 3.1 | B45: 1.1.3.01.03.99.9.99999 | C45: Otros impuestos varios sobre bienes y servicios a cobrar c/p | D45: 2291337.25 | E45: 12645672.25 | F45: 11476229.06 | G45: 3460780.44
A46: 3.1 | B46: 1.1.3.04. | C46: Servicios y derechos a cobrar a corto plazo | D46: 171480251.5 | E46: 525369525.2 | F46: 516666138.9 | G46: 180183637.8
A47: 3.1 | B47: 1.1.3.04.01. | C47: Servicios a cobrar c/p | D47: 170633251.5 | E47: 524387525.2 | F47: 515279593.9 | G47: 179741182.8
A48: 3.1 | B48: 1.1.3.04.01.04. | C48: Servicios comunitarios a cobrar c/p | D48: 170633251.5 | E48: 524387525.2 | F48: 515279593.9 | G48: 179741182.8
A49: 3.1 | B49: 1.1.3.04.01.04.0. | C49: Servicios comunitarios a cobrar c/p | D49: 170633251.5 | E49: 524387525.2 | F49: 515279593.9 | G49: 179741182.8
A50: 3.1 | B50: 1.1.3.04.01.04.0.99999 | C50: Servicios comunitarios a cobrar c/p | D50: 170633251.5 | E50: 524387525.2 | F50: 515279593.9 | G50: 179741182.8
A51: 3.1 | B51: 1.1.3.04.02. | C51: Derechos administrativos a cobrar c/p | D51: 847000 | E51: 982000 | F51: 1386545 | G51: 442455
A52: 3.1 | B52: 1.1.3.04.02.01. | C52: Derechos administrativos a los servicios de transporte a cobrar c/p | D52: 340000 | E52: 660000 | F52: 950000 | G52: 50000
A53: 3.1 | B53: 1.1.3.04.02.01.0. | C53: Derechos administrativos a los servicios de transporte a cobrar c/p | D53: 340000 | E53: 660000 | F53: 950000 | G53: 50000
A54: 3.1 | B54: 1.1.3.04.02.01.0.99999 | C54: Derechos administrativos a los servicios de transporte a cobrar c/p Derecho de piso uso terminal | D54: 340000 | E54: 660000 | F54: 950000 | G54: 50000
A55: 3.1 | B55: 1.1.3.04.02.99. | C55: Otros derechos administrativos a cobrar c/p | D55: 507000 | E55: 322000 | F55: 436545 | G55: 392455
A56: 3.1 | B56: 1.1.3.04.02.99.0. | C56: Otros derechos administrativos a cobrar c/p | D56: 507000 | E56: 322000 | F56: 436545 | G56: 392455
A57: 3.1 | B57: 1.1.3.04.02.99.0.99999 | C57: Otros derechos administrativos a cobrar c/p Derecho cementerio | D57: 507000 | E57: 322000 | F57: 436545 | G57: 392455
A58: 3.1 | B58: 1.1.3.06. | C58: Transferencias a cobrar a c/p | D58: 0 | E58: 4157821709 | F58: 4157821709 | G58: 0
A59: 3.1 | B59: 1.1.3.06.02. | C59: Transferencias del sector público interno a cobrar c/p | D59: 0 | E59: 4157821709 | F59: 4157821709 | G59: 0
A60: 3.1 | B60: 1.1.3.06.02.01. | C60: Transferencias del Gobierno Central a cobrar c/p | D60: 0 | E60: 4139431351 | F60: 4139431351 | G60: 0
A61: 3.1 | B61: 1.1.3.06.02.01.0. | C61: Transferencias del Gobierno Central a cobrar c/p | D61: 0 | E61: 4139431351 | F61: 4139431351 | G61: 0
A62: 3.1 | B62: 1.1.3.06.02.01.0.11206 | C62: Ministerio de Hacienda | D62: 0 | E62: 4139431351 | F62: 4139431351 | G62: 0
A63: 3.1 | B63: 1.1.3.06.02.02. | C63: Transferencias de Órganos Desconcentrados a cobrar c/p | D63: 0 | E63: 6428232 | F63: 6428232 | G63: 0
A64: 3.1 | B64: 1.1.3.06.02.02.0. | C64: Transferencias de Órganos Desconcentrados a cobrar c/p | D64: 0 | E64: 6428232 | F64: 6428232 | G64: 0
A65: 3.1 | B65: 1.1.3.06.02.02.0.12583 | C65: Transfrencias de Organos desconcentrados a cobrar.Consejo Nacional de la Política Pública de la Persona Joven (CPJ) | D65: 0 | E65: 6428232 | F65: 6428232 | G65: 0
A66: 3.1 | B66: 1.1.3.06.02.03. | C66: Transferencias de Instituciones Descentralizadas no Empresariales a cobrar c/p | D66: 0 | E66: 11962125.78 | F66: 11962125.78 | G66: 0
A67: 3.1 | B67: 1.1.3.06.02.03.0. | C67: Transferencias de Instituciones Descentralizadas no Empresariales a cobrar c/p | D67: 0 | E67: 11962125.78 | F67: 11962125.78 | G67: 0
A68: 3.1 | B68: 1.1.3.06.02.03.0.14226 | C68: Transferencias de Instituciones Descentralizadas no Empresariales a cobrar c/p (Aporte IFAM Licores Nacionales y Ext) | D68: 0 | E68: 11962125.78 | F68: 11962125.78 | G68: 0
A69: 3.1 | B69: 1.1.3.98. | C69: Otras cuentas a cobrar a corto plazo | D69: 1073232.35 | E69: 12695802.65 | F69: 11001852.4 | G69: 2767182.6
A70: 3.1 | B70: 1.1.3.98.01. | C70: Multas, sanciones, remates y confiscaciones de origen no tributario a cobrar c/p | D70: 1073232.35 | E70: 12195802.65 | F70: 11001852.4 | G70: 2267182.6
A71: 3.1 | B71: 1.1.3.98.01.01. | C71: Multas y sanciones administrativas a cobrar c/p | D71: 1073232.35 | E71: 12195802.65 | F71: 11001852.4 | G71: 2267182.6
A72: 3.1 | B72: 1.1.3.98.01.01.0. | C72: Multas y sanciones administrativas a cobrar c/p | D72: 1073232.35 | E72: 12195802.65 | F72: 11001852.4 | G72: 2267182.6
A73: 3.1 | B73: 1.1.3.98.01.01.0.99999 | C73: Multas y sanciones administrativas a cobrar c/p | D73: 1073232.35 | E73: 12195802.65 | F73: 11001852.4 | G73: 2267182.6
A74: 3.1 | B74: 1.1.3.98.03. | C74: Depósitos en garantía c/p | D74: 0 | E74: 500000 | F74: 0 | G74: 500000
A75: 3.1 | B75: 1.1.3.98.03.02. | C75: Depósitos en garantía en el sector público interno c/p | D75: 0 | E75: 500000 | F75: 0 | G75: 500000
A76: 3.1 | B76: 1.1.3.98.03.02.0. | C76: Depósitos en garantía en el sector público interno c/p | D76: 0 | E76: 500000 | F76: 0 | G76: 500000
A77: 3.1 | B77: 1.1.3.98.03.02.0.99999 | C77: Depósitos en garantía en el sector público interno c/p | D77: 0 | E77: 500000 | F77: 0 | G77: 500000
A78: 3.1 | B78: 1.1.3.99. | C78: Previsiones para deterioro de cuentas a cobrar a corto plazo * | D78: -175377897.4 | E78: 0 | F78: 0 | G78: -175377897.4
A79: 3.1 | B79: 1.1.3.99.01. | C79: Previsiones para impuestos a cobrar c/p * | D79: -116983004.6 | E79: 0 | F79: 0 | G79: -116983004.6
A80: 3.1 | B80: 1.1.3.99.01.02. | C80: Previsiones para impuestos sobre la propiedad a cobrar c/p * | D80: -106283608.3 | E80: 0 | F80: 0 | G80: -106283608.3
A81: 3.1 | B81: 1.1.3.99.01.02.0. | C81: Previsiones para impuestos sobre la propiedad a cobrar c/p * | D81: -106283608.3 | E81: 0 | F81: 0 | G81: -106283608.3
A82: 3.1 | B82: 1.1.3.99.01.02.0.99999 | C82: Previsiones para impuestos sobre la propiedad a cobrar c/p * | D82: -106283608.3 | E82: 0 | F82: 0 | G82: -106283608.3
A83: 3.1 | B83: 1.1.3.99.01.03. | C83: Previsiones para impuestos sobre bienes y servicios a cobrar c/p * | D83: -9270015.01 | E83: 0 | F83: 0 | G83: -9270015.01
A84: 3.1 | B84: 1.1.3.99.01.03.0. | C84: Previsiones para impuestos sobre bienes y servicios a cobrar c/p * | D84: -9270015.01 | E84: 0 | F84: 0 | G84: -9270015.01
A85: 3.1 | B85: 1.1.3.99.01.03.0.99999 | C85: Previsiones para impuestos sobre bienes y servicios a cobrar c/p * | D85: -9270015.01 | E85: 0 | F85: 0 | G85: -9270015.01
A86: 3.1 | B86: 1.1.3.99.01.99. | C86: Previsiones para otros impuestos a cobrar c/p * | D86: -1429381.33 | E86: 0 | F86: 0 | G86: -1429381.33
A87: 3.1 | B87: 1.1.3.99.01.99.0. | C87: Previsiones para otros impuestos a cobrar c/p * | D87: -1429381.33 | E87: 0 | F87: 0 | G87: -1429381.33
A88: 3.1 | B88: 1.1.3.99.01.99.0.99999 | C88: Previsiones para otros impuestos a cobrar c/p * | D88: -1429381.33 | E88: 0 | F88: 0 | G88: -1429381.33
A89: 3.1 | B89: 1.1.3.99.04. | C89: Previsiones para servicios a cobrar c/p * | D89: -51378929.55 | E89: 0 | F89: 0 | G89: -51378929.55
A90: 3.1 | B90: 1.1.3.99.04.01. | C90: Previsiones para ventas de servicios a cobrar c/p * | D90: -50738208.69 | E90: 0 | F90: 0 | G90: -50738208.69
A91: 3.1 | B91: 1.1.3.99.04.01.0. | C91: Previsiones para ventas de servicios a cobrar c/p * | D91: -50738208.69 | E91: 0 | F91: 0 | G91: -50738208.69
A92: 3.1 | B92: 1.1.3.99.04.01.0.99999 | C92: Previsiones para ventas de servicios a cobrar c/p * | D92: -50738208.69 | E92: 0 | F92: 0 | G92: -50738208.69
A93: 3.1 | B93: 1.1.3.99.04.02. | C93: Previsiones para derechos administrativos a cobrar c/p * | D93: -640720.86 | E93: 0 | F93: 0 | G93: -640720.86
A94: 3.1 | B94: 1.1.3.99.04.02.0. | C94: Previsiones para derechos administrativos a cobrar c/p * | D94: -640720.86 | E94: 0 | F94: 0 | G94: -640720.86
A95: 3.1 | B95: 1.1.3.99.04.02.0.99999 | C95: Previsiones para derechos administrativos a cobrar c/p * | D95: -640720.86 | E95: 0 | F95: 0 | G95: -640720.86
A96: 3.1 | B96: 1.1.3.99.05. | C96: Previsiones para ingresos de la propiedad a cobrar c/p * | D96: -7015963.19 | E96: 0 | F96: 0 | G96: -7015963.19
A97: 3.1 | B97: 1.1.3.99.05.01. | C97: Previsiones para alquileres y derechos sobre bienes a cobrar c/p * | D97: -7015963.19 | E97: 0 | F97: 0 | G97: -7015963.19
A98: 3.1 | B98: 1.1.3.99.05.01.0. | C98: Previsiones para alquileres y derechos sobre bienes a cobrar c/p * | D98: -7015963.19 | E98: 0 | F98: 0 | G98: -7015963.19
A99: 3.1 | B99: 1.1.3.99.05.01.0.99999 | C99: Previsiones para alquileres y derechos sobre bienes a cobrar c/p * | D99: -7015963.19 | E99: 0 | F99: 0 | G99: -7015963.19
A100: 3.1 | B100: 1.1.4. | C100: Inventarios | D100: 4559673.55 | E100: 202605131.2 | F100: 14177712.56 | G100: 192987092.2
A101: 3.1 | B101: 1.1.4.01. | C101: Materiales y suministros para consumo y prestación de servicios | D101: 4559673.55 | E101: 202605131.2 | F101: 14177712.56 | G101: 192987092.2
A102: 3.1 | B102: 1.1.4.01.01. | C102: Productos químicos y conexos | D102: 1195234.05 | E102: 23083581.78 | F102: 2998320.74 | G102: 21280495.09
A103: 3.1 | B103: 1.1.4.01.01.01. | C103: Combustibles y lubricantes | D103: 0 | E103: 19372089.25 | F103: 1687749.79 | G103: 17684339.46
A104: 3.1 | B104: 1.1.4.01.01.01.0. | C104: Combustibles y lubricantes | D104: 0 | E104: 19372089.25 | F104: 1687749.79 | G104: 17684339.46
A105: 3.1 | B105: 1.1.4.01.01.01.0.99999 | C105: Combustibles y lubricantes | D105: 0 | E105: 19372089.25 | F105: 1687749.79 | G105: 17684339.46
A106: 3.1 | B106: 1.1.4.01.01.02. | C106: Productos farmacéuticos y medicinales | D106: 0 | E106: 6400 | F106: 0 | G106: 6400
A107: 3.1 | B107: 1.1.4.01.01.02.0. | C107: Productos farmacéuticos y medicinales | D107: 0 | E107: 6400 | F107: 0 | G107: 6400
A108: 3.1 | B108: 1.1.4.01.01.02.0.99999 | C108: Productos farmacéuticos y medicinales | D108: 0 | E108: 6400 | F108: 0 | G108: 6400
A109: 3.1 | B109: 1.1.4.01.01.04. | C109: Tintas, pinturas y diluyentes | D109: 1195234.05 | E109: 2516936.53 | F109: 936576.95 | G109: 2775593.63
A110: 3.1 | B110: 1.1.4.01.01.04.0. | C110: Tintas, pinturas y diluyentes | D110: 1195234.05 | E110: 2516936.53 | F110: 936576.95 | G110: 2775593.63
A111: 3.1 | B111: 1.1.4.01.01.04.0.99999 | C111: Tintas, pinturas y diluyentes | D111: 1195234.05 | E111: 2516936.53 | F111: 936576.95 | G111: 2775593.63
A112: 3.1 | B112: 1.1.4.01.01.99. | C112: Otros productos químicos y conexos | D112: 0 | E112: 1188156 | F112: 373994 | G112: 814162
A113: 3.1 | B113: 1.1.4.01.01.99.0. | C113: Otros productos químicos y conexos | D113: 0 | E113: 1188156 | F113: 373994 | G113: 814162
A114: 3.1 | B114: 1.1.4.01.01.99.0.99999 | C114: Otros productos químicos y conexos | D114: 0 | E114: 1188156 | F114: 373994 | G114: 814162
A115: 3.1 | B115: 1.1.4.01.03. | C115: Materiales y productos de uso en la construcción y mantenimiento | D115: 0 | E115: 34189729.49 | F115: 4061940.24 | G115: 30127789.25
A116: 3.1 | B116: 1.1.4.01.03.01. | C116: Materiales y productos metálicos | D116: 0 | E116: 26486657.62 | F116: 1247953.42 | G116: 25238704.2
A117: 3.1 | B117: 1.1.4.01.03.01.0. | C117: Materiales y productos metálicos | D117: 0 | E117: 26486657.62 | F117: 1247953.42 | G117: 25238704.2
A118: 3.1 | B118: 1.1.4.01.03.01.0.99999 | C118: Materiales y productos metálicos | D118: 0 | E118: 26486657.62 | F118: 1247953.42 | G118: 25238704.2
A119: 3.1 | B119: 1.1.4.01.03.02. | C119: Materiales y productos minerales y asfálticos | D119: 0 | E119: 5475775.81 | F119: 1767098.81 | G119: 3708677
A120: 3.1 | B120: 1.1.4.01.03.02.0. | C120: Materiales y productos minerales y asfálticos | D120: 0 | E120: 5475775.81 | F120: 1767098.81 | G120: 3708677
A121: 3.1 | B121: 1.1.4.01.03.02.0.99999 | C121: Materiales y productos minerales y asfálticos | D121: 0 | E121: 5475775.81 | F121: 1767098.81 | G121: 3708677
A122: 3.1 | B122: 1.1.4.01.03.03. | C122: Madera y sus derivados | D122: 0 | E122: 1836820 | F122: 940305 | G122: 896515
A123: 3.1 | B123: 1.1.4.01.03.03.0. | C123: Madera y sus derivados | D123: 0 | E123: 1836820 | F123: 940305 | G123: 896515
A124: 3.1 | B124: 1.1.4.01.03.03.0.99999 | C124: Madera y sus derivados | D124: 0 | E124: 1836820 | F124: 940305 | G124: 896515
A125: 3.1 | B125: 1.1.4.01.03.04. | C125: Materiales y productos eléctricos, telefónicos y de cómputo | D125: 0 | E125: 204931.56 | F125: 69760 | G125: 135171.56
A126: 3.1 | B126: 1.1.4.01.03.04.0. | C126: Materiales y productos eléctricos, telefónicos y de cómputo | D126: 0 | E126: 204931.56 | F126: 69760 | G126: 135171.56
A127: 3.1 | B127: 1.1.4.01.03.04.0.99999 | C127: Materiales y productos eléctricos, telefónicos y de cómputo | D127: 0 | E127: 204931.56 | F127: 69760 | G127: 135171.56
A128: 3.1 | B128: 1.1.4.01.03.06. | C128: Materiales y productos de plástico | D128: 0 | E128: 185544.5 | F128: 36823.01 | G128: 148721.49
A129: 3.1 | B129: 1.1.4.01.03.06.0. | C129: Materiales y productos de plástico | D129: 0 | E129: 185544.5 | F129: 36823.01 | G129: 148721.49
A130: 3.1 | B130: 1.1.4.01.03.06.0.99999 | C130: Materiales y productos de plástico | D130: 0 | E130: 185544.5 | F130: 36823.01 | G130: 148721.49
A131: 3.1 | B131: 1.1.4.01.04. | C131: Herramientas, repuestos y accesorios | D131: 0 | E131: 134450344.9 | F131: 3172337.09 | G131: 131278007.8
A132: 3.1 | B132: 1.1.4.01.04.01. | C132: Herramientas e instrumentos | D132: 0 | E132: 1296662.5 | F132: 63021 | G132: 1233641.5
A133: 3.1 | B133: 1.1.4.01.04.01.0. | C133: Herramientas e instrumentos | D133: 0 | E133: 1296662.5 | F133: 63021 | G133: 1233641.5
A134: 3.1 | B134: 1.1.4.01.04.01.0.99999 | C134: Herramientas e instrumentos | D134: 0 | E134: 1296662.5 | F134: 63021 | G134: 1233641.5
A135: 3.1 | B135: 1.1.4.01.04.02. | C135: Repuestos y accesorios Nuevos | D135: 0 | E135: 133153682.4 | F135: 3109316.09 | G135: 130044366.3
A136: 3.1 | B136: 1.1.4.01.04.02.0. | C136: Repuestos y accesorios Nuevos | D136: 0 | E136: 133153682.4 | F136: 3109316.09 | G136: 130044366.3
A137: 3.1 | B137: 1.1.4.01.04.02.0.99999 | C137: Repuestos y accesorios Nuevos | D137: 0 | E137: 133153682.4 | F137: 3109316.09 | G137: 130044366.3
A138: 3.1 | B138: 1.1.4.01.99. | C138: Útiles, materiales y suministros diversos | D138: 3364439.5 | E138: 10881475.09 | F138: 3945114.49 | G138: 10300800.1
A139: 3.1 | B139: 1.1.4.01.99.01. | C139: Útiles y materiales de oficina y cómputo | D139: 788819.78 | E139: 1830273.57 | F139: 675924.74 | G139: 1943168.61
A140: 3.1 | B140: 1.1.4.01.99.01.0. | C140: Útiles y materiales de oficina y cómputo | D140: 788819.78 | E140: 1830273.57 | F140: 675924.74 | G140: 1943168.61
A141: 3.1 | B141: 1.1.4.01.99.01.0.99999 | C141: Útiles y materiales de oficina y cómputo | D141: 788819.78 | E141: 1830273.57 | F141: 675924.74 | G141: 1943168.61
A142: 3.1 | B142: 1.1.4.01.99.03. | C142: Productos de papel, cartón e impresos | D142: 2511724.72 | E142: 1520826.08 | F142: 1301961.62 | G142: 2730589.18
A143: 3.1 | B143: 1.1.4.01.99.03.0. | C143: Productos de papel, cartón e impresos | D143: 2511724.72 | E143: 1520826.08 | F143: 1301961.62 | G143: 2730589.18
A144: 3.1 | B144: 1.1.4.01.99.03.0.99999 | C144: Productos de papel, cartón e impresos | D144: 2511724.72 | E144: 1520826.08 | F144: 1301961.62 | G144: 2730589.18
A145: 3.1 | B145: 1.1.4.01.99.04. | C145: Textiles y vestuario | D145: 0 | E145: 764454.3 | F145: 457517.95 | G145: 306936.35
A146: 3.1 | B146: 1.1.4.01.99.04.0. | C146: Textiles y vestuario | D146: 0 | E146: 764454.3 | F146: 457517.95 | G146: 306936.35
A147: 3.1 | B147: 1.1.4.01.99.04.0.99999 | C147: Textiles y vestuario | D147: 0 | E147: 764454.3 | F147: 457517.95 | G147: 306936.35
A148: 3.1 | B148: 1.1.4.01.99.05. | C148: Útiles y materiales de limpieza | D148: 0 | E148: 3392470.05 | F148: 655092.31 | G148: 2737377.74
A149: 3.1 | B149: 1.1.4.01.99.05.0. | C149: Útiles y materiales de limpieza | D149: 0 | E149: 3392470.05 | F149: 655092.31 | G149: 2737377.74
A150: 3.1 | B150: 1.1.4.01.99.05.0.99999 | C150: Útiles y materiales de limpieza | D150: 0 | E150: 3392470.05 | F150: 655092.31 | G150: 2737377.74
A151: 3.1 | B151: 1.1.4.01.99.06. | C151: Útiles y materiales de resguardo y seguridad | D151: 0 | E151: 2842535.09 | F151: 799630.87 | G151: 2042904.22
A152: 3.1 | B152: 1.1.4.01.99.06.0. | C152: Útiles y materiales de resguardo y seguridad | D152: 0 | E152: 2842535.09 | F152: 799630.87 | G152: 2042904.22
A153: 3.1 | B153: 1.1.4.01.99.06.0.99999 | C153: Útiles y materiales de resguardo y seguridad | D153: 0 | E153: 2842535.09 | F153: 799630.87 | G153: 2042904.22
A154: 3.1 | B154: 1.1.4.01.99.99. | C154: Otros útiles, materiales y suministros diversos | D154: 63895 | E154: 530916 | F154: 54987 | G154: 539824
A155: 3.1 | B155: 1.1.4.01.99.99.0. | C155: Otros útiles, materiales y suministros diversos | D155: 63895 | E155: 530916 | F155: 54987 | G155: 539824
A156: 3.1 | B156: 1.1.4.01.99.99.0.99999 | C156: Otros útiles, materiales y suministros diversos | D156: 63895 | E156: 530916 | F156: 54987 | G156: 539824
A157: 3.1 | B157: 1.1.9. | C157: Otros activos a corto plazo | D157: 22755462.51 | E157: 57241219 | F157: 53701059.27 | G157: 26295622.24
A158: 3.1 | B158: 1.1.9.01. | C158: Gastos a devengar a corto plazo | D158: 22755462.51 | E158: 57241219 | F158: 53701059.27 | G158: 26295622.24
A159: 3.1 | B159: 1.1.9.01.01. | C159: Servicios a devengar c/p | D159: 22755462.51 | E159: 57241219 | F159: 53701059.27 | G159: 26295622.24
A160: 3.1 | B160: 1.1.9.01.01.01. | C160: Primas y gastos de seguros a devengar c/p | D160: 22755462.51 | E160: 57241219 | F160: 53701059.27 | G160: 26295622.24
A161: 3.1 | B161: 1.1.9.01.01.01.0. | C161: Primas y gastos de seguros a devengar c/p | D161: 22755462.51 | E161: 57241219 | F161: 53701059.27 | G161: 26295622.24
A162: 3.1 | B162: 1.1.9.01.01.01.0.99999 | C162: Primas y gastos de seguros a devengar c/p | D162: 22755462.51 | E162: 57241219 | F162: 53701059.27 | G162: 26295622.24
A163: 3.1 | B163: 1.2. | C163: Activo No Corriente | D163: 1.628830304e+11 | E163: 593552272.8 | F163: 465774368.6 | G163: 1.630108083e+11
A164: 3.1 | B164: 1.2.5. | C164: Bienes no concesionados | D164: 1.628830304e+11 | E164: 593552272.8 | F164: 465774368.6 | G164: 1.630108083e+11
A165: 3.1 | B165: 1.2.5.01. | C165: Propiedades, planta y equipos explotados | D165: 2087610295 | E165: 506820609 | F165: 439266916.1 | G165: 2155163988
A166: 3.1 | B166: 1.2.5.01.02. | C166: Edificios | D166: 1191815588 | E166: 276356468.2 | F166: 217298976 | G166: 1250873081
A167: 3.1 | B167: 1.2.5.01.02.01. | C167: Edificios de oficinas atención al públ | D167: 421403917.5 | E167: 94350297.7 | F167: 76052058.12 | G167: 439702157.1
A168: 3.1 | B168: 1.2.5.01.02.01.1. | C168: Edificios de oficinas y atención público Valores Origen | D168: 258127776.8 | E168: 0 | F168: 0 | G168: 258127776.8
A169: 3.1 | B169: 1.2.5.01.02.01.1.99999 | C169: Edificios de oficinas y atención público Valores Origen | D169: 258127776.8 | E169: 0 | F169: 0 | G169: 258127776.8
A170: 3.1 | B170: 1.2.5.01.02.01.3. | C170: Edificios oficinas y atención público Depreciación Acumulada | D170: -27447359.32 | E170: 94350297.7 | F170: 76052058.12 | G170: -9149119.74
A171: 3.1 | B171: 1.2.5.01.02.01.3.99999 | C171: Edificios oficinas y atención público Depreciación Acumulada | D171: -27447359.32 | E171: 94350297.7 | F171: 76052058.12 | G171: -9149119.74
A172: 3.1 | B172: 1.2.5.01.02.01.6. | C172: Edificios oficinas y atención público Porción Terreno Valores Origen | D172: 190723500 | E172: 0 | F172: 0 | G172: 190723500
A173: 3.1 | B173: 1.2.5.01.02.01.6.99999 | C173: Edificios oficinas y atención público Porción Terreno Valores Origen | D173: 190723500 | E173: 0 | F173: 0 | G173: 190723500
A174: 3.1 | B174: 1.2.5.01.02.05. | C174: Locales | D174: 283938685.9 | E174: 70365829.54 | F174: 56719123.15 | G174: 297585392.3
A175: 3.1 | B175: 1.2.5.01.02.05.1. | C175: Locales Valores de origen | D175: 198576095.4 | E175: 0 | F175: 0 | G175: 198576095.4
A176: 3.1 | B176: 1.2.5.01.02.05.1.99999 | C176: Locales Valores de origen | D176: 198576095.4 | E176: 0 | F176: 0 | G176: 198576095.4
A177: 3.1 | B177: 1.2.5.01.02.05.3. | C177: Locales Depreciaciones acumuladas * | D177: -20470059.48 | E177: 70365829.54 | F177: 56719123.15 | G177: -6823353.09
A178: 3.1 | B178: 1.2.5.01.02.05.3.99999 | C178: Locales Depreciaciones acumuladas * | D178: -20470059.48 | E178: 70365829.54 | F178: 56719123.15 | G178: -6823353.09
A179: 3.1 | B179: 1.2.5.01.02.05.6. | C179: Locales Porción terreno: valores de origen | D179: 105832650 | E179: 0 | F179: 0 | G179: 105832650
A180: 3.1 | B180: 1.2.5.01.02.05.6.99999 | C180: Locales Porción terreno: valores de origen | D180: 105832650 | E180: 0 | F180: 0 | G180: 105832650
A181: 3.1 | B181: 1.2.5.01.02.99. | C181: Otros edificios | D181: 486472985.1 | E181: 111640341 | F181: 84527794.76 | G181: 513585531.3
A182: 3.1 | B182: 1.2.5.01.02.99.1. | C182: Otros edificios Valores de origen | D182: 355511815.9 | E182: 6810235 | F182: 0 | G182: 362322050.9
A183: 3.1 | B183: 1.2.5.01.02.99.1.99999 | C183: Otros edificios Valores de origen | D183: 355511815.9 | E183: 6810235 | F183: 0 | G183: 362322050.9
A184: 3.1 | B184: 1.2.5.01.02.99.3. | C184: Otros edificios Depreciaciones acumuladas * | D184: -30496030.84 | E184: 104830106 | F184: 84527794.76 | G184: -10193719.61
A185: 3.1 | B185: 1.2.5.01.02.99.3.99999 | C185: Otros edificios Depreciaciones acumuladas * | D185: -30496030.84 | E185: 104830106 | F185: 84527794.76 | G185: -10193719.61
A186: 3.1 | B186: 1.2.5.01.02.99.6. | C186: Otros edificios Porción terreno: valores de origen | D186: 161457200 | E186: 0 | F186: 0 | G186: 161457200
A187: 3.1 | B187: 1.2.5.01.02.99.6.99999 | C187: Otros edificios Porción terreno: valores de origen | D187: 161457200 | E187: 0 | F187: 0 | G187: 161457200
A188: 3.1 | B188: 1.2.5.01.03. | C188: Maquinaria equipos para la producción | D188: 772667317.1 | E188: 203222482.7 | F188: 189515253.9 | G188: 786374546
A189: 3.1 | B189: 1.2.5.01.03.01. | C189: Maquinaria para la construcción | D189: 743342363.6 | E189: 195959201.5 | F189: 184994581.7 | G189: 754306983.3
A190: 3.1 | B190: 1.2.5.01.03.01.1. | C190: Maquinaria para la construcción Valores de origen | D190: 1801678962 | E190: 195959201.5 | F190: 0 | G190: 1997638164
A191: 3.1 | B191: 1.2.5.01.03.01.1.99999 | C191: Maquinaria para la construcción Valores de origen | D191: 1801678962 | E191: 195959201.5 | F191: 0 | G191: 1997638164
A192: 3.1 | B192: 1.2.5.01.03.01.3. | C192: Maq para la construcción Depreciaciones acumuladas | D192: -1058336599 | E192: 0 | F192: 184994581.7 | G192: -1243331181
A193: 3.1 | B193: 1.2.5.01.03.01.3.99999 | C193: Maq para la construcción Depreciaciones acumuladas | D193: -1058336599 | E193: 0 | F193: 184994581.7 | G193: -1243331181
A194: 3.1 | B194: 1.2.5.01.03.03. | C194: Planta eléctrica | D194: 3846036.26 | E194: 65652.08 | F194: 411631.06 | G194: 3500057.28
A195: 3.1 | B195: 1.2.5.01.03.03.1. | C195: Planta eléctrica Valores de origen | D195: 5189684.8 | E195: 0 | F195: 0 | G195: 5189684.8
A196: 3.1 | B196: 1.2.5.01.03.03.1.99999 | C196: Planta eléctrica Valores de origen | D196: 5189684.8 | E196: 0 | F196: 0 | G196: 5189684.8
A197: 3.1 | B197: 1.2.5.01.03.03.3. | C197: Planta eléctrica Depreciaciones acumuladas * | D197: -1343648.54 | E197: 65652.08 | F197: 411631.06 | G197: -1689627.52
A198: 3.1 | B198: 1.2.5.01.03.03.3.99999 | C198: Planta eléctrica Depreciaciones acumuladas * | D198: -1343648.54 | E198: 65652.08 | F198: 411631.06 | G198: -1689627.52
A199: 3.1 | B199: 1.2.5.01.03.06. | C199: Equipos hidráulicos | D199: 202795.79 | E199: 127510.46 | F199: 148671.75 | G199: 181634.5
A200: 3.1 | B200: 1.2.5.01.03.06.1. | C200: Equipos hidráulicos Valores de origen | D200: 280058 | E200: 0 | F200: 0 | G200: 280058
A201: 3.1 | B201: 1.2.5.01.03.06.1.99999 | C201: Equipos hidráulicos Valores de origen | D201: 280058 | E201: 0 | F201: 0 | G201: 280058
A202: 3.1 | B202: 1.2.5.01.03.06.3. | C202: Equipos hidráulicos Depreciaciones acumuladas * | D202: -77262.21 | E202: 127510.46 | F202: 148671.75 | G202: -98423.5
A203: 3.1 | B203: 1.2.5.01.03.06.3.99999 | C203: Equipos hidráulicos Depreciaciones acumuladas * | D203: -77262.21 | E203: 127510.46 | F203: 148671.75 | G203: -98423.5
A204: 3.1 | B204: 1.2.5.01.03.08. | C204: Equipos de medición | D204: 1274259.18 | E204: 282500 | F204: 608587.32 | G204: 948171.86
A205: 3.1 | B205: 1.2.5.01.03.08.1. | C205: Equipos de medición Valores de origen | D205: 6452398.73 | E205: 282500 | F205: 0 | G205: 6734898.73
A206: 3.1 | B206: 1.2.5.01.03.08.1.99999 | C206: Equipos de medición Valores de origen | D206: 6452398.73 | E206: 282500 | F206: 0 | G206: 6734898.73
A207: 3.1 | B207: 1.2.5.01.03.08.3. | C207: Equipos de medición Depreciaciones acumuladas * | D207: -5178139.55 | E207: 0 | F207: 608587.32 | G207: -5786726.87
A208: 3.1 | B208: 1.2.5.01.03.08.3.99999 | C208: Equipos de medición Depreciaciones acumuladas * | D208: -5178139.55 | E208: 0 | F208: 608587.32 | G208: -5786726.87
A209: 3.1 | B209: 1.2.5.01.03.09. | C209: Bombas | D209: 4185504.18 | E209: 2382771.55 | F209: 990231.86 | G209: 5578043.87
... 811 more rows
